Workbook

Sheet Ведомственная 2008 (hidden)
B1: Приложение 13
B2: к Закону Московской области №
B3: "О внесении изменений в Закон Московской области
B4: "О бюджете Московской области на 2008 год"
B6: Приложение 19
B7: к Закону Московской области №
B8: "О бюджете Московской области на 2008 год"
B11: Ведомственная структура расходов
B12: бюджета Московской области на 2008 год
H14: (тыс. рублей)
B15: Наименования | C15: Код | D15: Рз | E15: ПР | F15: ЦСР | G15: ВР | H15: Сумма
A17: 0 | B17: Московская областная Дума | C17: 001 | H17: =H18+H42+H47+H52 -> 926254
A18: 1 | B18: Общегосударственные вопросы | C18: 001 | D18: 01 | H18: =H19+H34 -> 818155
A19: 103 | B19: Функционирование законодательных (представительных) органов государственной власти и представительных органов муниципальных образований | C19: 001 | D19: 01 | E19: 03 | H19: =H20+H27 -> 806070
A20: 103002 | B20: Руководство и управление в сфере установленных функций органов государственной власти субъектов Российской Федерации и органов местного самоуправления | C20: 001 | D20: 01 | E20: 03 | F20: 002 00 00 | H20: =H21+H23+H25 -> 797591
A21: 10300204 | B21: Центральный аппарат | C21: 001 | D21: 01 | E21: 03 | F21: 002 04 00 | H21: =H22 -> 709475
A22: 10300204012 | B22: Выполнение функций государственными органами | C22: 001 | D22: 01 | E22: 03 | F22: 002 04 00 | G22: 012 | H22: 709475
A23: 10300209 | B23: Председатель законодательного (представительного) органа государственной власти субъекта Российской Федерации | C23: 001 | D23: 01 | E23: 03 | F23: 002 09 00 | H23: =H24 -> 2381
A24: 10300209012 | B24: Выполнение функций государственными органами | C24: 001 | D24: 01 | E24: 03 | F24: 002 09 00 | G24: 012 | H24: 2381
A25: 10300210 | B25: Депутаты (члены) законодательного (представительного) органа государственной власти субъекта Российской Федерации | C25: 001 | D25: 01 | E25: 03 | F25: 002 10 00 | H25: =H26 -> 85735
A26: 10300210012 | B26: Выполнение функций государственными органами | C26: 001 | D26: 01 | E26: 03 | F26: 002 10 00 | G26: 012 | H26: 85735
A27: 103803 | B27: Расходы на страхование | C27: 001 | D27: 01 | E27: 03 | F27: 803 00 00 | H27: =H28+H30+H32 -> 8479
A28: 1038030001 | B28: Расходы на страхование имущества, находящегося в государственной собственности Московской области | C28: 001 | D28: 01 | E28: 03 | F28: 803 00 01 | H28: =H29 -> 7300
A29: 1038030001013 | B29: Прочие расходы | C29: 001 | D29: 01 | E29: 03 | F29: 803 00 01 | G29: 013 | H29: 7300
A30: 1038030003 | B30: Расходы на обязательное страхование гражданской ответственности владельцев транспортных средств | C30: 001 | D30: 01 | E30: 03 | F30: 803 00 03 | H30: =H31 -> 1055
A31: 1038030003013 | B31: Прочие расходы | C31: 001 | D31: 01 | E31: 03 | F31: 803 00 03 | G31: 013 | H31: 1055
A32: 1038030004 | B32: Расходы на добровольное страхование гражданской ответственности владельцев транспортных средств | C32: 001 | D32: 01 | E32: 03 | F32: 803 00 04 | H32: =H33 -> 124
A33: 1038030004013 | B33: Прочие расходы | C33: 001 | D33: 01 | E33: 03 | F33: 803 00 04 | G33: 013 | H33: 124
A34: 114 | B34: Другие общегосударственные вопросы | C34: 001 | D34: 01 | E34: 14 | H34: =H35 -> 12085
A35: 114001 | B35: Руководство и управление в сфере установленных функций | C35: 001 | D35: 01 | E35: 14 | F35: 001 00 00 | H35: =H36+H38+H40 -> 12085
A36: 11400112 | B36: Члены Совета Федерации и их помощники | C36: 001 | D36: 01 | E36: 14 | F36: 001 12 00 | H36: =H37 -> 364
A37: 11400112012 | B37: Выполнение функций государственными органами | C37: 001 | D37: 01 | E37: 14 | F37: 001 12 00 | G37: 012 | H37: 364
A38: 11400161 | B38: Расходы, связанные с выплатой Премии Московской областной Думы | C38: 001 | D38: 01 | E38: 14 | F38: 001 61 00 | H38: =H39 -> 8621
A39: 11400161013 | B39: Прочие расходы | C39: 001 | D39: 01 | E39: 14 | F39: 001 61 00 | G39: 013 | H39: =8621-8621+8621 -> 8621
A40: 11400162 | B40: Расходы на выплату премий победителям конкурсов профессионального мастерства и награждения ценными подарками в связи с проведение профессиональных праздников | C40: 001 | D40: 01 | E40: 14 | F40: 001 62 00 | H40: =H41 -> 3100
A41: 11400162013 | B41: Прочие расходы | C41: 001 | D41: 01 | E41: 14 | F41: 001 62 00 | G41: 013 | H41: 3100
A42: 5 | B42: Жилищно-коммунальное хозяйство | C42: 001 | D42: 05 | H42: =H43 -> 65000
A43: 501 | B43: Жилищное хозяйство | C43: 001 | D43: 05 | E43: 01 | H43: =H44 -> 65000
A44: 501350 | B44: Поддержка жилищного хозяйства | C44: 001 | D44: 05 | E44: 01 | F44: 350 00 00 | H44: =H45 -> 65000
A45: 50135003 | B45: Мероприятия в области жилищного хозяйства | C45: 001 | D45: 05 | E45: 01 | F45: 350 03 00 | H45: =H46 -> 65000
A46: 50135003012 | B46: Выполнение функций государственными органами | C46: 001 | D46: 05 | E46: 01 | F46: 350 03 00 | G46: 012 | H46: 65000
A47: 7 | B47: Образование | C47: 001 | D47: 07 | H47: =H48 -> 450
A48: 707 | B48: Молодежная политика и оздоровление детей | C48: 001 | D48: 07 | E48: 07 | H48: =H49 -> 450
A49: 707432 | B49: Мероприятия по проведению оздоровительной кампании детей | C49: 001 | D49: 07 | E49: 07 | F49: 432 00 00 | H49: =H50 -> 450
A50: 70743202 | B50: Оздоровление детей | C50: 001 | D50: 07 | E50: 07 | F50: 432 02 00 | H50: =H51 -> 450
A51: 70743202001 | B51: Выполнение функций бюджетными учреждениями | C51: 001 | D51: 07 | E51: 07 | F51: 432 02 00 | G51: 001 | H51: 450
A52: 9 | B52: Здравоохранение, физическая культура и спорт | C52: 001 | D52: 09 | H52: =H53 -> 42649
A53: 910 | B53: Другие вопросы в области здравоохранения, физической культуры и спорта | C53: 001 | D53: 09 | E53: 10 | H53: =H54 -> 42649
A54: 910485 | B54: Реализация государственных функций в области здравоохранения, спорта и туризма | C54: 001 | D54: 09 | E54: 10 | F54: 485 00 00 | H54: =H55 -> 42649
A55: 91048597 | B55: Мероприятия в области здравохранения, спорта и физической культуры, туризма | C55: 001 | D55: 09 | E55: 10 | F55: 485 97 00 | H55: =H56 -> 42649
A56: 91048597079 | B56: Мероприятия в области здравоохранения, спорта и физической культуры | C56: 001 | D56: 09 | E56: 10 | F56: 485 97 00 | G56: 079 | H56: 42649
A58: 0 | B58: Правительство Московской области | C58: 002 | H58: =H59+H87+H92+H97 -> 2730114
A59: 1 | B59: Общегосударственные вопросы | C59: 002 | D59: 01 | H59: =H60+H64+H70 -> 1958797
A60: 102 | B60: Функционирование высшего должностного лица субъекта Российской Федерации и муниципального образования | C60: 002 | D60: 01 | E60: 02 | H60: =H61 -> 2114
A61: 102002 | B61: Руководство и управление в сфере установленных функций органов государственной власти субъектов Российской Федерации и органов местного самоуправления | C61: 002 | D61: 01 | E61: 02 | F61: 002 00 00 | H61: =H62 -> 2114
A62: 10200201 | B62: Высшее должностное лицо субъекта Российской Федерации | C62: 002 | D62: 01 | E62: 02 | F62: 002 01 00 | H62: =H63 -> 2114
A63: 10200201012 | B63: Выполнение функций государственными органами | C63: 002 | D63: 01 | E63: 02 | F63: 002 01 00 | G63: 012 | H63: 2114
A64: 104 | B64: Функционирование Правительства Российской Федерации, высших исполнительных органов государственной власти субъектов Российской Федерации, местных администраций | C64: 002 | D64: 01 | E64: 04 | H64: =H65 -> 902951
A65: 104002 | B65: Руководство и управление в сфере установленных функций органов государственной власти субъектов Российской Федерации и органов местного самоуправления | C65: 002 | D65: 01 | E65: 04 | F65: 002 00 00 | H65: =H66+H68 -> 902951
A66: 10400204 | B66: Центральный аппарат | C66: 002 | D66: 01 | E66: 04 | F66: 002 04 00 | H66: =H67 -> 886096
A67: 10400204012 | B67: Выполнение функций государственными органами | C67: 002 | D67: 01 | E67: 04 | F67: 002 04 00 | G67: 012 | H67: 886096
A68: 10400206 | B68: Высшее должностное лицо субъекта Российской Федерации (руководитель высшего исполнительного органа государственной власти субъекта Российской Федерации) и его заместители | C68: 002 | D68: 01 | E68: 04 | F68: 002 06 00 | H68: =H69 -> 16855
A69: 10400206012 | B69: Выполнение функций государственными органами | C69: 002 | D69: 01 | E69: 04 | F69: 002 06 00 | G69: 012 | H69: 16855
A70: 114 | B70: Другие общегосударственные вопросы | C70: 002 | D70: 01 | E70: 14 | H70: =H71+H82 -> 1053732
A71: 114001 | B71: Руководство и управление в сфере установленных функций | C71: 002 | D71: 01 | E71: 14 | F71: 001 00 00 | H71: =H72+H74+H76+H78+H80 -> 26458
A72: 11400110 | B72: Депутаты Государственной Думы и их помощники | C72: 002 | D72: 01 | E72: 14 | F72: 001 10 00 | H72: =H73 -> 20804
A73: 11400110012 | B73: Выполнение функций государственными органами | C73: 002 | D73: 01 | E73: 14 | F73: 001 10 00 | G73: 012 | H73: 20804
A74: 11400112 | B74: Члены Совета Федерации и их помощники | C74: 002 | D74: 01 | E74: 14 | F74: 001 12 00 | H74: =H75 -> 484
A75: 11400112012 | B75: Выполнение функций государственными органами | C75: 002 | D75: 01 | E75: 14 | F75: 001 12 00 | G75: 012 | H75: 484
A76: 11400163 | B76: Расходы на выплату Премии Губернатора Московской области | C76: 002 | D76: 01 | E76: 14 | F76: 001 63 00 | H76: =H77 -> 2000
A77: 11400163013 | B77: Прочие расходы | C77: 002 | D77: 01 | E77: 14 | F77: 001 63 00 | G77: 013 | H77: 2000
A78: 11400164 | B78: Взносы Московской области в общественные организации, фонды, ассоциации | C78: 002 | D78: 01 | E78: 14 | F78: 001 64 00 | H78: =H79 -> 600
A79: 11400164013 | B79: Прочие расходы | C79: 002 | D79: 01 | E79: 14 | F79: 001 64 00 | G79: 013 | H79: 600
A80: 11400165 | B80: Расходы на реализацию Закона Московской области "О наградах Московской области" | C80: 002 | D80: 01 | E80: 14 | F80: 001 65 00 | H80: =H81 -> 2570
A81: 11400165013 | B81: Прочие расходы | C81: 002 | D81: 01 | E81: 14 | F81: 001 65 00 | G81: 013 | H81: 2570
A82: 114093 | B82: Учреждения по обеспечению хозяйственного обслуживания | C82: 002 | D82: 01 | E82: 14 | F82: 093 00 00 | H82: =H83+H85 -> 1027274
A83: 11409310 | B83: Обеспечение эксплуатации и надлежащего содержания зданий и помещений, занимаемых Правительством Московской области | C83: 002 | D83: 01 | E83: 14 | F83: 093 10 00 | H83: =H84 -> 27274
A84: 11409310001 | B84: Выполнение функций бюджетными учреждениями | C84: 002 | D84: 01 | E84: 14 | F84: 093 10 00 | G84: 001 | H84: 27274
A85: 11409311 | B85: Обеспечение эксплуатации и надлежащего содержания зданий и помещений, занимаемых органами исполнительной власти Московской области | C85: 002 | D85: 01 | E85: 14 | F85: 093 11 00 | H85: =H86 -> 1000000
A86: 11409311001 | B86: Выполнение функций бюджетными учреждениями | C86: 002 | D86: 01 | E86: 14 | F86: 093 11 00 | G86: 001 | H86: 1000000
A87: 5 | B87: Жилищно - коммунальное хозяйство | C87: 002 | D87: 05 | H87: =H88 -> 400000
A88: 501 | B88: Жилищное хозяйство | C88: 002 | D88: 05 | E88: 01 | H88: =H89 -> 400000
A89: 501350 | B89: Поддержка жилищного хозяйства | C89: 002 | D89: 05 | E89: 01 | F89: 350 00 00 | H89: =H90 -> 400000
A90: 50135003 | B90: Мероприятия в области жилищного хозяйства | C90: 002 | D90: 05 | E90: 01 | F90: 350 03 00 | H90: =H91 -> 400000
A91: 50135003012 | B91: Выполнение функций государственными органами | C91: 002 | D91: 05 | E91: 01 | F91: 350 03 00 | G91: 012 | H91: 400000
A92: 7 | B92: Образование | C92: 002 | D92: 07 | H92: =H93 -> 2104
A93: 707 | B93: Молодежная политика и оздоровление детей | C93: 002 | D93: 07 | E93: 07 | H93: =H94 -> 2104
A94: 707432 | B94: Мероприятия по проведению оздоровительной кампании детей | C94: 002 | D94: 07 | E94: 07 | F94: 432 00 00 | H94: =H95 -> 2104
A95: 70743202 | B95: Оздоровление детей | C95: 002 | D95: 07 | E95: 07 | F95: 432 02 00 | H95: =H96 -> 2104
A96: 70743202001 | B96: Выполнение функций бюджетными учреждениями | C96: 002 | D96: 07 | E96: 07 | F96: 432 02 00 | G96: 001 | H96: 2104
A97: 9 | B97: Здравоохранение, физическая культура и спорт | C97: 002 | D97: 09 | H97: =H98 -> 369213
A98: 910 | B98: Другие вопросы в области здравоохранения, физической культуры и спорта | C98: 002 | D98: 09 | E98: 10 | H98: =H99 -> 369213
A99: 910485 | B99: Реализация государственных функций в области здравоохранения, спорта и туризма | C99: 002 | D99: 09 | E99: 10 | F99: 485 00 00 | H99: =H100 -> 369213
A100: 91048597 | B100: Мероприятия в области здравохранения, спорта и физической культуры, туризма | C100: 002 | D100: 09 | E100: 10 | F100: 485 97 00 | H100: =H101 -> 369213
A101: 91048597079 | B101: Мероприятия в области здравоохранения, спорта и физической культуры | C101: 002 | D101: 09 | E101: 10 | F101: 485 97 00 | G101: 079 | H101: 369213
A103: 0 | B103: Министерство внешнеэкономических связей Московской области | C103: 003 | H103: =H104+H116+H121+H126 -> 287272
A104: 1 | B104: Общегосударственные вопросы | C104: 003 | D104: 01 | H104: =H105+H112 -> 286941
A105: 108 | B105: Международные отношения и международное сотрудничество | C105: 003 | D105: 01 | E105: 08 | H105: =H106+H109 -> 200130
A106: 108030 | B106: Международное сотрудничество | C106: 003 | D106: 01 | E106: 08 | F106: 030 00 00 | H106: =H107 -> 200000
A107: 10803005 | B107: Прочие расходы, связанные с международной деятельностью | C107: 003 | D107: 01 | E107: 08 | F107: 030 05 00 | H107: =H108 -> 200000
A108: 10803005012 | B108: Выполнение функций государственными органами | C108: 003 | D108: 01 | E108: 08 | F108: 030 05 00 | G108: 012 | H108: 200000
A109: 108522 | B109: Региональные целевые программы | C109: 003 | D109: 01 | E109: 08 | F109: 522 00 00 | H109: =H110 -> 130
A110: 10852209 | B110: Областная целевая программа "Поддержка Московской областью соотечественников за рубежом на 2007-2010 годы" | C110: 003 | D110: 01 | E110: 08 | F110: 522 09 00 | H110: =H111 -> 130
A111: 10852209012 | B111: Выполнение функций государственными органами | C111: 003 | D111: 01 | E111: 08 | F111: 522 09 00 | G111: 012 | H111: 130
A112: 114 | B112: Другие общегосударственные вопросы | C112: 003 | D112: 01 | E112: 14 | H112: =H113 -> 86811
A113: 114002 | B113: Руководство и управление в сфере установленных функций органов государственной власти субъектов Российской Федерации и органов местного самоуправления | C113: 003 | D113: 01 | E113: 14 | F113: 002 00 00 | H113: =H114 -> 86811
A114: 11400204 | B114: Центральный аппарат | C114: 003 | D114: 01 | E114: 14 | F114: 002 04 00 | H114: =H115 -> 86811
A115: 11400204012 | B115: Выполнение функций государственными органами | C115: 003 | D115: 01 | E115: 14 | F115: 002 04 00 | G115: 012 | H115: 86811
A116: 2 | B116: Национальная оборона | C116: 003 | D116: 02 | H116: =H117 -> 200
A117: 204 | B117: Мобилизационная подготовка экономики | C117: 003 | D117: 02 | E117: 04 | H117: =H118 -> 200
A118: 204209 | B118: Реализация государственных функций по мобилизационной подготовке экономики | C118: 003 | D118: 02 | E118: 04 | F118: 209 00 00 | H118: =H119 -> 200
A119: 20420901 | B119: Мероприятия по обеспечению мобилизационной готовности экономики | C119: 003 | D119: 02 | E119: 04 | F119: 209 01 00 | H119: =H120 -> 200
A120: 20420901012 | B120: Выполнение функций государственными органами | C120: 003 | D120: 02 | E120: 04 | F120: 209 01 00 | G120: 012 | H120: 200
A121: 3 | B121: Национальная безопасность и правоохранительная деятельность | C121: 003 | D121: 03 | H121: =H122+H131 -> 69
A122: 309 | B122: Защита населения и территории от последствий чрезвычайных ситуаций природного и техногенного характера, гражданская оборона | C122: 003 | D122: 03 | E122: 09 | H122: =H123 -> 69
A123: 309219 | B123: Мероприятия по гражданской обороне | C123: 003 | D123: 03 | E123: 09 | F123: 219 00 00 | H123: =H124 -> 69
A124: 30921901 | B124: Подготовка населения и организаций к действиям в чрезвычайной ситуации в мирное и военное время | C124: 003 | D124: 03 | E124: 09 | F124: 219 01 00 | H124: =H125 -> 69
A125: 30921901012 | B125: Выполнение функций государственными органами | C125: 003 | D125: 03 | E125: 09 | F125: 219 01 00 | G125: 012 | H125: 69
A126: 7 | B126: Образование | C126: 003 | D126: 07 | H126: =H127 -> 62
A127: 707 | B127: Молодежная политика и оздоровление детей | C127: 003 | D127: 07 | E127: 07 | H127: =H128 -> 62
A128: 707432 | B128: Мероприятия по проведению оздоровительной кампании детей | C128: 003 | D128: 07 | E128: 07 | F128: 432 00 00 | H128: =H129 -> 62
A129: 70743202 | B129: Оздоровление детей | C129: 003 | D129: 07 | E129: 07 | F129: 432 02 00 | H129: =H130 -> 62
A130: 70743202001 | B130: Выполнение функций бюджетными учреждениями | C130: 003 | D130: 07 | E130: 07 | F130: 432 02 00 | G130: 001 | H130: 62
A132: 0 | B132: Министерство жилищно-коммунального хозяйства Московской области | C132: 004 | H132: =H133+H138+H143+H148+H170 -> 1381721
A133: 2 | B133: Национальная оборона | C133: 004 | D133: 02 | H133: =H134 -> 200
A134: 204 | B134: Мобилизационная подготовка экономики | C134: 004 | D134: 02 | E134: 04 | H134: =H135 -> 200
A135: 204209 | B135: Реализация государственных функций по мобилизационной подготовке экономики | C135: 004 | D135: 02 | E135: 04 | F135: 209 00 00 | H135: =H136 -> 200
A136: 20420901 | B136: Мероприятия по обеспечению мобилизационной готовности экономики | C136: 004 | D136: 02 | E136: 04 | F136: 209 01 00 | H136: =H137 -> 200
A137: 20420901012 | B137: Выполнение функций государственными органами | C137: 004 | D137: 02 | E137: 04 | F137: 209 01 00 | G137: 012 | H137: 200
A138: 3 | B138: Национальная безопасность и правоохранительная деятельность | C138: 004 | D138: 03 | H138: =H139 -> 78
A139: 309 | B139: Защита населения и территории от последствий чрезвычайных ситуаций природного и техногенного характера, гражданская оборона | C139: 004 | D139: 03 | E139: 09 | H139: =H140 -> 78
A140: 309219 | B140: Мероприятия по гражданской обороне | C140: 004 | D140: 03 | E140: 09 | F140: 219 00 00 | H140: =H141 -> 78
A141: 30921901 | B141: Подготовка населения и организаций к действиям в чрезвычайной ситуации в мирное и военное время | C141: 004 | D141: 03 | E141: 09 | F141: 219 01 00 | H141: =H142 -> 78
A142: 30921901012 | B142: Выполнение функций государственными органами | C142: 004 | D142: 03 | E142: 09 | F142: 219 01 00 | G142: 012 | H142: 78
A143: 4 | B143: Национальная экономика | C143: 004 | D143: 04 | H143: =H144 -> 500000
A144: 412 | B144: Другие вопросы в области национальной экономики | C144: 004 | D144: 04 | E144: 12 | H144: =H145 -> 500000
A145: 412340 | B145: Реализация государственных функций в области национальной экономики | C145: 004 | D145: 04 | E145: 12 | F145: 340 00 00 | H145: =H146 -> 500000
A146: 41234004 | B146: Мероприятия в области гражданской промышленности | C146: 004 | D146: 04 | E146: 12 | F146: 340 04 00 | H146: =H147 -> 500000
A147: 41234004006 | B147: Субсидии юридическим лицам | C147: 004 | D147: 04 | E147: 12 | F147: 340 04 00 | G147: 006 | H147: 500000
A148: 5 | B148: Жилищно - коммунальное хозяйство | C148: 004 | D148: 05 | H148: =H149+H157+H162 -> 881399
A149: 501 | B149: Жилищное хозяйство | C149: 004 | D149: 05 | E149: 01 | H149: =H150+H154 -> 384531
A150: 501102 | B150: Бюджетные инвестиции в объекты капитального строительства, не включенные в целевые программы | C150: 004 | D150: 05 | E150: 01 | F150: 102 00 00 | H150: =H151 -> 190153
A151: 50110201 | B151: Бюджетные инвестиции в объекты капитального строительства государственной собственности субъектов Российской Федерации (объекты капитального строительства собственности муниципальных образований) | C151: 004 | D151: 05 | E151: 01 | F151: 102 01 00 | H151: =H152 -> 190153
A152: 5011020102 | B152: Бюджетные инвестиции в объекты капитального строительства собственности муниципальных образований | C152: 004 | D152: 05 | E152: 01 | F152: 102 01 02 | H152: =H153 -> 190153
A153: 5011020102003 | B153: Бюджетные инвестиции | C153: 004 | D153: 05 | E153: 01 | F153: 102 01 02 | G153: 003 | H153: 190153
A154: 501104 | B154: Федеральная целевая программа "Жилище" на 2002 - 2010 годы (второй этап) | C154: 004 | D154: 05 | E154: 01 | F154: 104 00 00 | H154: =H155 -> 194378
A155: 50110407 | B155: Расходы общепрограммного характера по федеральной целевой программе "Жилище" на 2002 - 2010 годы (второй этап) | C155: 004 | D155: 05 | E155: 01 | F155: 104 07 00 | H155: =H156 -> 194378
A156: 50110407012 | B156: Выполнение функций государственными органами | C156: 004 | D156: 05 | E156: 01 | F156: 104 07 00 | G156: 012 | H156: 194378
A157: 502 | B157: Коммунальное хозяйство | C157: 004 | D157: 05 | E157: 02 | H157: =H158 -> 143500
A158: 502522 | B158: Региональные целевые программы | C158: 004 | D158: 05 | E158: 02 | F158: 522 00 00 | H158: =H159 -> 143500
A159: 50252201 | B159: Областная целевая программа "Экология Подмосковья на 2007-2008 годы" | C159: 004 | D159: 05 | E159: 02 | F159: 522 01 00 | H159: =H160 -> 143500
A160: 5025220102 | B160: Подпрограмма "Строительство и реконструкция природоохранных объектов коммунального назначения" | C160: 004 | D160: 05 | E160: 02 | F160: 522 01 02 | H160: =H161 -> 143500
A161: 5025220102003 | B161: Бюджетные инвестиции | C161: 004 | D161: 05 | E161: 02 | F161: 522 01 02 | G161: 003 | H161: 143500
A162: 505 | B162: Другие вопросы в области жилищно-коммунального хозяйства | C162: 004 | D162: 05 | E162: 05 | H162: =H163+H168 -> 353368
A163: 505002 | B163: Руководство и управление в сфере установленных функций органов государственной власти субъектов Российской Федерации и органов местного самоуправления | C163: 004 | D163: 05 | E163: 05 | F163: 002 00 00 | H163: =H164+H166 -> 346710
A164: 50500204 | B164: Центральный аппарат | C164: 004 | D164: 05 | E164: 05 | F164: 002 04 00 | H164: =H165 -> 205458
A165: 50500204012 | B165: Выполнение функций государственными органами | C165: 004 | D165: 05 | E165: 05 | F165: 002 04 00 | G165: 012 | H165: =182658+22800 -> 205458
A166: 50500299 | B166: Обеспечение деятельности подведомственных учреждений | C166: 004 | D166: 05 | E166: 05 | F166: 002 99 00 | H166: =H167 -> 141252
A167: 50500299001 | B167: Выполнение функций бюджетными учреждениями | C167: 004 | D167: 05 | E167: 05 | F167: 002 99 00 | G167: 001 | H167: 141252
A168: 505806 | B168: Прочие расходы, не отнесенные к другим целевым статьям | C168: 004 | D168: 05 | E168: 05 | F168: 806 00 00 | H168: =H169 -> 6658
A169: 505806006 | B169: Субсидии юридическим лицам | C169: 004 | D169: 05 | E169: 05 | F169: 806 00 00 | G169: 006 | H169: 6658
A170: 7 | B170: Образование | C170: 004 | D170: 07 | H170: =H171 -> 44
A171: 707 | B171: Молодежная политика и оздоровление детей | C171: 004 | D171: 07 | E171: 07 | H171: =H172 -> 44
A172: 707432 | B172: Мероприятия по проведению оздоровительной кампании детей | C172: 004 | D172: 07 | E172: 07 | F172: 432 00 00 | H172: =H173 -> 44
A173: 70743202 | B173: Оздоровление детей | C173: 004 | D173: 07 | E173: 07 | F173: 432 02 00 | H173: =H174 -> 44
A174: 70743202001 | B174: Выполнение функций бюджетными учреждениями | C174: 004 | D174: 07 | E174: 07 | F174: 432 02 00 | G174: 001 | H174: 44
A176: 0 | B176: Министерство промышленности и науки Московской области | C176: 005 | H176: =H177+H182+H187+H192+H211 -> 226908
A177: 1 | B177: Общегосударственные вопросы | C177: 005 | D177: 01 | H177: =H178 -> 72
A178: 114 | B178: Другие общегосударственные вопросы | C178: 005 | D178: 01 | E178: 14 | H178: =H179 -> 72
A179: 114001 | B179: Руководство и управление в сфере установленных функций | C179: 005 | D179: 01 | E179: 14 | F179: 001 00 00 | H179: =H180 -> 72
A180: 11400164 | B180: Взносы Московской области в общественные организации, фонды, ассоциации | C180: 005 | D180: 01 | E180: 14 | F180: 001 64 00 | H180: =H181 -> 72
A181: 11400164013 | B181: Прочие расходы | C181: 005 | D181: 01 | E181: 14 | F181: 001 64 00 | G181: 013 | H181: 72
A182: 2 | B182: Национальная оборона | C182: 005 | D182: 02 | H182: =H183 -> 750
A183: 204 | B183: Мобилизационная подготовка экономики | C183: 005 | D183: 02 | E183: 04 | H183: =H184 -> 750
A184: 204209 | B184: Реализация государственных функций по мобилизационной подготовке экономики | C184: 005 | D184: 02 | E184: 04 | F184: 209 00 00 | H184: =H185 -> 750
A185: 20420901 | B185: Мероприятия по обеспечению мобилизационной готовности экономики | C185: 005 | D185: 02 | E185: 04 | F185: 209 01 00 | H185: =H186 -> 750
A186: 20420901012 | B186: Выполнение функций государственными органами | C186: 005 | D186: 02 | E186: 04 | F186: 209 01 00 | G186: 012 | H186: 750
A187: 3 | B187: Национальная безопасность и правоохранительная деятельность | C187: 005 | D187: 03 | H187: =H188 -> 615
A188: 309 | B188: Защита населения и территории от последствий чрезвычайных ситуаций природного и техногенного характера, гражданская оборона | C188: 005 | D188: 03 | E188: 09 | H188: =H189 -> 615
A189: 309219 | B189: Мероприятия по гражданской обороне | C189: 005 | D189: 03 | E189: 09 | F189: 219 00 00 | H189: =H190 -> 615
A190: 30921901 | B190: Подготовка населения и организаций к действиям в чрезвычайной ситуации в мирное и военное время | C190: 005 | D190: 03 | E190: 09 | F190: 219 01 00 | H190: =H191 -> 615
A191: 30921901012 | B191: Выполнение функций государственными органами | C191: 005 | D191: 03 | E191: 09 | F191: 219 01 00 | G191: 012 | H191: 615
A192: 4 | B192: Национальная экономика | C192: 005 | D192: 04 | H192: =H193+H198+H202 -> 225371
A193: 401 | B193: Общеэкономические вопросы | C193: 005 | D193: 04 | E193: 01 | H193: =H194 -> 120224
A194: 401002 | B194: Руководство и управление в сфере установленных функций органов государственной власти субъектов Российской Федерации и органов местного самоуправления | C194: 005 | D194: 04 | E194: 01 | F194: 002 00 00 | H194: =H195 -> 120224
A195: 40100204 | B195: Центральный аппарат | C195: 005 | D195: 04 | E195: 01 | F195: 002 04 00 | H195: =H196+H197 -> 120224
A196: 40100204012 | B196: Выполнение функций государственными органами | C196: 005 | D196: 04 | E196: 01 | F196: 002 04 00 | G196: 012 | H196: 119724
A197: 40100204902 | B197: Проведение мероприятий по защите информации, обеспечению безопасности информационных систем и баз данных, содержащих конфиденциальную информацию, в том числе персональные данные населения Московской области | C197: 005 | D197: 04 | E197: 01 | F197: 002 04 00 | G197: 902 | H197: 500
A198: 411 | B198: Прикладные научные исследования в области национальной экономики | C198: 005 | D198: 04 | E198: 11 | H198: =H199 -> 53000
A199: 411081 | B199: Прикладные научные исследования и разработки | C199: 005 | D199: 04 | E199: 11 | F199: 081 00 00 | H199: =H200 -> 53000
A200: 41108169 | B200: Выполнение научно- исследовательских и опытно-конструкторских работ по государственным контрактам | C200: 005 | D200: 04 | E200: 11 | F200: 081 69 00 | H200: =H201 -> 53000
A201: 41108169012 | B201: Выполнение функций государственными органами | C201: 005 | D201: 04 | E201: 11 | F201: 081 69 00 | G201: 012 | H201: 53000
A202: 412 | B202: Другие вопросы в области национальной экономики | C202: 005 | D202: 04 | E202: 12 | H202: =H203 -> 52147
A203: 412340 | B203: Реализация государственных функций в области национальной экономики | C203: 005 | D203: 04 | E203: 12 | F203: 340 00 00 | H203: =H204 -> 52147
A204: 41234083 | B204: Государственная поддержка отдельных отраслей промышленности и топливно-энергетического комплекса | C204: 005 | D204: 04 | E204: 12 | F204: 340 83 00 | H204: =H205+H207+H209 -> 52147
A205: 4123408303 | B205: Субсидии организациям легкой и текстильной промышленности на возмещение части затрат на уплату процентов по кредитам, полученным в российских кредитных организациях в 2007-2010 годах, на осуществление сезонных закупок сырья и материалов для производства товаров народного потребления и продукции производственно-технического назначения | C205: 005 | D205: 04 | E205: 12 | F205: 340 83 03 | H205: =H206 -> 40000
A206: 4123408303006 | B206: Субсидии юридическим лицам | C206: 005 | D206: 04 | E206: 12 | F206: 340 83 03 | G206: 006 | H206: 40000
A207: 4123408304 | B207: Субсидии организациям легкой и текстильной промышленности на возмещение части затрат на уплату процентов по кредитам, полученным в российских кредитных организациях в 2008-2010 годах, на осуществление технического перевооружения | C207: 005 | D207: 04 | E207: 12 | F207: 340 83 04 | H207: =H208 -> 10000
A208: 4123408304006 | B208: Субсидии юридическим лицам | C208: 005 | D208: 04 | E208: 12 | F208: 340 83 04 | G208: 006 | H208: 10000
A209: 4123408320 | B209: Расходы на проведение мероприятий, общегосударственных праздников и юбилейных дат Московской области в области промышленности | C209: 005 | D209: 04 | E209: 12 | F209: 340 83 20 | H209: =H210 -> 2147
... 2361 more rows

Sheet коды (hidden)
A2: ЦСР | D2: ВР
D3: 901 | E3: Взносы Московской области в общественные организации, фонды, ассоциации
D4: 701-823 | E4: Софинансирование дорожных объектов
A5: 802 00 00 | B5: Прочие учреждения в области образования | D5: 902 | E5: Проведение мероприятий по защите информации, обеспечению безопасности информационных систем и баз данных, содержащих конфиденциальную информацию, в том числе персональные данные населения Московской области
A6: 803 00 00 | B6: Расходы на страхование | D6: 903 | E6: Бюджетные инвестиции в объекты капитального строительства собственности муниципальных образований, софинансирование которых осуществляется за счет средств федерального бюджета
A7: 803 00 01 | B7: Расходы на страхование имущества, находящегося в государственной собственности Московской области | D7: 904 | E7: Обеспечение деятельности подразделений УГИБДД ГУВД по Московской области
A8: 803 00 02 | B8: Расходы на страхование гражданской ответственности учреждений, находящихся в государственной собственности Московской области | D8: 905 | E8: Страховые взносы по обязательному медицинскому страхованию неработающего населения
A9: 803 00 03 | B9: Расходы на обязательное страхование гражданской ответственности владельцев транспортных средств | D9: 906 | E9: Работы по гидрометеорологии и мониторингу окружающей среды
A10: 803 00 04 | B10: Расходы на добровольное страхование гражданской ответственности владельцев транспортных средств | D10: 907 | E10: Проведение государственной экологической экспертизы объектов регионального уровня на территории Московской области
A11: 803 00 05 | B11: Расходы на страхование жизни и здоровья медицинских, фармацевтических и других работников государственных учреждений здравоохранения Московской области, работа которых связана с угрозой их жизни и здоровью | D11: 908 | E11: Софинансирование строительства объектов газификации собственности муниципальных образований
A12: 803 00 06 | B12: Расходы на страхование жизни и здоровья членов сборных команд Московской области | D12: 909 | E12: Софинансирование строительства объектов водоснабжения собственности муниципальных образований
A13: 803 00 07 | B13: Расходы на страхование на случай причинения вреда жизни и здоровью лиц, замещающих государственные должности Московской области и государственных гражданских служащих Московской области | D13: 910 | E13: Финансирование расходов, осуществляемое за счет средств, поступающих от сдачи в аренду имущества, закрепленного за государственными организациями
A14: 804 00 00 | B14: Приобретение земельных участков в государственную собственность Московской области | D14: 917 | E14: Субсидии на возмещение за счет средств фонда стимулирования организаций легкой и текстильной промышленности, состоящих на учете в налоговых органах по Московской области, части процентных ставок по кредитам, предоставляемых российскими кредитными организациями
A15: 806 00 00 | B15: Прочие расходы, не отнесенные к другим целевым статьям | D15: 919 | E15: Финансирование транспортным организациям выпадающих доходов, возникающих в связи с предоставлением мер социальной поддержки по проезду отдельных категорий граждан, имеющих место жительства в Московской области, за исключением ветеранов труда, тружеников тыла, реабилитированных лиц и лиц, признанных пострадавшими от политических репрессий, финансирование выпадающих доходов по перевозке отдельных категорий граждан на внутреннем водном транспорте пригородного сообщения
A16: 806 01 00 | B16: Подготовка врачебных кадров | D16: 921 | E16: Финансирование транспортным организациям выпадающих доходов, возникающих в связи с реализацией мер социальной поддержки в части транспортного обслуживания отдельных категорий граждан, имеющих место жительства в городе Москве, паасажирским транспортом общего пользования Московской области
A17: 806 02 00 | B17: Подготовка кадров в сфере культуры и искусства
A18: 806 00 30 | B18: Создание финансового резерва для обеспечения выплаты дополнительных пенсий работникам государственных учреждений Московской области, вышедшим на пенсию
A19: 806 00 31 | B19: Компенсация расходов адвокатам, оказывающим гражданам Российской Федерации на территории Московской области юридическую помощь бесплатно
A20: 806 00 32 | B20: Проведение мероприятий в сфере социальной защиты населения, посвященных знаменательным событиям и памятным датам, установленным в Российской Федерации и Московской области
A21: 806 00 33 | B21: Возмещение стоимости услуг, согласно гарантированному перечню услуг по погребению умерших
A22: 807 00 00 | B22: Меры социальной поддержки по обеспечению проездом граждан
A23: 808 00 00 | B23: Расходы на оценку имущества, подлежащего страхованию
A24: 522 01 00 | B24: Областная целевая программа "Экология Подмосковья на 2007-2008 годы"
A25: 522 02 00 | B25: Областная целевая программа "Жилище" на 2006-2010 годы
A26: 522 02 01 | B26: Подпрограмма "Модернизация объектов коммунальной инфраструктуры"
A27: 522 02 02 | B27: Подпрограмма "Переселение граждан из ветхого и аварийного жилищного фонда"
A28: 522 02 03 | B28: Подпрограмма "Обеспечение земельных участков коммунальной инфраструктурой в целях жилищного строительства"
A29: 522 02 04 | B29: Подпрограмма "Обеспечение жильем молодых семей"
A30: 522 03 00 | B30: Областная целевая программа "Разработка Генерального плана развития Московской области на период до 2020 года"
A31: 522 04 00 | B31: Областная целевая программа "Электронное Подмосковье на период 2006-2009 годы"
A32: 522 05 00 | B32: Областная целевая программа "Сохранение объектов культурного наследия (памятников истории и культуры) в Московской области на 2006-2008 годы"
A33: 522 05 01 | B33: Раздел 1 "Сохранение объектов культурного наследия"
A34: 522 05 02 | B34: Раздел 2 "Государственная охрана объектов культурного наследия"
A35: 522 05 03 | B35: Раздел 3 "Оказание поддержки религиозным организациям в проведении работ по сохранению памятников истории и культуры религиозного назначения"
A36: 522 05 04 | B36: Раздел 4 "Установка памятника создателям славянской азбуки, просветителям славянских народов, святым братьям Кириллу и Мефодию"
A37: 522 06 00 | B37: Областная целевая программа "Развитие образования в Московской области на период 2006-2010 годов"
A38: 522 07 00 | B38: Областная целевая программа "Молодое поколение Подмосковья на 2006-2008 годы"
A39: 522 08 00 | B39: Областная целевая программа "Радиационная безопасность Московской области на 2006-2010 годы"
A40: 522 09 00 | B40: Областная целевая программа "Поддержка Московской областью соотечественников за рубежом на 2007-2010 годы"
A41: 522 10 00 | B41: Областная целевая программа "Обеспечение безопасности дорожного движения на территории Московской области в 2007-2010 годах"
A42: 522 10 01 | B42: Раздел "Предупреждение опасного поведения участников дорожного движения"
A43: 522 10 02 | B43: Раздел "Организационно-планировочные и инженерные меры, направленные на совершенствование организации движения транспортных средств и пешеходов"
A44: 522 10 03 | B44: Раздел "Совершенствование системы подготовки и переподготовки водительского, ремонтного и инженерно-технического персонала"
A45: 522 10 05 | B45: Раздел "Совершенствование контрольно-надзорной деятельности и деятельности по ликвидации последствий и снижению тяжести ДТП"
A46: 522 11 00 | B46: Областная целевая программа "Совершенствование медицинской помощи новорожденным, беременным женщинам и матерям в Московской области на период 2008-2011 годов"
A47: 522 12 00 | B47: Областная целевая программа "Предупреждение и борьба с заболеваниями социального характера в Московской области на период 2008-2011 годов"
A48: 522 12 01 | B48: Подпрограмма "Сахарный диабет"
A49: 522 12 02 | B49: Подпрограмма "Неотложные меры борьбы с туберкулезом"
A50: 522 12 03 | B50: Подпрограмма "О мерах по предупреждению распространения заболевания, вызываемого вирусом иммунодефицита человека (ВИЧ - инфекции)"
A51: 522 12 04 | B51: Подпрограмма "О мерах по развитию онкологической помощи"
A52: 522 12 05 | B52: Подпрограмма "О мерах по предупреждению дальнейшего распространения заболеваний, передаваемых половым путем"
A53: 522 12 06 | B53: Подпрограмма "Вирусные гепатиты"
A54: 522 12 07 | B54: Подпрограмма "Развитие психиатрической помощи"
A55: 522 12 08 | B55: Подпрограмма "Вакцинопрофилактика"
A56: 522 12 09 | B56: Подпрограмма "Профилактика и лечение артериальной гипертонии"
A57: 522 12 10 | B57: Подпрограмма "Общая врачебная практика"

Sheet разделы (hidden)
B1: проект
A2: Код | B2: Наименование раздела и подраздела
D3: фуккцион | E3: свод
A4: 0100 | B4: ОБЩЕГОСУДАРСТВЕННЫЕ ВОПРОСЫ | C4: =SUM(C5:C18) -> 23580617 | D4: =C4-'ведом. 2022-2024'!G11 -> 23580617 | E4: =C4-[1]свод!$E$203 -> 0
A5: 0101 | B5: Функционирование Президента Российской Федерации
A6: 0102 | B6: Функционирование высшего должностного лица субъекта Российской Федерации и муниципального образования | C6: 2114 | D6: =C6-'ведом. 2022-2024'!G12 -> 2114
A7: 0103 | B7: Функционирование законодательных (представительных) органов государственной власти и представительных органов муниципальных образований | C7: =8479+797591 -> 806070 | D7: =C7-'ведом. 2022-2024'!#REF! -> 
A8: 0104 | B8: Функционирование Правительства Российской Федерации, высших исполнительных органов государственной власти субъектов Российской Федерации, местных администраций | C8: 902951 | D8: =C8-'ведом. 2022-2024'!G19 -> 902951
A9: 0105 | B9: Судебная система | C9: 1163086 | D9: =C9-'ведом. 2022-2024'!#REF! -> 
A10: 0106 | B10: Обеспечение деятельности финансовых, налоговых и таможенных органов и органов финансового (финансово-бюджетного) надзора | C10: =5050+2170797+3000+141000 -> 2319847 | D10: =C10-'ведом. 2022-2024'!#REF! -> 
A11: 0107 | B11: Обеспечение проведения выборов и референдумов | C11: 67921 | D11: =C11-'ведом. 2022-2024'!#REF! -> 
A12: 0108 | B12: Международные отношения и международное сотрудничество | C12: =203700+5800 -> 209500 | D12: =C12-'ведом. 2022-2024'!#REF! -> 
A13: 0109 | B13: Государственный материальный резерв
A14: 0110 | B14: Фундаментальные исследования
A15: 0111 | B15: Обслуживание государственного и муниципального долга | C15: 8537000 | D15: =C15-'ведом. 2022-2024'!G497 -> 8537000
A16: 0112 | B16: Резервные фонды | C16: =1500000+55107 -> 1555107 | D16: =C16-'ведом. 2022-2024'!#REF! -> 
A17: 0113 | B17: Прикладные научные исследования в области общегосударственных вопросов
A18: 0114 | B18: Другие общегосударственные вопросы | C18: =26190+27274+720000+375064+3754446+10000+3099047-8621+8621+2000+3000 -> 8017021 | D18: =C18-'ведом. 2022-2024'!G80 -> 8017021
A20: 0200 | B20: НАЦИОНАЛЬНАЯ ОБОРОНА | C20: =SUM(C21:C29) -> 12972 | D20: =C20-'ведом. 2022-2024'!G160 -> 12972 | E20: =C20-[1]свод!$E$204 -> 0
A21: 0201 | B21: Вооруженные Силы Российской Федерации
A22: 0202 | B22: Модернизация Вооруженных Сил Российской Федерации и воинских формирований
A23: 0203 | B23: Мобилизационная и вневойсковая подготовка
A24: 0204 | B24: Мобилизационная подготовка экономики | C24: 12972 | D24: =C24-'ведом. 2022-2024'!#REF! -> 
A25: 0205 | B25: Подготовка и участие в обеспечении коллективной безопасности и миротворческой деятельности;
A26: 0206 | B26: Ядерно-оружейный комплекс
A27: 0207 | B27: Реализация международных обязательств в сфере военно-технического сотрудничества
A28: 0208 | B28: Прикладные научные исследования в области национальной обороны
A29: 0209 | B29: Другие вопросы в области национальной обороны
A31: 0300 | B31: НАЦИОНАЛЬНАЯ БЕЗОПАСНОСТЬ И ПРАВООХРАНИТЕЛЬНАЯ ДЕЯТЕЛЬНОСТЬ | C31: =SUM(C32:C45) -> 16669168 | D31: =C31-'ведом. 2022-2024'!G175 -> 16669168 | E31: =C31-[1]свод!$E$205 -> 0
A32: 0301 | B32: Органы прокуратуры
A33: 0302 | B33: Органы внутренних дел | C33: =315585+11659394+26106 -> 12001085 | D33: =C33-'ведом. 2022-2024'!#REF! -> 
A34: 0303 | B34: Внутренние войска
A35: 0304 | B35: Органы юстиции
A36: 0305 | B36: Система исполнения наказаний | C36: 177958 | D36: =C36-'ведом. 2022-2024'!#REF! -> 
A37: 0306 | B37: Органы безопасности
A38: 0307 | B38: Органы пограничной службы
A39: 0308 | B39: Органы по контролю за оборотом наркотических средств и психотропных веществ | C39: 67662 | D39: =C39-'ведом. 2022-2024'!#REF! -> 
A40: 0309 | B40: Предупреждение и ликвидация последствий чрезвычайных ситуаций природного и техногенного характера, гражданская оборона | C40: 996190 | D40: =C40-'ведом. 2022-2024'!G176 -> 996190
A41: 0310 | B41: Обеспечение пожарной безопасности | C41: =46851+3225689+100000+53733 -> 3426273 | D41: =C41-'ведом. 2022-2024'!#REF! -> 
A42: 0311 | B42: Миграционная политика
A43: 0312 | B43: Модернизация внутренних войск, войск гражданской обороны, а также правоохранительных и иных органов
A44: 0313 | B44: Прикладные научные исследования в области национальной безопасности и правоохранительной деятельности
A45: 0314 | B45: Другие вопросы в области национальной безопасности и правоохранительной деятельности
A47: 0400 | B47: НАЦИОНАЛЬНАЯ ЭКОНОМИКА | C47: =SUM(C48:C59) -> 47268313 | D47: =C47-'ведом. 2022-2024'!G226 -> 47268313 | E47: =C47-[1]свод!$E$206 -> 0
A48: 0401 | B48: Общеэкономические вопросы | C48: =449106+1060+723785 -> 1173951 | D48: =C48-'ведом. 2022-2024'!#REF! -> 
A49: 0402 | B49: Топливно-энергетический комплекс | C49: =139180+153 -> 139333 | D49: =C49-'ведом. 2022-2024'!#REF! -> 
A50: 0403 | B50: Исследование и использование космического пространства
A51: 0404 | B51: Воспроизводство минерально-сырьевой базы
A52: 0405 | B52: Сельское хозяйство и рыболовство | C52: =121513+1781175+10276+669+22224 -> 1935857 | D52: =C52-'ведом. 2022-2024'!#REF! -> 
A53: 0406 | B53: Водные ресурсы | C53: 36721 | D53: =C53-'ведом. 2022-2024'!#REF! -> 
A54: 0407 | B54: Лесное хозяйство
A55: 0408 | B55: Транспорт | C55: =1712331+442920 -> 2155251 | D55: =C55-'ведом. 2022-2024'!G227 -> 2155251
A56: 0409 | B56: Дорожное хозяйство | C56: 35016518 | D56: =C56-'ведом. 2022-2024'!#REF! -> 
A57: 0410 | B57: Связь и информатика | C57: =391523+82000 -> 473523 | D57: =C57-'ведом. 2022-2024'!#REF! -> 
A58: 0411 | B58: Прикладные научные исследования в области национальной экономики | C58: =101000+19000 -> 120000 | D58: =C58-'ведом. 2022-2024'!#REF! -> 
A59: 0412 | B59: Другие вопросы в области национальной экономики | C59: =10506+256+53397+1278437+377300+3110389+6896+537478+800000+42500 -> 6217159 | D59: =C59-'ведом. 2022-2024'!#REF! -> 
A61: 0500 | B61: ЖИЛИЩНО-КОММУНАЛЬНОЕ ХОЗЯЙСТВО | C61: =SUM(C62:C66) -> 2711709 | D61: =C61-'ведом. 2022-2024'!#REF! ->  | E61: =C61-[1]свод!$E$207 -> 0
A62: 0501 | B62: Жилищное хозяйство | C62: =659378+190153 -> 849531 | D62: =C62-'ведом. 2022-2024'!#REF! -> 
A63: 0502 | B63: Коммунальное хозяйство | C63: =371840+283200+143500 -> 798540 | D63: =C63-'ведом. 2022-2024'!#REF! -> 
A64: 0503 | B64: Благоустройство
A65: 0504 | B65: Прикладные научные исследования в области жилищно- коммунального хозяйства
A66: 0505 | B66: Другие вопросы в области жилищно-коммунального хозяйства | C66: =500+3969+147910+888459+22800 -> 1063638 | D66: =C66-'ведом. 2022-2024'!#REF! -> 
A68: 0600 | B68: ОХРАНА ОКРУЖАЮЩЕЙ СРЕДЫ | C68: =SUM(C69:C73) -> 487816 | D68: =C68-'ведом. 2022-2024'!#REF! ->  | E68: =C68-[1]свод!$E$208 -> 0
A69: 0601 | B69: Экологический контроль
A70: 0602 | B70: Сбор, удаление отходов и очистка сточных вод
A71: 0603 | B71: Охрана объектов растительного и животного мира и среды их обитания | C71: =5794-669 -> 5125 | D71: =C71-'ведом. 2022-2024'!#REF! -> 
A72: 0604 | B72: Прикладные научные исследования в области охраны окружающей среды
A73: 0605 | B73: Другие вопросы в области охраны окружающей среды | C73: =850+190719+291122 -> 482691 | D73: =C73-'ведом. 2022-2024'!#REF! -> 
A75: 0700 | B75: ОБРАЗОВАНИЕ | C75: =SUM(C76:C84) -> 15977562 | D75: =C75-'ведом. 2022-2024'!G343 -> 15977562 | E75: =C75-[1]свод!$E$209 -> 0
A76: 0701 | B76: Дошкольное образование | C76: 45109 | D76: =C76-'ведом. 2022-2024'!#REF! -> 
A77: 0702 | B77: Общее образование | C77: =16320+1579553+35000-120708 -> 1510165 | D77: =C77-'ведом. 2022-2024'!#REF! -> 
A78: 0703 | B78: Начальное профессиональное образование | C78: 4671918 | D78: =C78-'ведом. 2022-2024'!#REF! -> 
A79: 0704 | B79: Среднее профессиональное образование | C79: =30220+3196696+9500-18000 -> 3218416 | D79: =C79-'ведом. 2022-2024'!#REF! -> 
A80: 0705 | B80: Профессиональная подготовка, переподготовка и повышение квалификации | C80: 419843 | D80: =C80-'ведом. 2022-2024'!#REF! -> 
A81: 0706 | B81: Высшее и послевузовское профессиональное образование | C81: =507500+3215131 -> 3722631 | D81: =C81-'ведом. 2022-2024'!#REF! -> 
A82: 0707 | B82: Молодежная политика и оздоровление детей | C82: =73808+458+39313+268054 -> 381633 | D82: =C82-'ведом. 2022-2024'!G364 -> 381633
A83: 0708 | B83: Прикладные научные исследования в области образования | C83: 5625 | D83: =C83-'ведом. 2022-2024'!#REF! -> 
A84: 0709 | B84: Другие вопросы в области образования | C84: =520+80550+787674+1057879+75599 -> 2002222 | D84: =C84-'ведом. 2022-2024'!#REF! -> 
A86: 0800 | B86: КУЛЬТУРА, КИНЕМАТОГРАФИЯ И СРЕДСТВА МАССОВОЙ ИНФОРМАЦИИ | C86: =SUM(C87:C92) -> 4620983 | D86: =C86-'ведом. 2022-2024'!G395 -> 4620983 | E86: =C86-[1]свод!$E$210 -> 0
A87: 0801 | B87: Культура | C87: =2049557+253950+3000 -> 2306507 | D87: =C87-'ведом. 2022-2024'!G396 -> 2306507
A88: 0802 | B88: Кинематография
A89: 0803 | B89: Телевидение и радиовещание | C89: 915009 | D89: =C89-'ведом. 2022-2024'!#REF! -> 
A90: 0804 | B90: Периодическая печать и издательства | C90: 482232 | D90: =C90-'ведом. 2022-2024'!#REF! -> 
A91: 0805 | B91: Прикладные научные исследования в области культуры, кинематографии и средств массовой информации
A92: 0806 | B92: Другие вопросы в области культуры, кинематографии и средств массовой информации | C92: =1210+12189+1700+611492+290644 -> 917235 | D92: =C92-'ведом. 2022-2024'!#REF! -> 
A94: 0900 | B94: ЗДРАВООХРАНЕНИЕ, ФИЗИЧЕСКАЯ КУЛЬТУРА И СПОРТ | C94: =SUM(C95:C104) -> 37148428 | D94: =C94-'ведом. 2022-2024'!#REF! ->  | E94: =C94-[1]свод!$E$211 -> 0
A95: 0901 | B95: Стационарная медицинская помощь | C95: =820590+7752658+2890840+2783923 -> 14248011 | D95: =C95-'ведом. 2022-2024'!#REF! -> 
A96: 0902 | B96: Амбулаторная помощь | C96: 662232 | D96: =C96-'ведом. 2022-2024'!#REF! -> 
A97: 0903 | B97: Медицинская помощь в дневных стационарах всех типов
A98: 0904 | B98: Скорая медицинская помощь
A99: 0905 | B99: Санаторно-оздоровительная помощь | C99: 724098 | D99: =C99-'ведом. 2022-2024'!#REF! -> 
A100: 0906 | B100: Заготовка, переработка, хранение и обеспечение безопасности донорской крови и её компонентов | C100: 377981 | D100: =C100-'ведом. 2022-2024'!#REF! -> 
A101: 0907 | B101: Санитарно-эпидемиологическое благополучие
A102: 0908 | B102: Физическая культура и спорт | C102: =7800+1408321+370000+6700 -> 1792821 | D102: =C102-'ведом. 2022-2024'!#REF! -> 
A103: 0909 | B103: Прикладные научные исследования в области здравоохранения, физической культуры и спорта | C103: 269728 | D103: =C103-'ведом. 2022-2024'!#REF! -> 
A104: 0910 | B104: Другие вопросы в области здравоохранения, физической культуры и спорта | C104: =700+77619-4704+1061358+45000+20330903+21267+285337+40000-2783923 -> 19073557 | D104: =C104-'ведом. 2022-2024'!#REF! -> 
A106: 1000 | B106: СОЦИАЛЬНАЯ ПОЛИТИКА | C106: =SUM(C107:C112) -> 43410314 | D106: =C106-'ведом. 2022-2024'!G454 -> 43410314 | E106: =C106-[1]свод!$E$212 -> 0
A107: 1001 | B107: Пенсионное обеспечение | C107: 142633 | D107: =C107-'ведом. 2022-2024'!G455 -> 142633
A108: 1002 | B108: Социальное обслуживание населения | C108: =6842258-285000+384800 -> 6942058 | D108: =C108-'ведом. 2022-2024'!#REF! -> 
A109: 1003 | B109: Социальное обеспечение населения | C109: =12882130+394827+10076960+5733862+51761+768117+120000-5045+375914+84409+52500+415975 -> 30951410 | D109: =C109-'ведом. 2022-2024'!G461 -> 30951410
A110: 1004 | B110: Охрана семьи и детства | C110: =580+2000+2871367 -> 2873947 | D110: =C110-'ведом. 2022-2024'!#REF! -> 
A111: 1005 | B111: Прикладные научные исследования в области социальной политики
A112: 1006 | B112: Другие вопросы в области социальной политики | C112: =78766+7647+85664+1988045+285000+55144 -> 2500266 | D112: =C112-'ведом. 2022-2024'!#REF! -> 
A114: 1100 | B114: МЕЖБЮДЖЕТНЫЕ ТРАНСФЕРТЫ | C114: =SUM(C115:C119) -> 58232166 | D114: =C114-'ведом. 2022-2024'!#REF! ->  | E114: =C114-[1]свод!$E$213 -> 0
A115: 1101 | B115: Дотации бюджетам субъектов Российской Федерации и муниципальных образований | C115: =5289811-576383 -> 4713428 | D115: =C115-'ведом. 2022-2024'!#REF! ->  | E115: =C115-[1]свод!$E$215 -> 0
A116: 1102 | B116: Субсидии бюджетам субъектов Российской Федерации и муниципальных образований (межбюджетные субсидии) | C116: =45137+1422412-8000+3516363+1120817+115530+4450200+25040+1454659+1115615+610471+973579+151146+160000+297200+281+400000+1000000 -> 16850450 | D116: =C116-'ведом. 2022-2024'!#REF! ->  | E116: =C116-[1]свод!$E$222 -> 0
A117: 1103 | B117: Субвенции бюджетам субъектов Российской Федерации и муниципальных образований | C117: =4668019+281+70477+805870+159381+90840+27834+1551298+281597+26495709+21661+8000+146682-281+175000+7400+37+2088 -> 34511893 | D117: =C117-'ведом. 2022-2024'!#REF! ->  | E117: =C117-[1]свод!$E$261 -> 0
A118: 1104 | B118: Иные межбюджетные трансферты | C118: =200000+23893+6013666-141000-21267-7647-3911250 -> 2156395 | D118: =C118-'ведом. 2022-2024'!#REF! ->  | E118: =C118-[1]свод!$E$292 -> 0
A119: 1105 | B119: Межбюджетные трансферты бюджетам государственных внебюджетных фондов
A120: ВСЕГО | C120: =C4+C20+C31+C47+C61+C68+C75+C86+C94+C106+C114 -> 250120048 | D120: =C120-'ведом. 2022-2024'!#REF! ->  | E120: =C120-[1]свод!$E$300 -> 0
B122: ведомственная | C122: =C120-'Ведомственная 2008'!H2619 -> 0
B123: функцион | C123: =C120-'ведом. 2022-2024'!#REF! -> 
B125: Резерв было всего | C125: 6013666 | D125: 3911250
C126: -141000
C127: -21267
C128: -7647
B129: Остаток в Думу | C129: =C125+C126+C127+C128 -> 5843752
B130: спец продукция, для допуска транспортных средст ГУВД МО | C130: -26106
B131: выплата надбавок к денежному довольствию личного состава Гл. упр. региональной безопасности МО | C131: -100000
B132: замены электропроводки и установки противопожарной сигнализации для Лобненского техникума строительной индустрии и предпринимательства предусмотреть Министерству строительного комплекса | C132: -9500
B133: проведение капитального ремонта комплекса зданий, в котором располагается министерство жилищно-коммунального хозяйства | C133: -22800
B134: открытие пяти отделений на базе государственного учреждения Московской области «Детская юношеская спортивная школа олимпийского резерва по футболу» (Комитет физ-ры) | C134: -15000
B135: открытие государственного учреждения дополнительного образования «Детско-юношеская спортивная школа по гандболу» на 500 человек (Комитет физ-ры) | C135: -2000
B136: проведение спортивных соревнований на призы Правительства Московской области в рамках международных соревнований мемориала братьев Знаменских (Комитет физ-ры) | C136: -6700
B137: Мин. Потребительского рынка | C137: -42500
B138: Премия Думы | C138: -8621
B139: АПК | C139: -17956
B142: Минус с остатка | C142: =SUM(C130:C141) -> -251183
B143: Остаток резерва | C143: =C129+C142 -> 5592569

Sheet Функц. 2022-2024 (hidden)
L1: Приложение 3
H2: к отчету об исполнении бюджета городского округа Лыткарино за 2022 год
A7: Расходы городского округа Лыткарино в 2022 году по разделам, подразделам, целевым статьям (муниципальным программам городского округа Лыткарино и непрограммным направлениям деятельности),группам и подгруппам видов расходов классификации расходов
M8: (тыс.руб.)
A9: Наименования | B9: Рз | C9: ПР | D9: ЦСР | E9: ВР | F9: Утвержден-ный план | G9: В т.ч. Субвенции, субсидии, иные межбюджет-ные трансферты | H9: Уточненный план | I9: В т.ч. Субвенции, субсидии, иные межбюджет-ные трансферты | J9: Исполнение | K9: % испол-нения | L9: В т.ч. Субвенции, субсидии, иные межбюджет-ные трансферты | M9: % испол-нения
A10: 1 | B10: 2 | C10: 3 | D10: 4 | E10: 5 | F10: 6 | G10: 7 | H10: 8 | I10: 9 | J10: 10 | K10: 11 | L10: 12 | M10: 13
A11: Общегосударственные вопросы | B11: 01 | F11: =F12+F39+F100+F144+F164+F19 -> 292204.2 | G11: =G12+G39+G100+G144+G164+G19 -> 7651.8 | H11: 292263.2 | I11: 7710.8 | J11: =J12+J39+J100+J144+J164+J19 -> 288978.3 | K11: =J11/H11 -> 0.9887604734 | L11: =L12+L39+L100+L144+L164 -> 7270 | M11: =L11/I11 -> 0.9428334284
A12: Функционирование высшего должностного лица субъекта Российской Федерации и муниципального образования | B12: 01 | C12: 02 | F12: =F13 -> 2503 | H12: =H13 -> 2503 | J12: =J13 -> 2503 | K12: =J12/H12 -> 1
A13: Муниципальная программа «Управление имуществом и муниципальными финансами» | B13: 01 | C13: 02 | D13: 12 0 00 00000 | F13: =F14 -> 2503 | H13: =H14 -> 2503 | J13: =J14 -> 2503 | K13: 1
A14: Обеспечивающая подпрограмма | B14: 01 | C14: 02 | D14: 12 5 00 00000 | F14: =F15 -> 2503 | H14: =H15 -> 2503 | J14: =J15 -> 2503 | K14: 1
A15: Основное мероприятие «Создание условий для реализации полномочий органов местного самоуправления» | B15: 01 | C15: 02 | D15: 12 5 01 00000 | F15: =F16 -> 2503 | H15: =H16 -> 2503 | J15: =J16 -> 2503 | K15: 1
A16: Функционирование высшего должностного лица | B16: 01 | C16: 02 | D16: 12 5 01 00110 | F16: ='ведом. 2022-2024'!AD16 -> 2503 | H16: ='ведом. 2022-2024'!AF16 -> 2503 | J16: =F16 -> 2503 | K16: 1
A17: Расходы на выплаты персоналу в целях обеспечения выполнения функций государственными (муниципальными) органами, казенными учреждениями, органами управления государственными внебюджетными фондами | B17: 01 | C17: 02 | D17: 12 5 01 00110 | E17: 100 | F17: =F18 -> 2503 | H17: =H18 -> 2503 | J17: =J18 -> 2503 | K17: 1
A18: Расходы на выплаты персоналу государственных (муниципальных) органов | B18: 01 | C18: 02 | D18: 12 5 01 00110 | E18: 120 | F18: ='ведом. 2022-2024'!AD18 -> 2503 | H18: ='ведом. 2022-2024'!AF18 -> 2503 | J18: ='ведом. 2022-2024'!AF18 -> 2503 | K18: 1
A19: Функционирование законодательных (представительных) органов государственной власти и представительных органов муниципальных образований | B19: 01 | C19: 03 | F19: =F20 -> 12327.3 | H19: =H20 -> 12327.3 | J19: =J20 -> 12216.5 | K19: 0.9910118193
A20: Руководство и управление в сфере установленных функций органов местного самоуправления | B20: 01 | C20: 03 | D20: 95 0 00 00000 | F20: =F21+F24+F27 -> 12327.3 | H20: =H21+H24+H27 -> 12327.3 | J20: =J21+J24+J27 -> 12216.5 | K20: 0.9910118193
A21: Председатель представительного органа местного самоуправления | B21: 01 | C21: 03 | D21: 95 0 00 00010 | F21: =F22 -> 2153 | H21: =H22 -> 2153 | J21: =J22 -> 2152.9 | K21: 0.9999535532
A22: Расходы на выплаты персоналу в целях обеспечения выполнения функций государственными (муниципальными) органами, казенными учреждениями, органами управления государственными внебюджетными фондами | B22: 01 | C22: 03 | D22: 95 0 00 00010 | E22: 100 | F22: =F23 -> 2153 | H22: =H23 -> 2153 | J22: =J23 -> 2152.9 | K22: 0.9999535532
A23: Расходы на выплаты персоналу государственных (муниципальных) органов | B23: 01 | C23: 03 | D23: 95 0 00 00010 | E23: 120 | F23: ='ведом. 2022-2024'!AD510 -> 2153 | H23: 2153 | J23: ='ведом. 2022-2024'!AF510 -> 2152.9 | K23: 0.9999535532
A24: Депутат представительного органа местного самоуправления на постоянной основе | B24: 01 | C24: 03 | D24: 95 0 00 00020 | F24: =F26 -> 1751.2 | H24: =H26 -> 1751.2 | J24: =J26 -> 1749.1 | K24: 0.9988008223
A25: Расходы на выплаты персоналу в целях обеспечения выполнения функций государственными (муниципальными) органами, казенными учреждениями, органами управления государственными внебюджетными фондами | B25: 01 | C25: 03 | D25: 95 0 00 00020 | E25: 100 | F25: =F26 -> 1751.2 | H25: =H26 -> 1751.2 | J25: =J26 -> 1749.1 | K25: 0.9988008223
A26: Расходы на выплаты персоналу государственных (муниципальных) органов | B26: 01 | C26: 03 | D26: 95 0 00 00020 | E26: 120 | F26: ='ведом. 2022-2024'!AD513 -> 1751.2 | H26: 1751.2 | J26: ='ведом. 2022-2024'!AF513 -> 1749.1 | K26: 0.9988008223
A27: Расходы на содержание представительного органа муниципального образования | B27: 01 | C27: 03 | D27: 95 0 00 00030 | F27: =F28+F33+F36 -> 8423.1 | H27: =H28+H33+H36 -> 8423.1 | J27: =J28+J33+J36 -> 8314.5 | K27: 0.9871068846
A28: Расходы на содержание представительного органа муниципального образования( обеспечение деятельности) | B28: 01 | C28: 03 | D28: 95 0 00 00031 | F28: =F29+F31 -> 1742.6 | H28: =H29+H31 -> 1742.6 | J28: =J29+J31 -> 1662 | K28: 0.9537472742
A29: Закупка товаров, работ и услуг для обеспечения государственных (муниципальных) нужд | B29: 01 | C29: 03 | D29: 95 0 00 00031 | E29: 200 | F29: =F30 -> 1707.1 | H29: =H30 -> 1707.1 | J29: =J30 -> 1627.6 | K29: 0.9534297932
A30: Иные закупки товаров, работ и услуг для обеспечения государственных (муниципальных) нужд | B30: 01 | C30: 03 | D30: 95 0 00 00031 | E30: 240 | F30: ='ведом. 2022-2024'!AD517 -> 1707.1 | H30: 1707.1 | J30: ='ведом. 2022-2024'!AF517 -> 1627.6 | K30: 0.9534297932
A31: Иные бюджетные ассигнования | B31: 01 | C31: 03 | D31: 95 0 00 00031 | E31: 800 | F31: =F32 -> 35.5 | H31: =H32 -> 35.5 | J31: =J32 -> 34.4 | K31: 0.9690140845
A32: Уплата налогов, сборов и иных платежей | B32: 01 | C32: 03 | D32: 95 0 00 00031 | E32: 850 | F32: ='ведом. 2022-2024'!AD519 -> 35.5 | H32: 35.5 | J32: ='ведом. 2022-2024'!AF519 -> 34.4 | K32: 0.9690140845
A33: Расходы на содержание представительного органа муниципального образования (расходы на содержание лиц, замещающих должности, не являющиеся должностями муниципальной службы) | B33: 01 | C33: 03 | D33: 95 0 00 00032 | F33: =F34 -> 3267.1 | H33: =H34 -> 3267.1 | J33: =J34 -> 3240.6 | K33: 0.9918888311
A34: Расходы на выплаты персоналу в целях обеспечения выполнения функций государственными (муниципальными) органами, казенными учреждениями, органами управления государственными внебюджетными фондами | B34: 01 | C34: 03 | D34: 95 0 00 00032 | E34: 100 | F34: =F35 -> 3267.1 | H34: =H35 -> 3267.1 | J34: =J35 -> 3240.6 | K34: 0.9918888311
A35: Расходы на выплаты персоналу государственных (муниципальных) органов | B35: 01 | C35: 03 | D35: 95 0 00 00032 | E35: 120 | F35: ='ведом. 2022-2024'!AD522 -> 3267.1 | H35: 3267.1 | J35: ='ведом. 2022-2024'!AF522 -> 3240.6 | K35: 0.9918888311
A36: Расходы на содержание представительного органа муниципального образования (расходы на содержание лиц, замещающих должности муниципальной службы) | B36: 01 | C36: 03 | D36: 95 0 00 00033 | F36: =F37 -> 3413.4 | H36: =H37 -> 3413.4 | J36: =J37 -> 3411.9 | K36: 0.9995605555
A37: Расходы на выплаты персоналу в целях обеспечения выполнения функций государственными (муниципальными) органами, казенными учреждениями, органами управления государственными внебюджетными фондами | B37: 01 | C37: 03 | D37: 95 0 00 00033 | E37: 100 | F37: =F38 -> 3413.4 | H37: =H38 -> 3413.4 | J37: =J38 -> 3411.9 | K37: 0.9995605555
A38: Расходы на выплаты персоналу государственных (муниципальных) органов | B38: 01 | C38: 03 | D38: 95 0 00 00033 | E38: 120 | F38: ='ведом. 2022-2024'!AD525 -> 3413.4 | H38: 3413.4 | J38: ='ведом. 2022-2024'!AF525 -> 3411.9 | K38: 0.9995605555
A39: Функционирование Правительства Российской Федерации, высших исполнительных органов государственной власти субъектов Российской Федерации, местных администраций | B39: 01 | C39: 04 | F39: =F40+F52+F60+F82+F88+F96 -> 71613.1 | G39: =G40+G52+G60+G82+G88+G96 -> 4333.8 | H39: 71613.1 | I39: 4333.8 | J39: 69316.2 | K39: 0.9679262593 | L39: =L40+L52+L60+L82+L88+L96 -> 3960 | M39: =L39/I39 -> 0.9137477502
A40: Муниципальная программа «Культура» | B40: 01 | C40: 04 | D40: 02 0 00 00000 | F40: =F41 -> 1634 | G40: 1606 | H40: 1634 | I40: 1606 | J40: 1634 | K40: 1 | L40: 1606 | M40: 1
A41: Подпрограмма «Развитие архивного дела в Московской области» | B41: 01 | C41: 04 | D41: 02 7 00 00000 | F41: =F42+F46 -> 1634 | G41: 1606 | H41: 1634 | I41: =I42+I46 -> 1606 | J41: 1634 | K41: 1 | L41: 1606 | M41: 1
A42: Основное мероприятие «Хранение, комплектование, учет и использование архивных документов в муниципальных архивах» | B42: 01 | C42: 04 | D42: 02 7 01 00000 | F42: =F43 -> 28 | H42: =H43 -> 28 | J42: =J43 -> 28 | K42: 1
A43: Расходы на обеспечение деятельности (оказание услуг) муниципальных архивов | B43: 01 | C43: 04 | D43: 02 7 01 06160 | F43: =F44 -> 28 | H43: =H44 -> 28 | J43: =J44 -> 28 | K43: 1
A44: Закупка товаров, работ и услуг для обеспечения государственных (муниципальных) нужд | B44: 01 | C44: 04 | D44: 02 7 01 06160 | E44: 200 | F44: =F45 -> 28 | H44: =H45 -> 28 | J44: =J45 -> 28 | K44: 1
A45: Иные закупки товаров, работ и услуг для обеспечения государственных (муниципальных) нужд | B45: 01 | C45: 04 | D45: 02 7 01 06160 | E45: 240 | F45: ='ведом. 2022-2024'!AD25 -> 28 | H45: ='ведом. 2022-2024'!AF25 -> 28 | J45: ='ведом. 2022-2024'!AF25 -> 28 | K45: 1
A46: Основное мероприятие «Временное хранение, комплектование, учет и использование архивных документов, относящихся к собственности Московской области и временно хранящихся в муниципальных архивах» | B46: 01 | C46: 04 | D46: 02 7 02 00000 | F46: =F47 -> 1606 | G46: 1606 | H46: 1606 | I46: 1606 | J46: 1606 | K46: 1 | L46: 1606 | M46: 1
A47: Осуществление переданных полномочий по временному хранению, комплектованию, учету и использованию архивных документов, относящихся к собственности Московской области и временно хранящихся в муниципальных архивах | B47: 01 | C47: 04 | D47: 02 7 02 60690 | F47: =F48+F50 -> 1606 | G47: 1606 | H47: 1606 | I47: =I48+I50 -> 1606 | J47: 1606 | K47: 1 | L47: 1606 | M47: 1
A48: Расходы на выплаты персоналу в целях обеспечения выполнения функций государственными (муниципальными) органами, казенными учреждениями, органами управления государственными внебюджетными фондами | B48: 01 | C48: 04 | D48: 02 7 02 60690 | E48: 100 | F48: =F49 -> 1540.4 | G48: 1540.4 | H48: 1540.4 | I48: 1540.4 | J48: 1540.4 | K48: 1 | L48: 1540.4 | M48: 1
A49: Расходы на выплаты персоналу государственных (муниципальных) органов | B49: 01 | C49: 04 | D49: 02 7 02 60690 | E49: 120 | F49: ='ведом. 2022-2024'!AD29 -> 1540.4 | G49: =F49 -> 1540.4 | H49: ='ведом. 2022-2024'!AF29 -> 1540.4 | I49: =H49 -> 1540.4 | J49: ='ведом. 2022-2024'!AF29 -> 1540.4 | K49: 1 | L49: =J49 -> 1540.4 | M49: 1
A50: Закупка товаров, работ и услуг для обеспечения государственных (муниципальных) нужд | B50: 01 | C50: 04 | D50: 02 7 02 60690 | E50: 200 | F50: =F51 -> 65.6 | G50: 65.6 | H50: 65.6 | I50: 65.6 | J50: 65.6 | K50: 1 | L50: 65.6 | M50: 1
A51: Иные закупки товаров, работ и услуг для обеспечения государственных (муниципальных) нужд | B51: 01 | C51: 04 | D51: 02 7 02 60690 | E51: 240 | F51: ='ведом. 2022-2024'!AD31 -> 65.6 | G51: =F51 -> 65.6 | H51: ='ведом. 2022-2024'!AF31 -> 65.6 | I51: =H51 -> 65.6 | J51: ='ведом. 2022-2024'!AF31 -> 65.6 | K51: 1 | L51: =J51 -> 65.6 | M51: 1
A52: Муниципальная программа «Социальная защита населения» | B52: 01 | C52: 04 | D52: 04 0 00 00000 | F52: =F53 -> 2288 | G52: 2288 | H52: 2288 | I52: 2288 | J52: 2281.3 | K52: 0.9970716783 | L52: 2281.3 | M52: 0.9970716783
A53: Обеспечивающая подпрограмма | B53: 01 | C53: 04 | D53: 04 5 00 00000 | F53: 2288 | G53: 2288 | H53: 2288 | I53: 2288 | J53: 2281.3 | K53: 0.9970716783 | L53: 2281.3 | M53: 0.9970716783
A54: Основное мероприятие «Создание условий для реализации полномочий органов государственной власти Московской области и государственных органов Московской области» | B54: 01 | C54: 04 | D54: 04 5 01 00000 | F54: 2288 | G54: 2288 | H54: 2288 | I54: 2288 | J54: 2281.3 | K54: 0.9970716783 | L54: 2281.3 | M54: 0.9970716783
A55: Обеспечение переданного государственного полномочия Московской области по созданию комиссий по делам несовершеннолетних и защите их прав муниципальных образований Московской области | B55: 01 | C55: 04 | D55: 04 5 01 60680 | F55: =F56+F58 -> 2288 | G55: 2288 | H55: 2288 | I55: =I56+I58 -> 2288 | J55: 2281.3 | K55: 0.9970716783 | L55: 2281.3 | M55: 0.9970716783
A56: Расходы на выплаты персоналу в целях обеспечения выполнения функций государственными (муниципальными) органами, казенными учреждениями, органами управления государственными внебюджетными фондами | B56: 01 | C56: 04 | D56: 04 5 01 60680 | E56: 100 | F56: =F57 -> 2092 | G56: 2092 | H56: 2092 | I56: 2092 | J56: 2085.3 | K56: 0.9967973231 | L56: 2085.3 | M56: 0.9967973231
A57: Расходы на выплаты персоналу государственных (муниципальных) органов | B57: 01 | C57: 04 | D57: 04 5 01 60680 | E57: 120 | F57: ='ведом. 2022-2024'!AD37 -> 2092 | G57: =F57 -> 2092 | H57: 2092 | I57: =H57 -> 2092 | J57: ='ведом. 2022-2024'!AF37 -> 2085.3 | K57: 0.9967973231 | L57: =J57 -> 2085.3 | M57: 0.9967973231
A58: Закупка товаров, работ и услуг для обеспечения государственных (муниципальных) нужд | B58: 01 | C58: 04 | D58: 04 5 01 60680 | E58: 200 | F58: =F59 -> 196 | G58: 196 | H58: 196 | I58: 196 | J58: 196 | K58: 1 | L58: 196 | M58: 1
A59: Иные закупки товаров, работ и услуг для обеспечения государственных (муниципальных) нужд | B59: 01 | C59: 04 | D59: 04 5 01 60680 | E59: 240 | F59: ='ведом. 2022-2024'!AD39 -> 196 | G59: =F59 -> 196 | H59: 196 | I59: =H59 -> 196 | J59: ='ведом. 2022-2024'!AF39 -> 196 | K59: 1 | L59: =J59 -> 196 | M59: 1
A60: Муниципальная программа «Управление имуществом и муниципальными финансами» | B60: 01 | C60: 04 | D60: 12 0 00 00000 | F60: =F66+F61 -> 54607.8 | H60: =H66+H61 -> 54607.8 | J60: =J66+J61 -> 53307.8 | K60: 0.9761938771
A61: Подпрограмма "Совершенствование муниципальной службы Московской области" | B61: 01 | C61: 04 | D61: 12 3 00 00000 | F61: =F62 -> 28.8 | H61: =H62 -> 28.8 | J61: =J62 -> 28.8 | K61: 1
A62: Основное мероприятие "Организация профессионального развития муниципальных служащих Московской области" | B62: 01 | C62: 04 | D62: 12 3 01 00000 | F62: =F63 -> 28.8 | H62: =H63 -> 28.8 | J62: =J63 -> 28.8 | K62: 1
A63: Организация профессионального образования и дополнительного профессионального образования выборных должностных лиц местного самоуправления, членов выборных органов местного самоуправления, депутатов представительных органов муниципальных образований, муниципальных служащих и работников муниципальных учреждений, организация подготовки кадров для муниципальной службы | B63: 01 | C63: 04 | D63: 12 3 01 00830 | F63: =F64 -> 28.8 | H63: =H64 -> 28.8 | J63: =J64 -> 28.8 | K63: 1
A64: Закупка товаров, работ и услуг для обеспечения государственных (муниципальных) нужд | B64: 01 | C64: 04 | D64: 12 3 01 00830 | E64: 200 | F64: =F65 -> 28.8 | H64: =H65 -> 28.8 | J64: =J65 -> 28.8 | K64: 1
A65: Иные закупки товаров, работ и услуг для обеспечения государственных (муниципальных) нужд | B65: 01 | C65: 04 | D65: 12 3 01 00830 | E65: 240 | F65: ='ведом. 2022-2024'!AD45 -> 28.8 | H65: ='ведом. 2022-2024'!AF45 -> 28.8 | J65: ='ведом. 2022-2024'!AF45 -> 28.8 | K65: 1
A66: Обеспечивающая подпрограмма | B66: 01 | C66: 04 | D66: 12 5 00 00000 | F66: =F67 -> 54579 | H66: =H67 -> 54579 | J66: =J67 -> 53279 | K66: 0.9761813152
A67: Основное мероприятие «Создание условий для реализации полномочий органов местного самоуправления» | B67: 01 | C67: 04 | D67: 12 5 01 00000 | F67: =F68 -> 54579 | H67: =H68 -> 54579 | J67: =J68 -> 53279 | K67: 0.9761813152
A68: Обеспечение деятельности администрации | B68: 01 | C68: 04 | D68: 12 5 01 00120 | F68: =F69+F76+F79 -> 54579 | H68: =H69+H76+H79 -> 54579 | J68: =J69+J76+J79 -> 53279 | K68: 0.9761813152
A69: Обеспечение деятельности администрации (расходы на обеспечение деятельности органов местного самоуправления) | B69: 01 | C69: 04 | D69: 12 5 01 00121 | F69: =F72+F74+F70 -> 7067.9 | H69: =H72+H74+H70 -> 7067.9 | J69: =J72+J74+J70 -> 6010.2 | K69: 0.8503515896
A70: Расходы на выплаты персоналу в целях обеспечения выполнения функций государственными (муниципальными) органами, казенными учреждениями, органами управления государственными внебюджетными фондами | B70: 01 | C70: 04 | D70: 12 5 01 00121 | E70: 100 | F70: =F71 -> 6.4 | H70: =H71 -> 6.4 | J70: =J71 -> 6.3 | K70: 0.984375
A71: Расходы на выплаты персоналу государственных (муниципальных) органов | B71: 01 | C71: 04 | D71: 12 5 01 00121 | E71: 120 | F71: ='ведом. 2022-2024'!AD51 -> 6.4 | H71: 6.4 | J71: ='ведом. 2022-2024'!AF51 -> 6.3 | K71: 0.984375
A72: Закупка товаров, работ и услуг для обеспечения государственных (муниципальных) нужд | B72: 01 | C72: 04 | D72: 12 5 01 00121 | E72: 200 | F72: =F73 -> 7051.3 | H72: =H73 -> 7051.3 | J72: =J73 -> 6003.6 | K72: 0.8514174691
A73: Иные закупки товаров, работ и услуг для обеспечения государственных (муниципальных) нужд | B73: 01 | C73: 04 | D73: 12 5 01 00121 | E73: 240 | F73: ='ведом. 2022-2024'!AD53 -> 7051.3 | H73: 7051.3 | J73: ='ведом. 2022-2024'!AF53 -> 6003.6 | K73: 0.8514174691
A74: Иные бюджетные ассигнования | B74: 01 | C74: 04 | D74: 12 5 01 00121 | E74: 800 | F74: =F75 -> 10.2 | H74: =H75 -> 10.2 | J74: =J75 -> 0.3 | K74: 0.02941176471
A75: Уплата налогов, сборов и иных платежей | B75: 01 | C75: 04 | D75: 12 5 01 00121 | E75: 850 | F75: ='ведом. 2022-2024'!AD55 -> 10.2 | H75: 10.2 | J75: ='ведом. 2022-2024'!AF55 -> 0.3 | K75: 0.02941176471
A76: Обеспечение деятельности администрации (расходы на содержание лиц, замещающих должности, не являющиеся должностями муниципальной службы) | B76: 01 | C76: 04 | D76: 12 5 01 00122 | F76: =F77 -> 14437.9 | H76: =H77 -> 14437.9 | J76: =J77 -> 14291.4 | K76: =J76/H76 -> 0.989853095
A77: Расходы на выплаты персоналу в целях обеспечения выполнения функций государственными (муниципальными) органами, казенными учреждениями, органами управления государственными внебюджетными фондами | B77: 01 | C77: 04 | D77: 12 5 01 00122 | E77: 100 | F77: =F78 -> 14437.9 | H77: =H78 -> 14437.9 | J77: =J78 -> 14291.4 | K77: 0.989853095
A78: Расходы на выплаты персоналу государственных (муниципальных) органов | B78: 01 | C78: 04 | D78: 12 5 01 00122 | E78: 120 | F78: ='ведом. 2022-2024'!AD58 -> 14437.9 | H78: 14437.9 | J78: ='ведом. 2022-2024'!AF58 -> 14291.4 | K78: 0.989853095
A79: Обеспечение деятельности администрации (расходы на содержание лиц, замещающих должности муниципальной службы) | B79: 01 | C79: 04 | D79: 12 5 01 00123 | F79: =F80 -> 33073.2 | H79: =H80 -> 33073.2 | J79: =J80 -> 32977.4 | K79: 0.9971033949
A80: Расходы на выплаты персоналу в целях обеспечения выполнения функций государственными (муниципальными) органами, казенными учреждениями, органами управления государственными внебюджетными фондами | B80: 01 | C80: 04 | D80: 12 5 01 00123 | E80: 100 | F80: =F81 -> 33073.2 | H80: =H81 -> 33073.2 | J80: =J81 -> 32977.4 | K80: 0.9971033949
A81: Расходы на выплаты персоналу государственных (муниципальных) органов | B81: 01 | C81: 04 | D81: 12 5 01 00123 | E81: 120 | F81: ='ведом. 2022-2024'!AD61 -> 33073.2 | H81: 33073.2 | J81: ='ведом. 2022-2024'!AF61 -> 32977.4 | K81: 0.9971033949
A82: Муниципальная программа «Развитие институтов гражданского общества, повышение эффективности местного самоуправления и реализации молодежной политики» | B82: 01 | C82: 04 | D82: 13 0 00 00000 | F82: =F83 -> 8673 | H82: =H83 -> 8673 | J82: =J83 -> 8049.9 | K82: 0.9281563473
A83: Подпрограмма «Развитие системы информирования населения о деятельности органов местного самоуправления Московской области, создание доступной современной медиасреды» | B83: 01 | C83: 04 | D83: 13 1 00 00000 | F83: =F84 -> 8673 | H83: =H84 -> 8673 | J83: =J84 -> 8049.9 | K83: 0.9281563473
A84: Основное мероприятие «Информирование населения об основных событиях социально-экономического развития и общественно-политической жизни» | B84: 01 | C84: 04 | D84: 13 1 01 00000 | F84: =F85 -> 8673 | H84: =H85 -> 8673 | J84: =J85 -> 8049.9 | K84: 0.9281563473
A85: Информирование населения о деятельности, о положении дел на территории муниципального образования, опубликование муниципальных правовых актов, обсуждение проектов муниципальных правовых актов по вопросам местного значения, доведение до сведения жителей муниципального образования официальной информации о социально-экономическом и культурном развитии муниципального образования, о развитии его общественной инфраструктуры и иной официальной информации | B85: 01 | C85: 04 | D85: 13 1 01 00820 | F85: =F86 -> 8673 | H85: =H86 -> 8673 | J85: =J86 -> 8049.9 | K85: 0.9281563473
A86: Закупка товаров, работ и услуг для обеспечения государственных (муниципальных) нужд | B86: 01 | C86: 04 | D86: 13 1 01 00820 | E86: 200 | F86: =F87 -> 8673 | H86: =H87 -> 8673 | J86: =J87 -> 8049.9 | K86: 0.9281563473
A87: Иные закупки товаров, работ и услуг для обеспечения государственных (муниципальных) нужд | B87: 01 | C87: 04 | D87: 13 1 01 00820 | E87: 240 | F87: ='ведом. 2022-2024'!AD67 -> 8673 | H87: 8673 | J87: ='ведом. 2022-2024'!AF67 -> 8049.9 | K87: 0.9281563473
A88: Муниципальная программа «Архитектура и градостроительство» | B88: 01 | C88: 04 | D88: 16 0 00 00000 | F88: =F89 -> 439.8 | G88: 439.8 | H88: 439.8 | I88: 439.8 | J88: 72.7 | K88: 0.1653024102 | L88: 72.7 | M88: =L88/I88 -> 0.1653024102
A89: Подпрограмма «Реализация политики пространственного развития городского округа» | B89: 01 | C89: 04 | D89: 16 2 00 00000 | F89: 439.8 | G89: 439.8 | H89: 439.8 | I89: 439.8 | J89: 72.7 | K89: 0.1653024102 | L89: 72.7 | M89: 0.1653024102
A90: Основное мероприятие "Финансовое обеспечение выполнения отдельных государственных полномочий в сфере архитектуры и градостроительства, переданных органам местного самоуправления муниципальных образований Московской области" | B90: 01 | C90: 04 | D90: 16 2 03 00000 | F90: 439.8 | G90: 439.8 | H90: 439.8 | I90: 439.8 | J90: 72.7 | K90: 0.1653024102 | L90: 72.7 | M90: 0.1653024102
A91: Осуществление отдельных государственных полномочий в части присвоения адресов объектам адресации, изменения и аннулирования адресов, присвоения наименований элементам улично-дорожной сети (за исключением автомобильных дорог федерального значения, автомобильных дорог регионального или межмуниципального значения, местного значения муниципального района), наименований элементам планировочной структуры, изменения, аннулирования таких наименований, согласования переустройства и перепланировки помещений в многоквартирном доме | B91: 01 | C91: 04 | D91: 16 2 03 60700 | F91: =F92+F94 -> 439.8 | G91: 439.8 | H91: 439.8 | I91: =I92+I94 -> 439.8 | J91: 72.7 | K91: 0.1653024102 | L91: 72.7 | M91: 0.1653024102
A92: Расходы на выплаты персоналу в целях обеспечения выполнения функций государственными (муниципальными) органами, казенными учреждениями, органами управления государственными внебюджетными фондами | B92: 01 | C92: 04 | D92: 16 2 03 60700 | E92: 100 | F92: =F93 -> 356.4 | G92: 356.4 | H92: 356.4 | I92: 356.4 | J92: 72.7 | K92: 0.2039842873 | L92: 72.7 | M92: 0.2039842873
A93: Расходы на выплаты персоналу государственных (муниципальных) органов | B93: 01 | C93: 04 | D93: 16 2 03 60700 | E93: 120 | F93: ='ведом. 2022-2024'!AD73 -> 356.4 | G93: =F93 -> 356.4 | H93: 356.4 | I93: =H93 -> 356.4 | J93: ='ведом. 2022-2024'!AF73 -> 72.7 | K93: 0.2039842873 | L93: =J93 -> 72.7 | M93: 0.2039842873
A94: Закупка товаров, работ и услуг для обеспечения государственных (муниципальных) нужд | B94: 01 | C94: 04 | D94: 16 2 03 60700 | E94: 200 | F94: =F95 -> 83.4 | G94: 83.4 | H94: 83.4 | I94: 83.4 | J94: 0 | K94: 0
A95: Иные закупки товаров, работ и услуг для обеспечения государственных (муниципальных) нужд | B95: 01 | C95: 04 | D95: 16 2 03 60700 | E95: 240 | F95: ='ведом. 2022-2024'!AD75 -> 83.4 | G95: =F95 -> 83.4 | H95: 83.4 | I95: =H95 -> 83.4 | J95: ='ведом. 2022-2024'!AF75 -> 0 | K95: 0
A96: Непрограммные расходы | B96: 01 | C96: 04 | D96: 99 0 00 00000 | F96: =F97 -> 3970.5 | H96: =H97 -> 3970.5 | J96: =J97 -> 3970.5 | K96: 1
A97: Достижение показателей деятельности органов исполнительной власти субъектов Российской Федерации (поощрение муниципальных управленческих команд) | B97: 01 | C97: 04 | D97: 99 0 00 55491 | F97: =F98 -> 3970.5 | H97: 3970.5 | J97: =J98 -> 3970.5 | K97: 1
A98: Расходы на выплаты персоналу в целях обеспечения выполнения функций государственными (муниципальными) органами, казенными учреждениями, органами управления государственными внебюджетными фондами | B98: 01 | C98: 04 | D98: 99 0 00 55491 | E98: 100 | F98: =F99 -> 3970.5 | H98: 3970.5 | J98: =J99 -> 3970.5 | K98: 1
A99: Расходы на выплаты персоналу государственных (муниципальных) органов | B99: 01 | C99: 04 | D99: 99 0 00 55491 | E99: 120 | F99: ='ведом. 2022-2024'!AD79 -> 3970.5 | H99: ='ведом. 2022-2024'!AF79 -> 3970.5 | J99: ='ведом. 2022-2024'!AF79 -> 3970.5 | K99: 1
A100: Обеспечение деятельности финансовых, налоговых и таможенных органов и органов финансового (финансово-бюджетного) надзора | B100: 01 | C100: 06 | F100: =F101+F124+F118+F140 -> 27760.3 | H100: =H101+H124+H118+H140 -> 27760.3 | J100: =J101+J124+J118+J140 -> 27640.9 | K100: 0.9956988937
A101: Муниципальная программа «Управление имуществом и муниципальными финансами» | B101: 01 | C101: 06 | D101: 12 0 00 00000 | F101: =F102 -> 19616.6 | H101: =H102 -> 19616.6 | J101: =J102 -> 19545.5 | K101: 0.9963755187
A102: Обеспечивающая подпрограмма | B102: 01 | C102: 06 | D102: 12 5 00 00000 | F102: =F103 -> 19616.6 | H102: =H103 -> 19616.6 | J102: =J103 -> 19545.5 | K102: 0.9963755187
A103: Основное мероприятие «Создание условий для реализации полномочий органов местного самоуправления» | B103: 01 | C103: 06 | D103: 12 5 01 00000 | F103: =F104 -> 19616.6 | H103: =H104 -> 19616.6 | J103: =J104 -> 19545.5 | K103: 0.9963755187
A104: Обеспечение деятельности финансового органа | B104: 01 | C104: 06 | D104: 12 5 01 00160 | F104: =F105+F112+F115 -> 19616.6 | H104: =H105+H112+H115 -> 19616.6 | J104: =J105+J112+J115 -> 19545.5 | K104: 0.9963755187
A105: Обеспечение деятельности финансового органа (расходы на обеспечение деятельности органов местного самоуправления) | B105: 01 | C105: 06 | D105: 12 5 01 00161 | F105: =F106+F108+F110 -> 2317.8 | H105: =H106+H108+H110 -> 2317.8 | J105: =J106+J108+J110 -> 2247.1 | K105: 0.9694969368
A106: Закупка товаров, работ и услуг для обеспечения государственных (муниципальных) нужд | B106: 01 | C106: 06 | D106: 12 5 01 00161 | E106: 200 | F106: =F107 -> 2311.4 | H106: =H107 -> 2311.4 | J106: =J107 -> 2240.7 | K106: 0.9694124773
A107: Иные закупки товаров, работ и услуг для обеспечения государственных (муниципальных) нужд | B107: 01 | C107: 06 | D107: 12 5 01 00161 | E107: 240 | F107: ='ведом. 2022-2024'!AD543 -> 2311.4 | H107: 2311.4 | J107: ='ведом. 2022-2024'!AF543 -> 2240.7 | K107: 0.9694124773
A108: Социальное обеспечение и иные выплаты населению | B108: 01 | C108: 06 | D108: 12 5 01 00161 | E108: 300 | F108: =F109 -> 4.4 | H108: =H109 -> 4.4 | J108: =J109 -> 4.4 | K108: 1
A109: Социальные выплаты гражданам, кроме публичных нормативных социальных выплат | B109: 01 | C109: 06 | D109: 12 5 01 00161 | E109: 320 | F109: ='ведом. 2022-2024'!AD545 -> 4.4 | H109: ='ведом. 2022-2024'!AF545 -> 4.4 | J109: ='ведом. 2022-2024'!AF545 -> 4.4 | K109: 1
A110: Иные бюджетные ассигнования | B110: 01 | C110: 06 | D110: 12 5 01 00161 | E110: 800 | F110: =F111 -> 2 | H110: =H111 -> 2 | J110: =J111 -> 2 | K110: 1
A111: Уплата налогов, сборов и иных платежей | B111: 01 | C111: 06 | D111: 12 5 01 00161 | E111: 850 | F111: ='ведом. 2022-2024'!AD547 -> 2 | H111: ='ведом. 2022-2024'!AF547 -> 2 | J111: ='ведом. 2022-2024'!AF547 -> 2 | K111: 1
A112: Обеспечение деятельности финансового органа (расходы на содержание лиц, замещающих должности, не являющиеся должностями муниципальной службы) | B112: 01 | C112: 06 | D112: =D113 -> 12 5 01 00162 | F112: =F114 -> 10772 | H112: =H114 -> 10772 | J112: =J114 -> 10772 | K112: 1
A113: Расходы на выплаты персоналу в целях обеспечения выполнения функций государственными (муниципальными) органами, казенными учреждениями, органами управления государственными внебюджетными фондами | B113: 01 | C113: 06 | D113: =D114 -> 12 5 01 00162 | E113: 100 | F113: =F114 -> 10772 | H113: =H114 -> 10772 | J113: =J114 -> 10772 | K113: 1
A114: Расходы на выплаты персоналу государственных (муниципальных) органов | B114: 01 | C114: 06 | D114: 12 5 01 00162 | E114: 120 | F114: ='ведом. 2022-2024'!AD550 -> 10772 | H114: ='ведом. 2022-2024'!AF550 -> 10772 | J114: ='ведом. 2022-2024'!AF550 -> 10772 | K114: 1
A115: Обеспечение деятельности финансового органа (расходы на содержание лиц, замещающих должности муниципальной службы) | B115: 01 | C115: 06 | D115: =D116 -> 12 5 01 00163 | F115: =F116 -> 6526.8 | H115: =H116 -> 6526.8 | J115: =J116 -> 6526.4 | K115: 0.9999387142
A116: Расходы на выплаты персоналу в целях обеспечения выполнения функций государственными (муниципальными) органами, казенными учреждениями, органами управления государственными внебюджетными фондами | B116: 01 | C116: 06 | D116: =D117 -> 12 5 01 00163 | E116: 100 | F116: =F117 -> 6526.8 | H116: =H117 -> 6526.8 | J116: =J117 -> 6526.4 | K116: 0.9999387142
A117: Расходы на выплаты персоналу государственных (муниципальных) органов | B117: 01 | C117: 06 | D117: 12 5 01 00163 | E117: 120 | F117: ='ведом. 2022-2024'!AD553 -> 6526.8 | H117: 6526.8 | J117: ='ведом. 2022-2024'!AF553 -> 6526.4 | K117: 0.9999387142
A118: Муниципальная программа «Развитие институтов гражданского общества, повышение эффективности местного самоуправления и реализации молодежной политики» | B118: 01 | C118: 06 | D118: 13 0 00 00000 | F118: =F119 -> 0.6 | H118: =H119 -> 0.6 | J118: =J119 -> 0 | K118: 0
A119: Подпрограмма «Развитие системы информирования населения о деятельности органов местного самоуправления Московской области, создание доступной современной медиасреды» | B119: 01 | C119: 06 | D119: 13 1 00 00000 | F119: =F120 -> 0.6 | H119: =H120 -> 0.6 | J119: =J120 -> 0 | K119: 0
A120: Основное мероприятие «Информирование населения об основных событиях социально-экономического развития и общественно-политической жизни» | B120: 01 | C120: 06 | D120: 13 1 01 00000 | F120: =F121 -> 0.6 | H120: =H121 -> 0.6 | J120: =J121 -> 0 | K120: 0
A121: Информирование населения о деятельности, о положении дел на территории муниципального образования, опубликование муниципальных правовых актов, обсуждение проектов муниципальных правовых актов по вопросам местного значения, доведение до сведения жителей муниципального образования официальной информации о социально-экономическом и культурном развитии муниципального образования, о развитии его общественной инфраструктуры и иной официальной информации | B121: 01 | C121: 06 | D121: 13 1 01 00820 | F121: =F122 -> 0.6 | H121: =H122 -> 0.6 | J121: =J122 -> 0 | K121: 0
A122: Закупка товаров, работ и услуг для обеспечения государственных (муниципальных) нужд | B122: 01 | C122: 06 | D122: 13 1 01 00820 | E122: 200 | F122: =F123 -> 0.6 | H122: =H123 -> 0.6 | J122: =J123 -> 0 | K122: 0
A123: Иные закупки товаров, работ и услуг для обеспечения государственных (муниципальных) нужд | B123: 01 | C123: 06 | D123: 13 1 01 00820 | E123: 240 | F123: ='ведом. 2022-2024'!AD1053 -> 0.6 | H123: 0.6 | J123: ='ведом. 2022-2024'!AF1053 -> 0 | K123: 0
A124: Руководство и управление в сфере установленных функций органов местного самоуправления | B124: 01 | C124: 06 | D124: 95 0 00 00000 | F124: =F125 -> 7932 | H124: =H125 -> 7932 | J124: =J125 -> 7884.3 | K124: 0.9939863843
A125: Обеспечение деятельности контрольно-счетной палаты | B125: 01 | C125: 06 | D125: 95 0 00 00150 | F125: =F126+F131+F134+F137 -> 7932 | H125: =H126+H131+H134+H137 -> 7932 | J125: =J126+J131+J134+J137 -> 7884.3 | K125: 0.9939863843
A126: Обеспечение деятельности контрольно-счетной палаты (обеспечение деятельности) | B126: 01 | C126: 06 | D126: 95 0 00 00151 | F126: =F127+F129 -> 960.3 | H126: =H127+H129 -> 960.3 | J126: =J127+J129 -> 917.4 | K126: 0.9553264605
A127: Закупка товаров, работ и услуг для обеспечения государственных (муниципальных) нужд | B127: 01 | C127: 06 | D127: 95 0 00 00151 | E127: 200 | F127: =F128 -> 952.6 | H127: =H128 -> 952.6 | J127: =J128 -> 915.9 | K127: 0.961473861
A128: Иные закупки товаров, работ и услуг для обеспечения государственных (муниципальных) нужд | B128: 01 | C128: 06 | D128: 95 0 00 00151 | E128: 240 | F128: ='ведом. 2022-2024'!AD1058 -> 952.6 | H128: 952.6 | J128: ='ведом. 2022-2024'!AF1058 -> 915.9 | K128: 0.961473861
A129: Иные бюджетные ассигнования | B129: 01 | C129: 06 | D129: 95 0 00 00151 | E129: 800 | F129: =F130 -> 7.7 | H129: =H130 -> 7.7 | J129: =J130 -> 1.5 | K129: 0.1948051948
A130: Уплата налогов, сборов и иных платежей | B130: 01 | C130: 06 | D130: 95 0 00 00151 | E130: 850 | F130: ='ведом. 2022-2024'!AD1060 -> 7.7 | H130: 7.7 | J130: ='ведом. 2022-2024'!AF1060 -> 1.5 | K130: 0.1948051948
A131: Обеспечение деятельности контрольно-счетной палаты(расходы на содержание лиц, замещающих должности, не являющиеся должностями муниципальной службы) | B131: 01 | C131: 06 | D131: 95 0 00 00152 | F131: =F132 -> 1668.1 | H131: =H132 -> 1668.1 | J131: =J132 -> 1667.5 | K131: 0.9996403093
A132: Расходы на выплаты персоналу в целях обеспечения выполнения функций государственными (муниципальными) органами, казенными учреждениями, органами управления государственными внебюджетными фондами | B132: 01 | C132: 06 | D132: 95 0 00 00152 | E132: 100 | F132: =F133 -> 1668.1 | H132: =H133 -> 1668.1 | J132: =J133 -> 1667.5 | K132: 0.9996403093
A133: Расходы на выплаты персоналу государственных (муниципальных) органов | B133: 01 | C133: 06 | D133: 95 0 00 00152 | E133: 120 | F133: ='ведом. 2022-2024'!AD1063 -> 1668.1 | H133: 1668.1 | J133: ='ведом. 2022-2024'!AF1063 -> 1667.5 | K133: 0.9996403093
A134: Обеспечение деятельности контрольно-счетной палаты (расходы на содержание лиц, замещающих должности муниципальной службы) | B134: 01 | C134: 06 | D134: 95 0 00 00153 | F134: =F135 -> 2644.4 | H134: =H135 -> 2644.4 | J134: =J135 -> 2643.5 | K134: 0.9996596581
A135: Расходы на выплаты персоналу в целях обеспечения выполнения функций государственными (муниципальными) органами, казенными учреждениями, органами управления государственными внебюджетными фондами | B135: 01 | C135: 06 | D135: 95 0 00 00153 | E135: 100 | F135: =F136 -> 2644.4 | H135: =H136 -> 2644.4 | J135: =J136 -> 2643.5 | K135: 0.9996596581
A136: Расходы на выплаты персоналу государственных (муниципальных) органов | B136: 01 | C136: 06 | D136: 95 0 00 00153 | E136: 120 | F136: ='ведом. 2022-2024'!AD1066 -> 2644.4 | H136: 2644.4 | J136: ='ведом. 2022-2024'!AF1066 -> 2643.5 | K136: 0.9996596581
A137: Обеспечение деятельности контрольно-счетной палаты (расходы на содержание лиц, замещающих муниципальные должности ) | B137: 01 | C137: 06 | D137: 95 0 00 00154 | F137: =F138 -> 2659.2 | H137: =H138 -> 2659.2 | J137: =J138 -> 2655.9 | K137: 0.9987590253
A138: Расходы на выплаты персоналу в целях обеспечения выполнения функций государственными (муниципальными) органами, казенными учреждениями, органами управления государственными внебюджетными фондами | B138: 01 | C138: 06 | D138: 95 0 00 00154 | E138: 100 | F138: =F139 -> 2659.2 | H138: =H139 -> 2659.2 | J138: =J139 -> 2655.9 | K138: 0.9987590253
A139: Расходы на выплаты персоналу государственных (муниципальных) органов | B139: 01 | C139: 06 | D139: 95 0 00 00154 | E139: 120 | F139: ='ведом. 2022-2024'!AD1069 -> 2659.2 | H139: 2659.2 | J139: ='ведом. 2022-2024'!AF1069 -> 2655.9 | K139: 0.9987590253
A140: Непрограммные расходы | B140: 01 | C140: 06 | D140: 99 0 00 00000 | F140: =F141 -> 211.1 | H140: =H141 -> 211.1 | J140: =J141 -> 211.1 | K140: =J140/H140 -> 1
A141: Достижение показателей деятельности органов исполнительной власти субъектов Российской Федерации (поощрение муниципальных управленческих команд) | B141: 01 | C141: 06 | D141: 99 0 00 55491 | F141: =F142 -> 211.1 | H141: 211.1 | J141: =J142 -> 211.1 | K141: 1
A142: Расходы на выплаты персоналу в целях обеспечения выполнения функций государственными (муниципальными) органами, казенными учреждениями, органами управления государственными внебюджетными фондами | B142: 01 | C142: 06 | D142: 99 0 00 55491 | E142: 100 | F142: =F143 -> 211.1 | H142: 211.1 | J142: =J143 -> 211.1 | K142: 1
A143: Расходы на выплаты персоналу государственных (муниципальных) органов | B143: 01 | C143: 06 | D143: 99 0 00 55491 | E143: 120 | F143: ='ведом. 2022-2024'!AD557 -> 211.1 | H143: ='ведом. 2022-2024'!AF557 -> 211.1 | J143: ='ведом. 2022-2024'!AF557 -> 211.1 | K143: 1
A144: Обеспечение проведения выборов и референдумов | B144: 01 | C144: 07 | F144: =F145+F151 -> 4561.2 | H144: =H145+H151 -> 4561.2 | J144: =J145+J151 -> 4555.2 | K144: 0.9986845567
A145: Муниципальная программа «Развитие институтов гражданского общества, повышение эффективности местного самоуправления и реализации молодежной политики» | B145: 01 | C145: 07 | D145: 13 0 00 00000 | F145: =F146 -> 1.3 | H145: =H146 -> 1.3 | J145: =J146 -> 0.6 | K145: 0.4615384615
A146: Подпрограмма «Развитие системы информирования населения о деятельности органов местного самоуправления Московской области, создание доступной современной медиасреды» | B146: 01 | C146: 07 | D146: 13 1 00 00000 | F146: =F147 -> 1.3 | H146: =H147 -> 1.3 | J146: =J147 -> 0.6 | K146: 0.4615384615
A147: Основное мероприятие «Информирование населения об основных событиях социально-экономического развития и общественно-политической жизни» | B147: 01 | C147: 07 | D147: 13 1 01 00000 | F147: =F148 -> 1.3 | H147: =H148 -> 1.3 | J147: =J148 -> 0.6 | K147: 0.4615384615
A148: Информирование населения о деятельности, о положении дел на территории муниципального образования, опубликование муниципальных правовых актов, обсуждение проектов муниципальных правовых актов по вопросам местного значения, доведение до сведения жителей муниципального образования официальной информации о социально-экономическом и культурном развитии муниципального образования, о развитии его общественной инфраструктуры и иной официальной информации | B148: 01 | C148: 07 | D148: 13 1 01 00820 | F148: =F149 -> 1.3 | H148: =H149 -> 1.3 | J148: =J149 -> 0.6 | K148: 0.4615384615
A149: Закупка товаров, работ и услуг для обеспечения государственных (муниципальных) нужд | B149: 01 | C149: 07 | D149: 13 1 01 00820 | E149: 200 | F149: =F150 -> 1.3 | H149: =H150 -> 1.3 | J149: =J150 -> 0.6 | K149: 0.4615384615
A150: Иные закупки товаров, работ и услуг для обеспечения государственных (муниципальных) нужд | B150: 01 | C150: 07 | D150: 13 1 01 00820 | E150: 240 | F150: ='ведом. 2022-2024'!AD1086 -> 1.3 | H150: 1.3 | J150: ='ведом. 2022-2024'!AF1086 -> 0.6 | K150: 0.4615384615
A151: Руководство и управление в сфере установленных функций органов местного самоуправления | B151: 01 | C151: 07 | D151: 95 0 00 00000 | F151: =F152 -> 4559.9 | H151: =H152 -> 4559.9 | J151: =J152 -> 4554.6 | K151: 0.9988376938
A152: Обеспечение деятельности избирательной комиссии муниципального образования | B152: 01 | C152: 07 | D152: 95 0 00 00050 | F152: =F153+F158+F161 -> 4559.9 | H152: =H153+H158+H161 -> 4559.9 | J152: =J153+J158+J161 -> 4554.6 | K152: 0.9988376938
A153: Обеспечение деятельности избирательной комиссии муниципального образования (расходы на обеспечение деятельности) | B153: 01 | C153: 07 | D153: 95 0 00 00051 | F153: =F154+F156 -> 405.2 | H153: =H154+H156 -> 405.2 | J153: =J154+J156 -> 401.9 | K153: 0.9918558736
A154: Закупка товаров, работ и услуг для обеспечения государственных (муниципальных) нужд | B154: 01 | C154: 07 | D154: 95 0 00 00051 | E154: 200 | F154: =F155 -> 389.5 | H154: =H155 -> 389.5 | J154: =J155 -> 386.2 | K154: 0.9915275995
A155: Иные закупки товаров, работ и услуг для обеспечения государственных (муниципальных) нужд | B155: 01 | C155: 07 | D155: 95 0 00 00051 | E155: 240 | F155: ='ведом. 2022-2024'!AD1091 -> 389.5 | H155: 389.5 | J155: ='ведом. 2022-2024'!AF1091 -> 386.2 | K155: 0.9915275995
A156: Иные бюджетные ассигнования | B156: 01 | C156: 07 | D156: 95 0 00 00051 | E156: 800 | F156: =F157 -> 15.7 | H156: =H157 -> 15.7 | J156: =J157 -> 15.7 | K156: 1
A157: Уплата налогов, сборов и иных платежей | B157: 01 | C157: 07 | D157: 95 0 00 00051 | E157: 850 | F157: ='ведом. 2022-2024'!AD1093 -> 15.7 | H157: ='ведом. 2022-2024'!AF1093 -> 15.7 | J157: ='ведом. 2022-2024'!AF1093 -> 15.7 | K157: 1
A158: Обеспечение деятельности избирательной комиссии муниципального образования(расходы на содержание лиц, замещающих должности, не являющиеся должностями муниципальной службы) | B158: 01 | C158: 07 | D158: 95 0 00 00052 | F158: =F159 -> 1830.3 | H158: =H159 -> 1830.3 | J158: =J159 -> 1829.4 | K158: 0.9995082773
A159: Расходы на выплаты персоналу в целях обеспечения выполнения функций государственными (муниципальными) органами, казенными учреждениями, органами управления государственными внебюджетными фондами | B159: 01 | C159: 07 | D159: 95 0 00 00052 | E159: 100 | F159: =F160 -> 1830.3 | H159: =H160 -> 1830.3 | J159: =J160 -> 1829.4 | K159: 0.9995082773
A160: Расходы на выплаты персоналу государственных (муниципальных) органов | B160: 01 | C160: 07 | D160: 95 0 00 00052 | E160: 120 | F160: ='ведом. 2022-2024'!AD1096 -> 1830.3 | H160: 1830.3 | J160: ='ведом. 2022-2024'!AF1096 -> 1829.4 | K160: 0.9995082773
A161: Обеспечение деятельности избирательной комиссии муниципального образования (расходы на содержание лиц, замещающих должности муниципальной службы) | B161: 01 | C161: 07 | D161: 95 0 00 00053 | F161: =F162 -> 2324.4 | H161: =H162 -> 2324.4 | J161: =J162 -> 2323.3 | K161: 0.9995267596
A162: Расходы на выплаты персоналу в целях обеспечения выполнения функций государственными (муниципальными) органами, казенными учреждениями, органами управления государственными внебюджетными фондами | B162: 01 | C162: 07 | D162: 95 0 00 00053 | E162: 100 | F162: =F163 -> 2324.4 | H162: =H163 -> 2324.4 | J162: =J163 -> 2323.3 | K162: 0.9995267596
A163: Расходы на выплаты персоналу государственных (муниципальных) органов | B163: 01 | C163: 07 | D163: 95 0 00 00053 | E163: 120 | F163: ='ведом. 2022-2024'!AD1099 -> 2324.4 | H163: 2324.4 | J163: ='ведом. 2022-2024'!AF1099 -> 2323.3 | K163: 0.9995267596
A164: Другие общегосударственные вопросы | B164: 01 | C164: 13 | F164: =F171+F228+F239+F258+F165 -> 173439.3 | G164: =G171+G228+G239+G258+G165 -> 3318 | H164: =H171+H228+H239+H258+H165 -> 173498.3 | I164: =I171+I228+I239+I258+I165 -> 3377 | J164: =J171+J228+J239+J258+J165 -> 172746.5 | K164: 0.9956668163 | L164: =L171+L228+L239+L258+L165 -> 3310 | M164: =L164/I164 -> 0.9801599052
A165: Муниципальная программа «Культура» | B165: 01 | C165: 13 | D165: 02 0 00 00000 | F165: =F166 -> 102 | H165: =H166 -> 102 | J165: =J166 -> 102 | K165: 1
A166: Подпрограмма «Развитие архивного дела в Московской области» | B166: 01 | C166: 13 | D166: 02 7 00 00000 | F166: =F167 -> 102 | H166: =H167 -> 102 | J166: =J167 -> 102 | K166: 1
A167: Основное мероприятие «Хранение, комплектование, учет и использование архивных документов в муниципальных архивах» | B167: 01 | C167: 13 | D167: 02 7 01 00000 | F167: =F168 -> 102 | H167: =H168 -> 102 | J167: =J168 -> 102 | K167: 1
A168: Расходы на обеспечение деятельности (оказание услуг) муниципальных архивов | B168: 01 | C168: 13 | D168: 02 7 01 06160 | F168: =F169 -> 102 | H168: =H169 -> 102 | J168: =J169 -> 102 | K168: 1
A169: Закупка товаров, работ и услуг для обеспечения государственных (муниципальных) нужд | B169: 01 | C169: 13 | D169: 02 7 01 06160 | E169: 200 | F169: =F170 -> 102 | H169: =H170 -> 102 | J169: =J170 -> 102 | K169: 1
A170: Иные закупки товаров, работ и услуг для обеспечения государственных (муниципальных) нужд | B170: 01 | C170: 13 | D170: 02 7 01 06160 | E170: 240 | F170: ='ведом. 2022-2024'!AD86 -> 102 | H170: 102 | J170: ='ведом. 2022-2024'!AF86 -> 102 | K170: 1
A171: Муниципальная программа «Управление имуществом и муниципальными финансами» | B171: 01 | C171: 13 | D171: 12 0 00 00000 | F171: =F172+F200 -> 122499.7 | G171: 511 | H171: 122499.7 | I171: =I172+I200 -> 511 | J171: 121814.1 | K171: 0.9944032516 | L171: 500.2 | M171: 0.9788649706
A172: Подпрограмма «Развитие имущественного комплекса» | B172: 01 | C172: 13 | D172: 12 1 00 00000 | F172: =F173+F181+F187 -> 29951.6 | G172: 511 | H172: 29951.6 | I172: =I173+I181+I187 -> 511 | J172: 29442 | K172: 0.9829858839 | L172: 500.2 | M172: 0.9788649706
A173: Основное мероприятие «Управление имуществом, находящимся в муниципальной собственности, и выполнение кадастровых работ» | B173: 01 | C173: 13 | D173: 12 1 02 00000 | F173: =F174 -> 13034.2 | H173: =H174 -> 13034.2 | J173: =J174 -> 12559.9 | K173: 0.9636111154
A174: Владение, пользование и распоряжение имуществом, находящимся в муниципальной собственности городского округа | B174: 01 | C174: 13 | D174: 12 1 02 00170 | F174: =F175+F179+F177 -> 13034.2 | H174: =H175+H179+H177 -> 13034.2 | J174: =J175+J179+J177 -> 12559.9 | K174: 0.9636111154
A175: Закупка товаров, работ и услуг для обеспечения государственных (муниципальных) нужд | B175: 01 | C175: 13 | D175: 12 1 02 00170 | E175: 200 | F175: =F176 -> 1367.3 | H175: =H176 -> 1367.3 | J175: =J176 -> 1075.1 | K175: 0.7862941564
A176: Иные закупки товаров, работ и услуг для обеспечения государственных (муниципальных) нужд | B176: 01 | C176: 13 | D176: 12 1 02 00170 | E176: 240 | F176: ='ведом. 2022-2024'!AD92+'ведом. 2022-2024'!AD583+'ведом. 2022-2024'!AD830 -> 1367.3 | H176: 1367.3 | J176: ='ведом. 2022-2024'!AF92+'ведом. 2022-2024'!AF583+'ведом. 2022-2024'!AF830 -> 1075.1 | K176: 0.7862941564
A177: Социальное обеспечение и иные выплаты населению | B177: 01 | C177: 13 | D177: 12 1 02 00170 | E177: 300 | F177: =F178 -> 2036.9 | H177: =H178 -> 2036.9 | J177: =J178 -> 1854.8 | K177: 0.9105994403
A178: Иные выплаты населению | B178: 01 | C178: 13 | D178: 12 1 02 00170 | E178: 360 | F178: ='ведом. 2022-2024'!AD94 -> 2036.9 | H178: 2036.9 | J178: ='ведом. 2022-2024'!AF94 -> 1854.8 | K178: 0.9105994403
A179: Предоставление субсидий бюджетным, автономным учреждениям и иным некоммерческим организациям | B179: 01 | C179: 13 | D179: 12 1 02 00170 | E179: 600 | F179: =F180 -> 9630 | H179: =H180 -> 9630 | J179: =J180 -> 9630 | K179: 1
A180: Субсидии бюджетным учреждениям | B180: 01 | C180: 13 | D180: 12 1 02 00170 | E180: 610 | F180: ='ведом. 2022-2024'!AD96 -> 9630 | H180: ='ведом. 2022-2024'!AF96 -> 9630 | J180: ='ведом. 2022-2024'!AF96 -> 9630 | K180: 1
A181: Основное мероприятие «Создание условий для реализации государственных полномочий в области земельных отношений» | B181: 01 | C181: 13 | D181: 12 1 03 00000 | F181: =F182 -> 511 | G181: 511 | H181: 511 | I181: 511 | J181: 500.2 | K181: 0.9788649706 | L181: 500.2 | M181: 0.9788649706
A182: Осуществление государственных полномочий Московской области в области земельных отношений | B182: 01 | C182: 13 | D182: 12 1 03 60830 | F182: =F183+F185 -> 511 | G182: 511 | H182: 511 | I182: =I183+I185 -> 511 | J182: 500.2 | K182: 0.9788649706 | L182: 500.2 | M182: 0.9788649706
A183: Расходы на выплаты персоналу в целях обеспечения выполнения функций государственными (муниципальными) органами, казенными учреждениями, органами управления государственными внебюджетными фондами | B183: 01 | C183: 13 | D183: 12 1 03 60830 | E183: 100 | F183: =F184 -> 500.2 | G183: 500.2 | H183: 500.2 | I183: 500.2 | J183: 500.2 | K183: 1 | L183: 500.2 | M183: 1
A184: Расходы на выплаты персоналу государственных (муниципальных) органов | B184: 01 | C184: 13 | D184: 12 1 03 60830 | E184: 120 | F184: ='ведом. 2022-2024'!AD587 -> 500.2 | G184: =F184 -> 500.2 | H184: ='ведом. 2022-2024'!AF587 -> 500.2 | I184: =H184 -> 500.2 | J184: ='ведом. 2022-2024'!AF587 -> 500.2 | K184: 1 | L184: =J184 -> 500.2 | M184: 1
A185: Закупка товаров, работ и услуг для обеспечения государственных (муниципальных) нужд | B185: 01 | C185: 13 | D185: 12 1 03 60830 | E185: 200 | F185: =F186 -> 10.8 | G185: 10.8 | H185: 10.8 | I185: 10.8 | J185: 0 | K185: 0
A186: Иные закупки товаров, работ и услуг для обеспечения государственных (муниципальных) нужд | B186: 01 | C186: 13 | D186: 12 1 03 60830 | E186: 240 | F186: ='ведом. 2022-2024'!AD589 -> 10.8 | G186: =F186 -> 10.8 | H186: 10.8 | I186: =H186 -> 10.8 | J186: ='ведом. 2022-2024'!AF589 -> 0 | K186: 0
A187: Основное мероприятие "Создание условий для реализации полномочий органов местного самоуправления" | B187: 01 | C187: 13 | D187: 12 1 07 00000 | F187: =F188 -> 16406.4 | H187: =H188 -> 16406.4 | I187: =I188 -> 0 | J187: 16381.9 | K187: 0.9985066803
A188: Обеспечение деятельности органов местного самоуправления | B188: 01 | C188: 13 | D188: 12 1 07 00130 | F188: =F189+F194+F197 -> 16406.4 | G188: =G189+G194+G197 -> 0 | H188: 16406.4 | I188: 0 | J188: =J189+J194+J197 -> 16381.9 | K188: 0.9985066803
A189: Обеспечение деятельности органов местного самоуправления (расходы на обеспечение деятельности органов местного самоуправления) | B189: 01 | C189: 13 | D189: 12 1 07 00131 | F189: =F190+F192 -> 1111.9 | G189: =G190+G192 -> 0 | H189: 1111.9 | I189: 0 | J189: =J190+J192 -> 1087.5 | K189: 0.9780555805
A190: Закупка товаров, работ и услуг для обеспечения государственных (муниципальных) нужд | B190: 01 | C190: 13 | D190: 12 1 07 00131 | E190: 200 | F190: =F191 -> 1110.1 | H190: =H191 -> 1110.1 | J190: =J191 -> 1085.7 | K190: 0.9780199982
A191: Иные закупки товаров, работ и услуг для обеспечения государственных (муниципальных) нужд | B191: 01 | C191: 13 | D191: 12 1 07 00131 | E191: 240 | F191: ='ведом. 2022-2024'!AD594 -> 1110.1 | H191: 1110.1 | J191: ='ведом. 2022-2024'!AF594 -> 1085.7 | K191: 0.9780199982
A192: Иные бюджетные ассигнования | B192: 01 | C192: 13 | D192: 12 1 07 00131 | E192: 800 | F192: =F193 -> 1.8 | H192: =H193 -> 1.8 | J192: =J193 -> 1.8 | K192: 1
A193: Уплата налогов, сборов и иных платежей | B193: 01 | C193: 13 | D193: 12 1 07 00131 | E193: 850 | F193: ='ведом. 2022-2024'!AD596 -> 1.8 | H193: 1.8 | J193: ='ведом. 2022-2024'!AF596 -> 1.8 | K193: 1
A194: Обеспечение деятельности органов местного самоуправления (расходы на содержание лиц, замещающих должности, не являющиеся должностями муниципальной службы) | B194: 01 | C194: 13 | D194: =D195 -> 12 1 07 00132 | F194: =F195 -> 5565.8 | H194: =H195 -> 5565.8 | J194: =J195 -> 5565.7 | K194: 0.9999820331
A195: Расходы на выплаты персоналу в целях обеспечения выполнения функций государственными (муниципальными) органами, казенными учреждениями, органами управления государственными внебюджетными фондами | B195: 01 | C195: 13 | D195: =D196 -> 12 1 07 00132 | E195: 100 | F195: =F196 -> 5565.8 | H195: =H196 -> 5565.8 | J195: =J196 -> 5565.7 | K195: 0.9999820331
A196: Расходы на выплаты персоналу государственных (муниципальных) органов | B196: 01 | C196: 13 | D196: 12 1 07 00132 | E196: 120 | F196: ='ведом. 2022-2024'!AD599 -> 5565.8 | H196: 5565.8 | J196: ='ведом. 2022-2024'!AF599 -> 5565.7 | K196: 0.9999820331
A197: Обеспечение деятельности органов местного самоуправления (расходы на содержание лиц, замещающих должности муниципальной службы) | B197: 01 | C197: 13 | D197: =D198 -> 12 1 07 00133 | F197: =F198 -> 9728.7 | H197: =H198 -> 9728.7 | J197: =J198 -> 9728.7 | K197: 1
A198: Расходы на выплаты персоналу в целях обеспечения выполнения функций государственными (муниципальными) органами, казенными учреждениями, органами управления государственными внебюджетными фондами | B198: 01 | C198: 13 | D198: =D199 -> 12 1 07 00133 | E198: 100 | F198: =F199 -> 9728.7 | H198: =H199 -> 9728.7 | J198: =J199 -> 9728.7 | K198: 1
A199: Расходы на выплаты персоналу государственных (муниципальных) органов | B199: 01 | C199: 13 | D199: 12 1 07 00133 | E199: 120 | F199: ='ведом. 2022-2024'!AD602 -> 9728.7 | H199: ='ведом. 2022-2024'!AF602 -> 9728.7 | J199: ='ведом. 2022-2024'!AF602 -> 9728.7 | K199: 1
A200: Обеспечивающая подпрограмма | B200: 01 | C200: 13 | D200: 12 5 00 00000 | F200: =F201 -> 92548.1 | H200: =H201 -> 92548.1 | J200: =J201 -> 92372.1 | K200: 0.9980982862
A201: Основное мероприятие «Создание условий для реализации полномочий органов местного самоуправления» | B201: 01 | C201: 13 | D201: 12 5 01 00000 | F201: =F202+F205+F208 -> 92548.1 | H201: =H202+H205+H208 -> 92548.1 | J201: =J202+J205+J208 -> 92372.1 | K201: 0.9980982862
A202: Взносы в общественные организации | B202: 01 | C202: 13 | D202: 12 5 01 00870 | F202: =F203 -> 121.2 | H202: =H203 -> 121.2 | J202: =J203 -> 121.2 | K202: 1
A203: Иные бюджетные ассигнования | B203: 01 | C203: 13 | D203: 12 5 01 00870 | E203: 800 | F203: =F204 -> 121.2 | H203: =H204 -> 121.2 | J203: =J204 -> 121.2 | K203: 1
A204: Уплата налогов, сборов и иных платежей | B204: 01 | C204: 13 | D204: 12 5 01 00870 | E204: 850 | F204: ='ведом. 2022-2024'!AD101 -> 121.2 | H204: ='ведом. 2022-2024'!AF101 -> 121.2 | J204: ='ведом. 2022-2024'!AF101 -> 121.2 | K204: =J204/H204 -> 1
... 743 more rows

Sheet Целевые 2022-2024 (hidden)
F1: Приложение 3
E2: к отчету об исполнении бюджета
E3: городского округа Лыткарино за 2022 год
A6: Расходы городского округа Лыткарино по целевым статьям (муниципальным программам городского округа Лыткарино и непрограммным направлениям деятельности), группам и подгруппам видов расходов классификации расходов бюджета в 2022 году
G8: (тыс.руб.)
A9: Наименования | B9: ЦСР | C9: ВР | D9: Утвержден-ный план | E9: Уточненный план | F9: Исполнение | G9: % испол-нения
A10: 1 | B10: 2 | C10: 3 | D10: 4 | E10: 5 | F10: 6 | G10: 7
A11: Муниципальная программа «Здравоохранение» | B11: 01 0 00 00000 | D11: =D12 -> 332.9 | E11: 332.9 | F11: 332.9 | G11: =F11/E11 -> 1
A12: Подпрограмма «Финансовое обеспечение системы организации медицинской помощи» | B12: 01 5 00 00000 | D12: 332.9 | E12: 332.9 | F12: 332.9 | G12: =F12/E12 -> 1
A13: Основное мероприятие «Развитие мер социальной поддержки медицинских работников» | B13: 01 5 03 00000 | D13: 332.9 | E13: 332.9 | F13: 332.9 | G13: 1
A14: Создание условий для оказания медицинской помощи населению на территории городского округа в соответствии с территориальной программой государственных гарантий бесплатного оказания гражданам медицинской помощи | B14: 01 5 03 00420 | D14: 332.9 | E14: 332.9 | F14: 332.9 | G14: 1
A15: Социальное обеспечение и иные выплаты населению | B15: 01 5 03 00420 | C15: 300 | D15: 332.9 | E15: 332.9 | F15: 332.9 | G15: 1
A16: Социальные выплаты гражданам, кроме публичных нормативных социальных выплат | B16: 01 5 03 00420 | C16: 320 | D16: ='Функц. 2022-2024'!F851 -> 332.9 | E16: ='Функц. 2022-2024'!H851 -> 332.9 | F16: ='Функц. 2022-2024'!J851 -> 332.9 | G16: 1
A17: Муниципальная программа «Культура» | B17: 02 0 00 00000 | D17: =D18+D23+D34+D58+D53 -> 165164.8 | E17: =E18+E23+E34+E58+E53 -> 165164.8 | F17: =F18+F23+F34+F58+F53 -> 165001.2 | G17: 0.9990094742
A18: Подпрограмма «Развитие музейного дела в Московской области» | B18: 02 2 00 00000 | D18: =D19 -> 19040.6 | E18: 19040.6 | F18: 19040.6 | G18: 1
A19: Основное мероприятие «Обеспечение выполнения функций муниципальных музеев» | B19: 02 2 01 00000 | D19: 19040.6 | E19: 19040.6 | F19: 19040.6 | G19: 1
A20: Расходы на обеспечение деятельности (оказание услуг) муниципальных учреждений - музеи, галереи | B20: 02 2 01 06130 | D20: 19040.6 | E20: 19040.6 | F20: 19040.6 | G20: 1
A21: Предоставление субсидий бюджетным, автономным учреждениям и иным некоммерческим организациям | B21: 02 2 01 06130 | C21: 600 | D21: 19040.6 | E21: 19040.6 | F21: 19040.6 | G21: 1
A22: Субсидии бюджетным учреждениям | B22: 02 2 01 06130 | C22: 610 | D22: ='Функц. 2022-2024'!F800 -> 19040.6 | E22: ='Функц. 2022-2024'!H800 -> 19040.6 | F22: ='Функц. 2022-2024'!J800 -> 19040.6 | G22: 1
A23: Подпрограмма «Развитие библиотечного дела в Московской области» | B23: 02 3 00 00000 | D23: =D24 -> 28888.5 | E23: =E24 -> 28888.5 | F23: =F24 -> 28847.2 | G23: 0.9985703654
A24: Основное мероприятие «Организация библиотечного обслуживания населения муниципальными библиотеками Московской области» | B24: 02 3 01 00000 | D24: =D25+D28+D31 -> 28888.5 | E24: =E25+E28+E31 -> 28888.5 | F24: =F25+F28+F31 -> 28847.2 | G24: 0.9985703654
A25: Организация библиотечного обслуживания населения, комплектование и обеспечение сохранности библиотечных фондов библиотек городского округа | B25: 02 3 01 00450 | D25: =D26 -> 1000.1 | E25: 1000.1 | F25: 958.8 | G25: 0.9587041296
A26: Предоставление субсидий бюджетным, автономным учреждениям и иным некоммерческим организациям | B26: 02 3 01 00450 | C26: 600 | D26: 1000.1 | E26: 1000.1 | F26: 958.8 | G26: 0.9587041296
A27: Субсидии бюджетным учреждениям | B27: 02 3 01 00450 | C27: 610 | D27: ='Функц. 2022-2024'!F805 -> 1000.1 | E27: ='Функц. 2022-2024'!H805 -> 1000.1 | F27: ='Функц. 2022-2024'!J805 -> 958.8 | G27: 0.9587041296
A28: Расходы на обеспечение деятельности (оказание услуг) муниципальных учреждений - библиотеки | B28: 02 3 01 06100 | D28: =D29 -> 27500 | E28: 27500 | F28: 27500 | G28: 1
A29: Предоставление субсидий бюджетным, автономным учреждениям и иным некоммерческим организациям | B29: 02 3 01 06100 | C29: 600 | D29: 27500 | E29: 27500 | F29: 27500 | G29: 1
A30: Субсидии бюджетным учреждениям | B30: 02 3 01 06100 | C30: 610 | D30: ='Функц. 2022-2024'!F808 -> 27500 | E30: ='Функц. 2022-2024'!H808 -> 27500 | F30: ='Функц. 2022-2024'!J808 -> 27500 | G30: 1
A31: Государственная поддержка отрасли культуры (модернизация библиотек в части комплектования книжных фондов муниципальных общедоступных библиотек и государственной общедоступной библиотеки Московской области) | B31: 02 3 01 L5198 | D31: =D32 -> 388.4 | E31: 388.4 | F31: 388.4 | G31: 1
A32: Предоставление субсидий бюджетным, автономным учреждениям и иным некоммерческим организациям | B32: 02 3 01 L5198 | C32: 600 | D32: 388.4 | E32: 388.4 | F32: 388.4 | G32: 1
A33: Субсидии бюджетным учреждениям | B33: 02 3 01 L5198 | C33: 610 | D33: ='Функц. 2022-2024'!F811 -> 388.4 | E33: ='Функц. 2022-2024'!H811 -> 388.4 | F33: ='Функц. 2022-2024'!J811 -> 388.4 | G33: 1
A34: Подпрограмма «Развитие профессионального искусства, гастрольно-концертной и культурно-досуговой деятельности, кинематографии Московской области» | B34: 02 4 00 00000 | D34: =D35+D45 -> 67149.6 | E34: =E35+E45 -> 67149.6 | F34: =F35+F45 -> 67027.3 | G34: 0.9981786935
A35: Основное мероприятие "Обеспечение функций театрально-концертных учреждений, муниципальных учреждений культуры Московской области " | B35: 02 4 01 00000 | D35: =D36 -> 10332.1 | E35: =E36 -> 10332.1 | F35: =F36 -> 10209.8 | G35: 0.9881631033
A36: Мероприятия в сфере культуры | B36: 02 4 01 00500 | D36: =D37+D42 -> 10332.1 | E36: =E37+E42 -> 10332.1 | F36: =F37+F42 -> 10209.8 | G36: 0.9881631033
A37: Мероприятия в сфере культуры (проведение культурно-массовых и праздничных мероприятий в сфере культуры в городе Лыткарино) | B37: 02 4 01 00501 | D37: =D40+D38 -> 9897.1 | E37: =E40+E38 -> 9897.1 | F37: =F40+F38 -> 9788.8 | G37: 0.9890574007
A38: Закупка товаров, работ и услуг для обеспечения государственных (муниципальных) нужд | B38: 02 4 01 00501 | C38: 200 | D38: =D39 -> 1176.1 | E38: =E39 -> 1176.1 | F38: =F39 -> 1176.1 | G38: 1
A39: Иные закупки товаров, работ и услуг для обеспечения государственных (муниципальных) нужд | B39: 02 4 01 00501 | C39: 240 | D39: ='Функц. 2022-2024'!F817 -> 1176.1 | E39: ='Функц. 2022-2024'!H817 -> 1176.1 | F39: ='Функц. 2022-2024'!J817 -> 1176.1 | G39: 1
A40: Предоставление субсидий бюджетным, автономным учреждениям и иным некоммерческим организациям | B40: 02 4 01 00501 | C40: 600 | D40: =D41 -> 8721 | E40: =E41 -> 8721 | F40: =F41 -> 8612.7 | G40: 0.9875816993
A41: Субсидии бюджетным учреждениям | B41: 02 4 01 00501 | C41: 610 | D41: ='Функц. 2022-2024'!F819 -> 8721 | E41: ='Функц. 2022-2024'!H819 -> 8721 | F41: ='Функц. 2022-2024'!J819 -> 8612.7 | G41: 0.9875816993
A42: Мероприятия в сфере культуры (проведение мероприятий по духовно-нравственному воспитанию) | B42: 02 4 01 00502 | D42: =D43 -> 435 | E42: 435 | F42: 421 | G42: 0.967816092
A43: Предоставление субсидий бюджетным, автономным учреждениям и иным некоммерческим организациям | B43: 02 4 01 00502 | C43: 600 | D43: 435 | E43: 435 | F43: 421 | G43: 0.967816092
A44: Субсидии бюджетным учреждениям | B44: 02 4 01 00502 | C44: 610 | D44: ='Функц. 2022-2024'!F822 -> 435 | E44: ='Функц. 2022-2024'!H822 -> 435 | F44: ='Функц. 2022-2024'!J822 -> 421 | G44: 0.967816092
A45: Основное мероприятие "Обеспечение функций культурно-досуговых учреждений" | B45: 02 4 05 00000 | D45: =D46 -> 56817.5 | E45: =E46 -> 56817.5 | F45: =F46 -> 56817.5 | G45: 1
A46: Расходы на обеспечение деятельности(оказание услуг) муниципальных учреждений-культурно-досуговые учреждения | B46: 02 4 05 06110 | D46: =D47+D50 -> 56817.5 | E46: =E47+E50 -> 56817.5 | F46: =F47+F50 -> 56817.5 | G46: 1
A47: ='Функц. 2022-2024'!A825 -> Расходы на обеспечение деятельности (оказание услуг) муниципальных учреждений - культурно-досуговые учреждения (Расходы на выполнение муниципального задания муниципальных учреждений- МУ ДК "Мир") | B47: ='ведом. 2022-2024'!AB427 -> 02 4 05 06111 | D47: =D48 -> 30423.5 | E47: 30423.5 | F47: 30423.5 | G47: 1
A48: ='Функц. 2022-2024'!A826 -> Предоставление субсидий бюджетным, автономным учреждениям и иным некоммерческим организациям | B48: ='ведом. 2022-2024'!AB428 -> 02 4 05 06111 | C48: 600 | D48: 30423.5 | E48: 30423.5 | F48: 30423.5 | G48: 1
A49: ='Функц. 2022-2024'!A827 -> Субсидии бюджетным учреждениям | B49: ='ведом. 2022-2024'!AB429 -> 02 4 05 06111 | C49: 610 | D49: ='ведом. 2022-2024'!AD429 -> 30423.5 | E49: ='ведом. 2022-2024'!AF429 -> 30423.5 | F49: ='Функц. 2022-2024'!J827 -> 30423.5 | G49: 1
A50: ='Функц. 2022-2024'!A828 -> Расходы на обеспечение деятельности (оказание услуг) муниципальных учреждений - культурно-досуговые учреждения (Расходы на выполнение муниципального задания муниципальных учреждений- МУ ДК "Центр молодежи") | B50: ='ведом. 2022-2024'!AB430 -> 02 4 05 06112 | D50: =D51 -> 26394 | E50: 26394 | F50: 26394 | G50: 1
A51: ='Функц. 2022-2024'!A829 -> Предоставление субсидий бюджетным, автономным учреждениям и иным некоммерческим организациям | B51: ='ведом. 2022-2024'!AB431 -> 02 4 05 06112 | C51: 600 | D51: 26394 | E51: 26394 | F51: 26394 | G51: 1
A52: ='Функц. 2022-2024'!A830 -> Субсидии бюджетным учреждениям | B52: ='ведом. 2022-2024'!AB432 -> 02 4 05 06112 | C52: 610 | D52: ='ведом. 2022-2024'!AD432 -> 26394 | E52: ='Функц. 2022-2024'!H830 -> 26394 | F52: ='Функц. 2022-2024'!J830 -> 26394 | G52: 1
A53: Подпрограмма "Развитие образования в сфере культуры Московской области" | B53: 02 6 00 00000 | D53: =D54 -> 47959.1 | E53: 47959.1 | F53: 47959.1 | G53: 1
A54: Основное мероприятие "Обеспечение функций муниципальных организаций дополнительного образования сферы культуры" | B54: 02 6 01 00000 | D54: 47959.1 | E54: 47959.1 | F54: 47959.1 | G54: 1
A55: Расходы на обеспечение деятельности (оказание услуг) муниципальных организаций дополнительного образования сферы культуры | B55: 02 6 01 06260 | D55: 47959.1 | E55: 47959.1 | F55: 47959.1 | G55: 1
A56: Предоставление субсидий бюджетным, автономным учреждениям и иным некоммерческим организациям | B56: 02 6 01 06260 | C56: 600 | D56: 47959.1 | E56: 47959.1 | F56: 47959.1 | G56: 1
A57: Субсидии бюджетным учреждениям | B57: 02 6 01 06260 | C57: 610 | D57: ='Функц. 2022-2024'!F686 -> 47959.1 | E57: ='Функц. 2022-2024'!H686 -> 47959.1 | F57: ='Функц. 2022-2024'!J686 -> 47959.1 | G57: 1
A58: Подпрограмма «Развитие архивного дела в Московской области» | B58: 02 7 00 00000 | D58: =D59+D63 -> 2127 | E58: =E59+E63 -> 2127 | F58: =F59+F63 -> 2127 | G58: 1
A59: Основное мероприятие «Хранение, комплектование, учет и использование архивных документов в муниципальных архивах» | B59: 02 7 01 00000 | D59: =D60 -> 521 | E59: 521 | F59: 521 | G59: 1
A60: Расходы на обеспечение деятельности (оказание услуг) муниципальных архивов | B60: 02 7 01 06160 | D60: 521 | E60: 521 | F60: 521 | G60: 1
A61: Закупка товаров, работ и услуг для обеспечения государственных (муниципальных) нужд | B61: 02 7 01 06160 | C61: 200 | D61: 521 | E61: 521 | F61: 521 | G61: 1
A62: Иные закупки товаров, работ и услуг для обеспечения государственных (муниципальных) нужд | B62: 02 7 01 06160 | C62: 240 | D62: ='Функц. 2022-2024'!F45+'Функц. 2022-2024'!F170+'Функц. 2022-2024'!F741 -> 521 | E62: ='Функц. 2022-2024'!H45+'Функц. 2022-2024'!H170+'Функц. 2022-2024'!H741 -> 521 | F62: ='Функц. 2022-2024'!J45+'Функц. 2022-2024'!J170+'Функц. 2022-2024'!J741 -> 521 | G62: 1
A63: Основное мероприятие «Временное хранение, комплектование, учет и использование архивных документов, относящихся к собственности Московской области и временно хранящихся в муниципальных архивах» | B63: 02 7 02 00000 | D63: =D64 -> 1606 | E63: =E64 -> 1606 | F63: =F64 -> 1606 | G63: 1
A64: Осуществление переданных полномочий по временному хранению, комплектованию, учету и использованию архивных документов, относящихся к собственности Московской области и временно хранящихся в муниципальных архивах | B64: 02 7 02 60690 | D64: =D65+D67 -> 1606 | E64: =E65+E67 -> 1606 | F64: =F65+F67 -> 1606 | G64: 1
A65: Расходы на выплаты персоналу в целях обеспечения выполнения функций государственными (муниципальными) органами, казенными учреждениями, органами управления государственными внебюджетными фондами | B65: 02 7 02 60690 | C65: 100 | D65: =D66 -> 1540.4 | E65: =E66 -> 1540.4 | F65: =F66 -> 1540.4 | G65: 1
A66: Расходы на выплаты персоналу государственных (муниципальных) органов | B66: 02 7 02 60690 | C66: 120 | D66: ='Функц. 2022-2024'!F49 -> 1540.4 | E66: ='Функц. 2022-2024'!H49 -> 1540.4 | F66: ='Функц. 2022-2024'!J49 -> 1540.4 | G66: 1
A67: Закупка товаров, работ и услуг для обеспечения государственных (муниципальных) нужд | B67: 02 7 02 60690 | C67: 200 | D67: =D68 -> 65.6 | E67: =E68 -> 65.6 | F67: =F68 -> 65.6 | G67: 1
A68: Иные закупки товаров, работ и услуг для обеспечения государственных (муниципальных) нужд | B68: 02 7 02 60690 | C68: 240 | D68: ='Функц. 2022-2024'!F51 -> 65.6 | E68: ='Функц. 2022-2024'!H51 -> 65.6 | F68: ='Функц. 2022-2024'!J51 -> 65.6 | G68: 1
A69: Муниципальная программа «Образование» | B69: 03 0 00 00000 | D69: =D70+D86+D118+D136 -> 1106646 | E69: =E70+E86+E118+E136 -> 1106419 | F69: =F70+F86+F118+F136 -> 1072679.7 | G69: 0.9695058563
A70: Подпрограмма «Дошкольное образование» | B70: 03 1 00 00000 | D70: =D71 -> 164917.8 | E70: =E71 -> 164917.8 | F70: =F71 -> 157333.8 | G70: 0.954013454
A71: Основное мероприятие «Финансовое обеспечение реализации прав граждан на получение общедоступного и бесплатного дошкольного образования» | B71: 03 1 02 00000 | D71: =D72+D79 -> 164917.8 | E71: =E72+E79 -> 164917.8 | F71: =F72+F79 -> 157333.8 | G71: 0.954013454
A72: Расходы на обеспечение деятельности (оказание услуг) муниципальных учреждений - дошкольные образовательные организации | B72: 03 1 02 06040 | D72: =D73+D76 -> 148482.8 | E72: =E73+E76 -> 148482.8 | F72: =F73+F76 -> 141704.9 | G72: 0.9543522886
A73: Расходы на обеспечение деятельности (оказание услуг) муниципальных учреждений - дошкольные образовательные организации (выполнение муниципального задания) | B73: 03 1 02 06041 | D73: =D74 -> 148432.8 | E73: 148432.8 | F73: 141654.9 | G73: 0.9543369121
A74: Предоставление субсидий бюджетным, автономным учреждениям и иным некоммерческим организациям | B74: 03 1 02 06041 | C74: 600 | D74: 148432.8 | E74: 148432.8 | F74: 141654.9 | G74: 0.9543369121
A75: Субсидии бюджетным учреждениям | B75: 03 1 02 06041 | C75: 610 | D75: ='Функц. 2022-2024'!F612 -> 148432.8 | E75: ='Функц. 2022-2024'!H612 -> 148432.8 | F75: ='Функц. 2022-2024'!J612 -> 141654.9 | G75: 0.9543369121
A76: Расходы на обеспечение деятельности (оказание услуг) муниципальных учреждений - дошкольные образовательные организации (мероприятия в сфере образования) | B76: 03 1 02 06042 | D76: =D77 -> 50 | E76: 50 | F76: 50 | G76: =F76/E76 -> 1
A77: Предоставление субсидий бюджетным, автономным учреждениям и иным некоммерческим организациям | B77: 03 1 02 06042 | C77: 600 | D77: 50 | E77: 50 | F77: 50 | G77: 1
A78: Субсидии бюджетным учреждениям | B78: 03 1 02 06042 | C78: 610 | D78: ='Функц. 2022-2024'!F615 -> 50 | E78: ='Функц. 2022-2024'!H615 -> 50 | F78: ='Функц. 2022-2024'!J615 -> 50 | G78: 1
A79: Выплата компенсации родительской платы за присмотр и уход за детьми, осваивающими образовательные программы дошкольного образования в организациях Московской области, осуществляющих образовательную деятельность | B79: 03 1 02 62140 | D79: =D82+D80+D84 -> 16435 | E79: =E82+E80+E84 -> 16435 | F79: =F82+F80+F84 -> 15628.9 | G79: 0.9509522361
A80: Закупка товаров, работ и услуг для обеспечения государственных (муниципальных) нужд | B80: 03 1 02 62140 | C80: 200 | D80: =D81 -> 77 | E80: =E81 -> 77 | F80: =F81 -> 71.2 | G80: 0.9246753247
A81: Иные закупки товаров, работ и услуг для обеспечения государственных (муниципальных) нужд | B81: 03 1 02 62140 | C81: 240 | D81: ='Функц. 2022-2024'!F881 -> 77 | E81: ='Функц. 2022-2024'!H881 -> 77 | F81: ='Функц. 2022-2024'!J881 -> 71.2 | G81: 0.9246753247
A82: Социальное обеспечение и иные выплаты населению | B82: 03 1 02 62140 | C82: 300 | D82: =D83 -> 15500 | E82: =E83 -> 15500 | F82: =F83 -> 14699.7 | G82: 0.9483677419
A83: Публичные нормативные социальные выплаты гражданам | B83: 03 1 02 62140 | C83: 310 | D83: ='Функц. 2022-2024'!F883 -> 15500 | E83: ='Функц. 2022-2024'!H883 -> 15500 | F83: ='Функц. 2022-2024'!J883 -> 14699.7 | G83: 0.9483677419
A84: Предоставление субсидий бюджетным, автономным учреждениям и иным некоммерческим организациям | B84: 03 1 02 62140 | C84: 600 | D84: =D85 -> 858 | E84: =E85 -> 858 | F84: =F85 -> 858 | G84: 1
A85: Субсидии бюджетным учреждениям | B85: 03 1 02 62140 | C85: 610 | D85: ='Функц. 2022-2024'!F885 -> 858 | E85: ='Функц. 2022-2024'!H885 -> 858 | F85: ='Функц. 2022-2024'!J885 -> 858 | G85: 1
A86: Подпрограмма «Общее образование» | B86: 03 2 00 00000 | D86: =D87+D114+D101 -> 854093.2 | E86: =E87+E114+E101 -> 854093.2 | F86: 830644.8 | G86: 0.9725458533
A87: Основное мероприятие «Финансовое обеспечение деятельности образовательных организаций» | B87: 03 2 01 00000 | D87: =D88+D98+D95 -> 810292.7 | E87: =E88+E98+E95 -> 810292.7 | F87: =F88+F98+F95 -> 793163.7 | G87: 0.9788607253
A88: Расходы на обеспечение деятельности (оказание услуг) муниципальных учреждений - общеобразовательные организации, оказывающие услуги дошкольного, начального общего, основного общего, среднего общего образования | B88: 03 2 01 06050 | D88: =D89+D92 -> 76980.7 | E88: =E89+E92 -> 76980.7 | F88: =F89+F92 -> 69196 | G88: 0.898874653
A89: Расходы на обеспечение деятельности (оказание услуг) муниципальных учреждений - общеобразовательные организации(выполнение муниципального задания) | B89: 03 2 01 06051 | D89: =D90 -> 66974 | E89: 66974 | F89: 59202 | G89: 0.8839549676
A90: Предоставление субсидий бюджетным, автономным учреждениям и иным некоммерческим организациям | B90: 03 2 01 06051 | C90: 600 | D90: 66974 | E90: 66974 | F90: 59202 | G90: 0.8839549676
A91: Субсидии бюджетным учреждениям | B91: 03 2 01 06051 | C91: 610 | D91: ='Функц. 2022-2024'!F644 -> 66974 | E91: ='Функц. 2022-2024'!H644 -> 66974 | F91: ='Функц. 2022-2024'!J644 -> 59202 | G91: 0.8839549676
A92: Расходы на обеспечение деятельности (оказание услуг) муниципальных учреждений - общеобразовательные организации (мероприятия в сфере образования) | B92: 03 2 01 06052 | D92: =D93 -> 10006.7 | E92: 10006.7 | F92: 9994 | G92: 0.9987308503
A93: Предоставление субсидий бюджетным, автономным учреждениям и иным некоммерческим организациям | B93: 03 2 01 06052 | C93: 600 | D93: 10006.7 | E93: 10006.7 | F93: 9994 | G93: 0.9987308503
A94: Субсидии бюджетным учреждениям | B94: 03 2 01 06052 | C94: 610 | D94: ='Функц. 2022-2024'!F647 -> 10006.7 | E94: ='Функц. 2022-2024'!H647 -> 10006.7 | F94: ='Функц. 2022-2024'!J647 -> 9994 | G94: 0.9987308503
A95: Ежемесячное денежное вознаграждение за классное руководство педагогическим работникам государственных и муниципальных общеобразовательных организаций (Финансовое обеспечение государственных гарантий реализации прав на получение общедоступного и бесплатного дошкольного образования в муниципальных дошкольных образовательных организациях в Московской области, общедоступного и бесплатного дошкольного, начального общего, основного общего, среднего общего образования в муниципальных общеобразовательных организациях в Московской области, обеспечение дополнительного образования детей в муниципальных общеобразовательных организациях в Московской области, включая расходы на оплату труда, приобретение учебников и учебных пособий, средств обучения, игр, игрушек (за исключением расходов на содержание зданий и оплату коммунальных услуг) | B95: 03 2 01 53031 | D95: =D96 -> 18697 | E95: 18697 | F95: 17705 | G95: 0.9469433599
A96: Предоставление субсидий бюджетным, автономным учреждениям и иным некоммерческим организациям | B96: 03 2 01 53031 | C96: 600 | D96: 18697 | E96: 18697 | F96: 17705 | G96: 0.9469433599
A97: Субсидии бюджетным учреждениям | B97: 03 2 01 53031 | C97: 610 | D97: ='Функц. 2022-2024'!F650 -> 18697 | E97: ='Функц. 2022-2024'!H650 -> 18697 | F97: ='Функц. 2022-2024'!J650 -> 17705 | G97: 0.9469433599
A98: Финансовое обеспечение государственных гарантий реализации прав на получение общедоступного и бесплатного дошкольного образования в муниципальных дошкольных образовательных организациях в Московской области, общедоступного и бесплатного дошкольного, начального общего, основного общего, среднего общего образования в муниципальных общеобразовательных организациях в Московской области, обеспечение дополнительного образования детей в муниципальных общеобразовательных организациях в Московской области, включая расходы на оплату труда, приобретение учебников и учебных пособий, средств обучения, игр, игрушек (за исключением расходов на содержание зданий и оплату коммунальных услуг) | B98: 03 2 01 62010 | D98: =D99 -> 714615 | E98: 714615 | F98: 706262.7 | G98: 0.9883121681
A99: Предоставление субсидий бюджетным, автономным учреждениям и иным некоммерческим организациям | B99: 03 2 01 62010 | C99: 600 | D99: 714615 | E99: 714615 | F99: 706262.7 | G99: 0.9883121681
A100: Субсидии бюджетным учреждениям | B100: 03 2 01 62010 | C100: 610 | D100: ='Функц. 2022-2024'!F653+'Функц. 2022-2024'!F692+'Функц. 2022-2024'!F620 -> 714615 | E100: ='Функц. 2022-2024'!H620+'Функц. 2022-2024'!H653+'Функц. 2022-2024'!H692 -> 714615 | F100: ='Функц. 2022-2024'!J692+'Функц. 2022-2024'!J620+'Функц. 2022-2024'!J653 -> 706262.7 | G100: 0.9883121681
A101: Основное мероприятие «Реализация федеральных государственных образовательных стандартов общего образования, в том числе мероприятий по нормативному правовому и методическому сопровождению, обновлению содержания и технологий образования» | B101: 03 2 03 00000 | D101: =D110+D105+D113+D102 -> 42260.1 | E101: =E110+E105+E113+E102 -> 42260.1 | F101: 36051.9 | G101: 0.853095473
A102: Материально-техническое обеспечение муниципальных общеобразовательных организаций в Московской области в целях организации автоматизированной системы учета предоставления питания обучающимся | B102: 03 2 03 61960 | D102: =D103 -> 420 | E102: 420 | F102: 420 | G102: 1
A103: Закупка товаров, работ и услуг для обеспечения государственных (муниципальных) нужд | B103: 03 2 03 61960 | C103: 200 | D103: 420 | E103: 420 | F103: 420 | G103: 1
A104: Иные закупки товаров, работ и услуг для обеспечения государственных (муниципальных) нужд | B104: 03 2 03 61960 | C104: 240 | D104: ='Функц. 2022-2024'!F657 -> 420 | E104: ='Функц. 2022-2024'!H657 -> 420 | F104: ='Функц. 2022-2024'!J657 -> 420 | G104: 1
A105: Оплата расходов, связанных с компенсацией проезда к месту учебы и обратно отдельным категориям обучающихся по очной форме обучения муниципальных общеобразовательных организаций в Московской области | B105: 03 2 03 62230 | D105: =D106 -> 24 | E105: 24 | F105: 12.6 | G105: 0.525
A106: Предоставление субсидий бюджетным, автономным учреждениям и иным некоммерческим организациям | B106: =B107 -> 03 2 03 62230 | C106: 600 | D106: 24 | E106: 24 | F106: 12.6 | G106: 0.525
A107: Субсидии бюджетным учреждениям | B107: 03 2 03 62230 | C107: 610 | D107: ='Функц. 2022-2024'!F660 -> 24 | E107: ='Функц. 2022-2024'!H660 -> 24 | F107: ='Функц. 2022-2024'!J660 -> 12.6 | G107: 0.525
A108: Организация бесплатного горячего питания обучающихся, получающих начальное общее образование в государственных и муниципальных образовательных организациях | B108: 03 2 03 L3040 | D108: =D109 -> 22646.1 | E108: 22646.1 | F108: 22566.7 | G108: 0.9964938775
A109: Закупка товаров, работ и услуг для обеспечения государственных (муниципальных) нужд | B109: 03 2 03 L3040 | C109: 200 | D109: 22646.1 | E109: 22646.1 | F109: 22566.7 | G109: 0.9964938775
A110: Иные закупки товаров, работ и услуг для обеспечения государственных (муниципальных) нужд | B110: 03 2 03 L3040 | C110: 240 | D110: ='Функц. 2022-2024'!F663 -> 22646.1 | E110: ='Функц. 2022-2024'!H663 -> 22646.1 | F110: ='Функц. 2022-2024'!J663 -> 22566.7 | G110: 0.9964938775
A111: Организация питания обучающихся, получающих основное и среднее общее образование, и отдельных категорий обучающихся, получающих начальное общее образование, в муниципальных общеобразовательных организациях в Московской области | B111: 03 2 03 S2870 | D111: =D112 -> 19170 | E111: 19170 | F111: 13052.6 | G111: 0.6808868023
A112: Закупка товаров, работ и услуг для обеспечения государственных (муниципальных) нужд | B112: 03 2 03 S2870 | C112: 200 | D112: 19170 | E112: 19170 | F112: 13052.6 | G112: 0.6808868023
A113: Иные закупки товаров, работ и услуг для обеспечения государственных (муниципальных) нужд | B113: 03 2 03 S2870 | C113: 240 | D113: ='Функц. 2022-2024'!F666 -> 19170 | E113: ='Функц. 2022-2024'!H666 -> 19170 | F113: ='Функц. 2022-2024'!J666 -> 13052.6 | G113: 0.6808868023
A114: Основное мероприятие «Обеспечение и проведение государственной итоговой аттестации обучающихся, освоивших образовательные программы основного общего и среднего общего образования, в том числе в форме единого государственного экзамена» | B114: 03 2 05 00000 | D114: =D115 -> 1540.4 | E114: 1540.4 | F114: 1429.2 | G114: 0.9278109582
A115: Расходы на обеспечение деятельности (оказание услуг) муниципальных учреждений - общеобразовательные организации | B115: 03 2 05 06050 | D115: 1540.4 | E115: 1540.4 | F115: 1429.2 | G115: 0.9278109582
A116: Предоставление субсидий бюджетным, автономным учреждениям и иным некоммерческим организациям | B116: 03 2 05 06050 | C116: 600 | D116: 1540.4 | E116: 1540.4 | F116: 1429.2 | G116: 0.9278109582
A117: Субсидии бюджетным учреждениям | B117: 03 2 05 06050 | C117: 610 | D117: ='Функц. 2022-2024'!F670 -> 1540.4 | E117: ='Функц. 2022-2024'!H670 -> 1540.4 | F117: ='Функц. 2022-2024'!J670 -> 1429.2 | G117: 0.9278109582
A118: Подпрограмма «Дополнительное образование, воспитание и психолого-социальное сопровождение детей» | B118: 03 3 00 00000 | D118: =D119+D132+D127 -> 71358 | E118: =E119+E132+E127 -> 71131 | F118: =F119+F132+F127 -> 68529.5 | G118: 0.9634266354
A119: Основное мероприятие «Финансовое обеспечение оказания услуг (выполнения работ) организациями дополнительного образования» | B119: 03 3 03 00000 | D119: =D120 -> 57614.4 | E119: =E120 -> 57614.4 | F119: =F120 -> 55012.9 | G119: 0.9548463579
A120: Расходы на обеспечение деятельности (оказание услуг) муниципальных учреждений - организации дополнительного образования | B120: 03 3 03 06060 | D120: =D121+D124 -> 57614.4 | E120: =E121+E124 -> 57614.4 | F120: 55012.9 | G120: 0.9548463579
A121: Расходы на обеспечение деятельности (оказание услуг) муниципальных учреждений - организации дополнительного образования (выполнение муниципального задания ) | B121: 03 3 03 06061 | D121: =D123 -> 57389.4 | E121: =E123 -> 57389.4 | F121: =F123 -> 54909.7 | G121: 0.9567916723
A122: Предоставление субсидий бюджетным, автономным учреждениям и иным некоммерческим организациям | B122: 03 3 03 06061 | C122: 600 | D122: =D123 -> 57389.4 | E122: =E123 -> 57389.4 | F122: =F123 -> 54909.7 | G122: 0.9567916723
A123: Субсидии бюджетным учреждениям | B123: 03 3 03 06061 | C123: 610 | D123: ='ведом. 2022-2024'!AD722 -> 57389.4 | E123: ='Функц. 2022-2024'!H698 -> 57389.4 | F123: ='Функц. 2022-2024'!J698 -> 54909.7 | G123: 0.9567916723
A124: Расходы на обеспечение деятельности (оказание услуг) муниципальных учреждений - организации дополнительного образования (мероприятия в сфере образования) | B124: 03 3 03 06062 | D124: =D125 -> 225 | E124: =E125 -> 225 | F124: 103.2 | G124: 0.4586666667
A125: Предоставление субсидий бюджетным, автономным учреждениям и иным некоммерческим организациям | B125: 03 3 03 06062 | C125: 600 | D125: =D126 -> 225 | E125: =E126 -> 225 | F125: 103.2 | G125: 0.4586666667
A126: Субсидии бюджетным учреждениям | B126: 03 3 03 06062 | C126: 610 | D126: ='Функц. 2022-2024'!F701 -> 225 | E126: ='Функц. 2022-2024'!H701 -> 225 | F126: ='Функц. 2022-2024'!J701 -> 103.2 | G126: 0.4586666667
A127: Основное мероприятие "Реализация мер, направленных на повышение эффективности воспитательной деятельности в системе образования, физической культуры и спорта, культуры и уровня психолого-педагогической поддержки социализации детей" | B127: 03 3 04 00000 | D127: =D128 -> 5112 | E127: =E128 -> 4885 | F127: =F128 -> 4885 | G127: 1
A128: Реализация отдельных мероприятий муниципальных программ в сфере образования | B128: 03 3 04 61110 | D128: =D130 -> 5112 | E128: =E130 -> 4885 | F128: =F130 -> 4885 | G128: 1
A129: Реализация отдельных мероприятий муниципальных программ в сфере образования (на оплату труда педагогов дополнительного образования) | B129: 03 3 04 61111 | D129: =D130 -> 5112 | E129: 4885 | F129: 4885 | G129: 1
A130: Предоставление субсидий бюджетным, автономным учреждениям и иным некоммерческим организациям | B130: 03 3 04 61111 | C130: 600 | D130: 5112 | E130: 4885 | F130: 4885 | G130: 1
A131: Субсидии бюджетным учреждениям | B131: 03 3 04 61111 | C131: 610 | D131: ='Функц. 2022-2024'!F706 -> 5112 | E131: ='Функц. 2022-2024'!H706 -> 4885 | F131: ='Функц. 2022-2024'!J706 -> 4885 | G131: 1
A132: Основное мероприятие «Обеспечение функционирования модели персонифицированного финансирования дополнительного образования детей» | B132: 03 3 06 00000 | D132: =D133 -> 8631.6 | E132: =E133 -> 8631.6 | F132: =F133 -> 8631.6 | G132: 1
A133: Внедрение и обеспечение функционирования модели персонифицированного финансирования дополнительного образования детей | B133: 03 3 06 00940 | D133: =D134 -> 8631.6 | E133: =E134 -> 8631.6 | F133: 8631.6 | G133: 1
A134: Предоставление субсидий бюджетным, автономным учреждениям и иным некоммерческим организациям | B134: 03 3 06 00940 | C134: 600 | D134: =D135 -> 8631.6 | E134: =E135 -> 8631.6 | F134: 8631.6 | G134: 1
A135: Субсидии бюджетным учреждениям | B135: 03 3 06 00940 | C135: 610 | D135: ='Функц. 2022-2024'!F710 -> 8631.6 | E135: ='Функц. 2022-2024'!H710 -> 8631.6 | F135: ='Функц. 2022-2024'!J710 -> 8631.6 | G135: 1
A136: Подпрограмма "Обеспечивающая подпрограмма" | B136: 03 5 00 00000 | D136: =D137 -> 16277 | E136: =E137 -> 16277 | F136: =F137 -> 16171.6 | G136: 0.9935246053
A137: Основное мероприятие «Создание условий для реализации полномочий органов местного самоуправления» | B137: 03 5 01 00000 | D137: =D138 -> 16277 | E137: =E138 -> 16277 | F137: 16171.6 | G137: 0.9935246053
A138: Обеспечение деятельности органов местного самоуправления | B138: 03 5 01 00130 | D138: =D139+D144+D147 -> 16277 | E138: =E139+E144+E147 -> 16277 | F138: =F139+F144+F147 -> 16171.6 | G138: 0.9935246053
A139: Обеспечение деятельности органов местного самоуправления (расходы на обеспечение деятельности органов местного самоуправления) | B139: 03 5 01 00131 | D139: =D140+D142 -> 1176.3 | E139: =E140+E142 -> 1176.3 | F139: =F140+F142 -> 1073.8 | G139: 0.912862365
A140: Закупка товаров, работ и услуг для обеспечения государственных (муниципальных) нужд | B140: 03 5 01 00131 | C140: 200 | D140: =D141 -> 1175.3 | E140: =E141 -> 1175.3 | F140: =F141 -> 1073.6 | G140: =F140/E140 -> 0.9134689016
A141: Иные закупки товаров, работ и услуг для обеспечения государственных (муниципальных) нужд | B141: 03 5 01 00131 | C141: 240 | D141: ='Функц. 2022-2024'!F748 -> 1175.3 | E141: ='Функц. 2022-2024'!H748 -> 1175.3 | F141: ='Функц. 2022-2024'!J748 -> 1073.6 | G141: 0.9134689016
A142: Иные бюджетные ассигнования | B142: 03 5 01 00131 | C142: 800 | D142: =D143 -> 1 | E142: =E143 -> 1 | F142: =F143 -> 0.2 | G142: 0.2
A143: Уплата налогов, сборов и иных платежей | B143: 03 5 01 00131 | C143: 850 | D143: ='Функц. 2022-2024'!F750 -> 1 | E143: ='Функц. 2022-2024'!H750 -> 1 | F143: ='Функц. 2022-2024'!J750 -> 0.2 | G143: 0.2
A144: Обеспечение деятельности органов местного самоуправления (расходы на содержание лиц, замещающих должности не являющиеся должностями муниципальной службы) | B144: 03 5 01 00132 | D144: =D145 -> 6331.9 | E144: 6331.9 | F144: 6331.8 | G144: 0.999984207
A145: Расходы на выплаты персоналу в целях обеспечения выполнения функций государственными (муниципальными) органами, казенными учреждениями, органами управления государственными внебюджетными фондами | B145: 03 5 01 00132 | C145: 100 | D145: 6331.9 | E145: 6331.9 | F145: 6331.8 | G145: 0.999984207
A146: Расходы на выплаты персоналу государственных (муниципальных) органов | B146: 03 5 01 00132 | C146: 120 | D146: ='Функц. 2022-2024'!F753 -> 6331.9 | E146: ='Функц. 2022-2024'!H753 -> 6331.9 | F146: ='Функц. 2022-2024'!J753 -> 6331.8 | G146: 0.999984207
A147: Обеспечение деятельности органов местного самоуправления (расходы на содержание лиц, замещающих должности муниципальной службы) | B147: 03 5 01 00133 | D147: =D148 -> 8768.8 | E147: 8768.8 | F147: 8766 | G147: 0.9996806861
A148: Расходы на выплаты персоналу в целях обеспечения выполнения функций государственными (муниципальными) органами, казенными учреждениями, органами управления государственными внебюджетными фондами | B148: 03 5 01 00133 | C148: 100 | D148: 8768.8 | E148: 8768.8 | F148: 8766 | G148: 0.9996806861
A149: Расходы на выплаты персоналу государственных (муниципальных) органов | B149: 03 5 01 00133 | C149: 120 | D149: ='Функц. 2022-2024'!F756 -> 8768.8 | E149: ='Функц. 2022-2024'!H756 -> 8768.8 | F149: ='Функц. 2022-2024'!J756 -> 8766 | G149: 0.9996806861
A150: Муниципальная программа «Социальная защита населения» | B150: 04 0 00 00000 | D150: =D151+D172+D195+D167+D188 -> 23097.3 | E150: =E151+E172+E195+E167+E188 -> 23097.3 | F150: =F151+F172+F195+F167+F188 -> 22947.6 | G150: 0.993518723
A151: Подпрограмма «Социальная поддержка граждан» | B151: 04 1 00 00000 | D151: =D152+D163 -> 14797.4 | E151: =E152+E163 -> 14797.4 | F151: =F152+F163 -> 14703 | G151: 0.9936205009
A152: Основное мероприятие «Предоставление мер социальной поддержки и субсидий по оплате жилого помещения и коммунальных услуг гражданам Российской Федерации, имеющим место жительства в Московской области» | B152: 04 1 03 00000 | D152: =D153+D158 -> 7845 | E152: =E153+E158 -> 7845 | F152: =F153+F158 -> 7823.6 | G152: 0.9972721479
A153: Предоставление гражданам субсидий на оплату жилого помещения и коммунальных услуг | B153: 04 1 03 61410 | D153: =D154+D156 -> 6446 | E153: =E154+E156 -> 6446 | F153: =F154+F156 -> 6443.7 | G153: 0.9996431896
A154: Закупка товаров, работ и услуг для обеспечения государственных (муниципальных) нужд | B154: 04 1 03 61410 | C154: 200 | D154: =D155 -> 58 | E154: =E155 -> 58 | F154: =F155 -> 58 | G154: 1
A155: Иные закупки товаров, работ и услуг для обеспечения государственных (муниципальных) нужд | B155: 04 1 03 61410 | C155: 240 | D155: ='Функц. 2022-2024'!F866 -> 58 | E155: ='Функц. 2022-2024'!H866 -> 58 | F155: ='Функц. 2022-2024'!J866 -> 58 | G155: 1
A156: Социальное обеспечение и иные выплаты населению | B156: 04 1 03 61410 | C156: 300 | D156: =D157 -> 6388 | E156: =E157 -> 6388 | F156: =F157 -> 6385.7 | G156: 0.9996399499
A157: Публичные нормативные социальные выплаты гражданам | B157: 04 1 03 61410 | C157: 310 | D157: ='Функц. 2022-2024'!F868 -> 6388 | E157: ='Функц. 2022-2024'!H868 -> 6388 | F157: ='Функц. 2022-2024'!J868 -> 6385.7 | G157: 0.9996399499
A158: Обеспечение предоставления гражданам субсидий на оплату жилого помещения и коммунальных услуг | B158: 04 1 03 61420 | D158: =D159+D161 -> 1399 | E158: =E159+E161 -> 1399 | F158: =F159+F161 -> 1379.9 | G158: 0.986347391
A159: Расходы на выплаты персоналу в целях обеспечения выполнения функций государственными (муниципальными) органами, казенными учреждениями, органами управления государственными внебюджетными фондами | B159: 04 1 03 61420 | C159: 100 | D159: =D160 -> 1264.8 | E159: =E160 -> 1264.8 | F159: =F160 -> 1264.8 | G159: 1
A160: Расходы на выплаты персоналу государственных (муниципальных) органов | B160: 04 1 03 61420 | C160: 120 | D160: ='Функц. 2022-2024'!F526 -> 1264.8 | E160: ='Функц. 2022-2024'!H526 -> 1264.8 | F160: ='Функц. 2022-2024'!J526 -> 1264.8 | G160: 1
A161: Закупка товаров, работ и услуг для обеспечения государственных (муниципальных) нужд | B161: 04 1 03 61420 | C161: 200 | D161: =D162 -> 134.2 | E161: =E162 -> 134.2 | F161: =F162 -> 115.1 | G161: 0.8576751118
A162: Иные закупки товаров, работ и услуг для обеспечения государственных (муниципальных) нужд | B162: 04 1 03 61420 | C162: 240 | D162: ='Функц. 2022-2024'!F528 -> 134.2 | E162: ='Функц. 2022-2024'!H528 -> 134.2 | F162: ='Функц. 2022-2024'!J528 -> 115.1 | G162: 0.8576751118
A163: Основное мероприятие «Предоставление государственных гарантий муниципальным служащим, поощрение за муниципальную службу» | B163: 04 1 18 00000 | D163: =D164 -> 6952.4 | E163: 6952.4 | F163: 6879.4 | G163: 0.9895000288
A164: Предоставление доплаты за выслугу лет к трудовой пенсии муниципальным служащим за счет средств местного бюджета | B164: 04 1 18 00840 | D164: 6952.4 | E164: 6952.4 | F164: 6879.4 | G164: 0.9895000288
A165: Социальное обеспечение и иные выплаты населению | B165: 04 1 18 00840 | C165: 300 | D165: =D166 -> 6952.4 | E165: =E166 -> 6952.4 | F165: =F166 -> 6879.4 | G165: 0.9895000288
A166: Социальные выплаты гражданам, кроме публичных нормативных социальных выплат | B166: 04 1 18 00840 | C166: 320 | D166: ='Функц. 2022-2024'!F859 -> 6952.4 | E166: ='Функц. 2022-2024'!H859 -> 6952.4 | F166: ='Функц. 2022-2024'!J859 -> 6879.4 | G166: 0.9895000288
A167: Подпрограмма «Доступная среда» | B167: 04 2 00 00000 | D167: =D168 -> 950 | E167: =E168 -> 950 | F167: =F168 -> 901.4 | G167: 0.9488421053
A168: Основное мероприятие «Создание безбарьерной среды на объектах социальной, инженерной и транспортной инфраструктуры в Московской области» | B168: 04 2 02 00000 | D168: =D169 -> 950 | E168: =E169 -> 950 | F168: 901.4 | G168: 0.9488421053
A169: Повышение доступности объектов культуры, спорта, образования для инвалидов и маломобильных групп населения | B169: 04 2 02 00960 | D169: =D170 -> 950 | E169: 950 | F169: 901.4 | G169: 0.9488421053
A170: Предоставление субсидий бюджетным, автономным учреждениям и иным некоммерческим организациям | B170: 04 2 02 00960 | C170: 600 | D170: 950 | E170: 950 | F170: 901.4 | G170: 0.9488421053
A171: Субсидии бюджетным учреждениям | B171: 04 2 02 00960 | C171: 610 | D171: ='Функц. 2022-2024'!F836 -> 950 | E171: ='Функц. 2022-2024'!H836 -> 950 | F171: ='Функц. 2022-2024'!J836 -> 901.4 | G171: 0.9488421053
A172: Подпрограмма «Развитие системы отдыха и оздоровления детей» | B172: 04 3 00 00000 | D172: =D173 -> 4921.9 | E172: =E173 -> 4921.9 | F172: =F173 -> 4921.9 | G172: 1
A173: Основное мероприятие «Мероприятия по организации отдыха детей в каникулярное время, проводимые муниципальными образованиями Московской области» | B173: 04 3 05 00000 | D173: =D177+D174 -> 4921.9 | E173: =E177+E174 -> 4921.9 | F173: =F177+F174 -> 4921.9 | G173: 1
A174: Осуществление в пределах своих полномочий мероприятий по обеспечению организации отдыха детей в каникулярное время, включая мероприятия по обеспечению безопасности их жизни и здоровья | B174: 04 3 05 00410 | D174: =D175 -> 72 | E174: 72 | F174: 72 | G174: 1
A175: Предоставление субсидий бюджетным, автономным учреждениям и иным некоммерческим организациям | B175: 04 3 05 00410 | C175: 600 | D175: 72 | E175: 72 | F175: 72 | G175: 1
A176: Субсидии бюджетным учреждениям | B176: 04 3 05 00410 | C176: 610 | D176: ='Функц. 2022-2024'!F762 -> 72 | E176: ='Функц. 2022-2024'!H762 -> 72 | F176: ='Функц. 2022-2024'!J762 -> 72 | G176: 1
A177: Мероприятия по организации отдыха детей в каникулярное время | B177: 04 3 05 S2190 | D177: =D178+D185 -> 4849.9 | E177: =E178+E185 -> 4849.9 | F177: =F178+F185 -> 4849.9 | G177: 1
A178: Мероприятия по организации отдыха детей в каникулярное время (организация отдыха детей и подростков в санаторно-курортных учреждениях и загородных оздоровительных лагерях) | B178: 04 3 05 S2191 | D178: =D181+D179+D183 -> 3453 | E178: =E181+E179+E183 -> 3453 | F178: =F181+F179+F183 -> 3453 | G178: 1
A179: Закупка товаров, работ и услуг для обеспечения государственных (муниципальных) нужд | B179: 04 3 05 S2191 | C179: 200 | D179: =D180 -> 1693.4 | E179: =E180 -> 1693.4 | F179: =F180 -> 1693.4 | G179: 1
A180: Иные закупки товаров, работ и услуг для обеспечения государственных (муниципальных) нужд | B180: 04 3 05 S2191 | C180: 240 | D180: ='Функц. 2022-2024'!F766 -> 1693.4 | E180: ='Функц. 2022-2024'!H766 -> 1693.4 | F180: ='Функц. 2022-2024'!J766 -> 1693.4 | G180: 1
A181: Социальное обеспечение и иные выплаты населению | B181: 04 3 05 S2191 | C181: 300 | D181: =D182 -> 186.5 | E181: =E182 -> 186.5 | F181: =F182 -> 186.5 | G181: 1
A182: Социальные выплаты гражданам, кроме публичных нормативных социальных выплат | B182: 04 3 05 S2191 | C182: 320 | D182: ='Функц. 2022-2024'!F768 -> 186.5 | E182: ='Функц. 2022-2024'!H768 -> 186.5 | F182: ='Функц. 2022-2024'!J768 -> 186.5 | G182: 1
A183: Предоставление субсидий бюджетным, автономным учреждениям и иным некоммерческим организациям | B183: 04 3 05 S2191 | C183: 600 | D183: =D184 -> 1573.1 | E183: =E184 -> 1573.1 | F183: =F184 -> 1573.1 | G183: 1
A184: Субсидии бюджетным учреждениям | B184: 04 3 05 S2191 | C184: 610 | D184: ='Функц. 2022-2024'!F770 -> 1573.1 | E184: ='Функц. 2022-2024'!H770 -> 1573.1 | F184: ='Функц. 2022-2024'!J770 -> 1573.1 | G184: 1
A185: Мероприятия по организации отдыха детей в каникулярное время(организация отдыха детей и подростков в лагерях с дневным пребыванием) | B185: 04 3 05 S2192 | D185: =D186 -> 1396.9 | E185: 1396.9 | F185: 1396.9 | G185: 1
A186: Предоставление субсидий бюджетным, автономным учреждениям и иным некоммерческим организациям | B186: 04 3 05 S2192 | C186: 600 | D186: 1396.9 | E186: 1396.9 | F186: 1396.9 | G186: 1
A187: Субсидии бюджетным учреждениям | B187: 04 3 05 S2192 | C187: 610 | D187: ='Функц. 2022-2024'!F773 -> 1396.9 | E187: ='Функц. 2022-2024'!H773 -> 1396.9 | F187: ='Функц. 2022-2024'!J773 -> 1396.9 | G187: 1
A188: Обеспечивающая подпрограмма | B188: 04 5 00 00000 | D188: =D189 -> 2288 | E188: 2288 | F188: 2281.3 | G188: 0.9970716783
A189: Основное мероприятие «Создание условий для реализации полномочий органов государственной власти Московской области и государственных органов Московской области» | B189: 04 5 01 00000 | D189: 2288 | E189: 2288 | F189: 2281.3 | G189: 0.9970716783
A190: Обеспечение переданного государственного полномочия Московской области по созданию комиссий по делам несовершеннолетних и защите их прав муниципальных образований Московской области | B190: 04 5 01 60680 | D190: =D191+D193 -> 2288 | E190: =E191+E193 -> 2288 | F190: =F191+F193 -> 2281.3 | G190: 0.9970716783
A191: Расходы на выплаты персоналу в целях обеспечения выполнения функций государственными (муниципальными) органами, казенными учреждениями, органами управления государственными внебюджетными фондами | B191: 04 5 01 60680 | C191: 100 | D191: =D192 -> 2092 | E191: ='Функц. 2022-2024'!H57 -> 2092 | F191: ='Функц. 2022-2024'!J57 -> 2085.3 | G191: 0.9967973231
A192: Расходы на выплаты персоналу государственных (муниципальных) органов | B192: 04 5 01 60680 | C192: 120 | D192: ='Функц. 2022-2024'!F57 -> 2092 | E192: ='Функц. 2022-2024'!H57 -> 2092 | F192: ='Функц. 2022-2024'!J57 -> 2085.3 | G192: 0.9967973231
A193: Закупка товаров, работ и услуг для обеспечения государственных (муниципальных) нужд | B193: 04 5 01 60680 | C193: 200 | D193: =D194 -> 196 | E193: =E194 -> 196 | F193: =F194 -> 196 | G193: 1
A194: Иные закупки товаров, работ и услуг для обеспечения государственных (муниципальных) нужд | B194: 04 5 01 60680 | C194: 240 | D194: ='Функц. 2022-2024'!F59 -> 196 | E194: ='Функц. 2022-2024'!H59 -> 196 | F194: ='Функц. 2022-2024'!J59 -> 196 | G194: 1
A195: Подпрограмма «Развитие и поддержка социально ориентированных некоммерческих организаций" | B195: 04 9 00 00000 | D195: =D196 -> 140 | E195: 140 | F195: 140 | G195: 1
A196: Основное мероприятие «Осуществление финансовой поддержки СО НКО» | B196: 04 9 01 00000 | D196: 140 | E196: 140 | F196: 140 | G196: 1
A197: Оказание поддержки социально ориентированным некоммерческим организациям | B197: 04 9 01 00760 | D197: =D198 -> 140 | E197: 140 | F197: 140 | G197: 1
A198: Предоставление субсидий бюджетным, автономным учреждениям и иным некоммерческим организациям | B198: 04 9 01 00760 | C198: 600 | D198: 140 | E198: 140 | F198: 140 | G198: 1
A199: Субсидии некоммерческим организациям (за исключением государственных (муниципальных) учреждений,государственных корпораций (компаний), публично-правовых компаний) | B199: 04 9 01 00760 | C199: 630 | D199: ='Функц. 2022-2024'!F903 -> 140 | E199: ='Функц. 2022-2024'!H903 -> 140 | F199: ='Функц. 2022-2024'!J903 -> 140 | G199: 1
A200: Муниципальная программа «Спорт» | B200: 05 0 00 00000 | D200: =D201+D219 -> 131862.1 | E200: =E201+E219 -> 131862.1 | F200: =F201+F219 -> 131674.9 | G200: 0.9985803351
A201: Подпрограмма «Развитие физической культуры и спорта» | B201: 05 1 00 00000 | D201: =D202+D215 -> 93894.4 | E201: =E202+E215 -> 93894.4 | F201: =F202+F215 -> 93707.2 | G201: 0.9980062709
A202: Основное мероприятие «Обеспечение условий для развития на территории городского округа физической культуры, школьного спорта и массового спорта» | B202: 05 1 01 00000 | D202: =D203+D209+D212 -> 62170.5 | E202: =E203+E209+E212 -> 62170.5 | F202: =F203+F209+F212 -> 61983.3 | G202: 0.9969889256
A203: Организация проведения официальных физкультурно-оздоровительных и спортивных мероприятий | B203: 05 1 01 00570 | D203: =D204+D206 -> 3158.5 | E203: =E204+E206 -> 3158.5 | F203: =F204+F206 -> 2971.3 | G203: 0.9407313598
... 536 more rows

Sheet Р., Пр.2022-2024 (hidden)
B1: Приложение 5
B2: к отчету об исполнении бюджета городского округа Лыткарино за 2022 год
A5: Расходы бюджета городского округа Лыткарино по разделам и подразделам классификации расходов бюджетов за 2022 год
G7: (тыс.руб.)
A8: Наименования | B8: Рз | C8: ПР | D8: Утвержден-ный план | E8: Уточненный план | F8: Исполнение | G8: % испол-нения
A9: 1 | B9: 2 | C9: 3 | D9: 4 | E9: 5 | F9: 6 | G9: 7
A10: Общегосударственные вопросы | B10: 01 | D10: =D11+D12+D13+D14+D15+D16 -> 292204.2 | E10: =E11+E12+E13+E14+E15+E16 -> 292263.2 | F10: 288978.3 | G10: =F10/E10 -> 0.9887604734
A11: Функционирование высшего должностного лица субъекта Российской Федерации и муниципального образования | B11: 01 | C11: 02 | D11: ='Функц. 2022-2024'!F12 -> 2503 | E11: ='Функц. 2022-2024'!H12 -> 2503 | F11: ='Функц. 2022-2024'!J12 -> 2503 | G11: =F11/E11 -> 1
A12: Функционирование законодательных (представительных) органов государственной власти и представительных органов муниципальных образований | B12: 01 | C12: 03 | D12: ='Функц. 2022-2024'!F19 -> 12327.3 | E12: ='Функц. 2022-2024'!H19 -> 12327.3 | F12: ='Функц. 2022-2024'!J19 -> 12216.5 | G12: 0.9910118193
A13: Функционирование Правительства Российской Федерации, высших исполнительных органов государственной власти субъектов Российской Федерации, местных администраций | B13: 01 | C13: 04 | D13: ='Функц. 2022-2024'!F39 -> 71613.1 | E13: ='Функц. 2022-2024'!H39 -> 71613.1 | F13: ='Функц. 2022-2024'!J39 -> 69316.2 | G13: 0.9679262593
A14: Обеспечение деятельности финансовых,налоговых и таможенных органов и органов финансового (финансово-бюджетного) надзора | B14: 01 | C14: 06 | D14: ='Функц. 2022-2024'!F100 -> 27760.3 | E14: ='Функц. 2022-2024'!H100 -> 27760.3 | F14: ='Функц. 2022-2024'!J100 -> 27640.9 | G14: 0.9956988937
A15: Обеспечение проведения выборов и референдумов | B15: 01 | C15: 07 | D15: ='Функц. 2022-2024'!F144 -> 4561.2 | E15: ='Функц. 2022-2024'!H144 -> 4561.2 | F15: ='Функц. 2022-2024'!J144 -> 4555.2 | G15: 0.9986845567
A16: Другие общегосударственные вопросы | B16: 01 | C16: 13 | D16: ='Функц. 2022-2024'!F164 -> 173439.3 | E16: ='Функц. 2022-2024'!H164 -> 173498.3 | F16: ='Функц. 2022-2024'!J164 -> 172746.5 | G16: 0.9956668163
A17: Национальная оборона | B17: 02 | D17: =D18+D19 -> 4054.4 | E17: =E18+E19 -> 4054.4 | F17: =F18+F19 -> 4054.4 | G17: 1
A18: Мобилизационная и вневойсковая подготовка | B18: 02 | C18: 03 | D18: ='Функц. 2022-2024'!F267 -> 3870 | E18: ='Функц. 2022-2024'!H267 -> 3870 | F18: ='Функц. 2022-2024'!J267 -> 3870 | G18: 1
A19: Мобилизационная подготовка экономики | B19: 02 | C19: 04 | D19: ='Функц. 2022-2024'!F274 -> 184.4 | E19: ='Функц. 2022-2024'!H274 -> 184.4 | F19: ='Функц. 2022-2024'!J274 -> 184.4 | G19: 1
A20: Национальная безопасность и правоохранительная деятельность | B20: 03 | D20: =D21+D23+D22 -> 35355.9 | E20: =E21+E23+E22 -> 35355.9 | F20: =F21+F23+F22 -> 33587.3 | G20: 0.9499772315
A21: Гражданская оборона | B21: 03 | C21: 09 | D21: ='Функц. 2022-2024'!F282 -> 995.8 | E21: ='Функц. 2022-2024'!H282 -> 995.8 | F21: ='Функц. 2022-2024'!J282 -> 566.9 | G21: 0.5692910223
A22: Защита населения и территории от чрезвычайных ситуаций природного и техногенного характера,пожарная безопасность | B22: 03 | C22: 10 | D22: ='Функц. 2022-2024'!F294 -> 24311.6 | E22: ='Функц. 2022-2024'!H294 -> 24311.6 | F22: ='Функц. 2022-2024'!J294 -> 24099.9 | G22: 0.9912922226
A23: Другие вопросы в области национальной безопасности и правоохранительной деятельности | B23: 03 | C23: 14 | D23: ='Функц. 2022-2024'!F325 -> 10048.5 | E23: ='Функц. 2022-2024'!H325 -> 10048.5 | F23: ='Функц. 2022-2024'!J325 -> 8920.5 | G23: 0.8877444395
A24: Национальная экономика | B24: 04 | D24: =D26+D29+D27+D28+D25 -> 143617.5 | E24: =E26+E29+E27+E28+E25 -> 143617.5 | F24: =F26+F29+F27+F28+F25 -> 142671.1 | G24: 0.9934102738
A25: Сельское хозяйство и рыболовство | B25: 04 | C25: 05 | D25: ='Функц. 2022-2024'!F339 -> 1531 | E25: ='Функц. 2022-2024'!H333 -> 1531 | F25: ='Функц. 2022-2024'!J333 -> 1200.9 | G25: 0.784389288
A26: Транспорт | B26: 04 | C26: 08 | D26: ='Функц. 2022-2024'!F340 -> 24404.6 | E26: ='Функц. 2022-2024'!H340 -> 24404.6 | F26: ='Функц. 2022-2024'!J340 -> 24404.5 | G26: 0.9999959024
A27: Дорожное хозяйство (дорожные фонды) | B27: 04 | C27: 09 | D27: ='Функц. 2022-2024'!F358 -> 115161.3 | E27: ='Функц. 2022-2024'!H358 -> 115161.3 | F27: ='Функц. 2022-2024'!J358 -> 115112 | G27: 0.9995719048
A28: Связь и информатика | B28: 04 | C28: 10 | D28: ='Функц. 2022-2024'!F389 -> 1594.6 | E28: ='Функц. 2022-2024'!H389 -> 1594.6 | F28: ='Функц. 2022-2024'!J389 -> 1594.5 | G28: 0.9999372883
A29: Другие вопросы в области национальной экономики | B29: 04 | C29: 12 | D29: ='Функц. 2022-2024'!F404 -> 926 | E29: ='Функц. 2022-2024'!H404 -> 926 | F29: ='Функц. 2022-2024'!J404 -> 359.2 | G29: 0.3879049676
A30: Жилищно-коммунальное хозяйство | B30: 05 | D30: =D31+D33+D34+D32 -> 248319.7 | E30: =E31+E33+E34+E32 -> 248319.7 | F30: =F31+F33+F34+F32 -> 244908.4 | G30: 0.9862624673
A31: Жилищное хозяйство | B31: 05 | C31: 01 | D31: ='Функц. 2022-2024'!F415 -> 15408.6 | E31: ='Функц. 2022-2024'!H415 -> 15408.6 | F31: ='Функц. 2022-2024'!J415 -> 15357.4 | G31: 0.9966771803
A32: Коммунальное хозяйство | B32: 05 | C32: 02 | D32: ='Функц. 2022-2024'!F428 -> 22023.9 | E32: ='Функц. 2022-2024'!H428 -> 22023.9 | F32: ='Функц. 2022-2024'!J428 -> 21863.9 | G32: 0.992735165
A33: Благоустройство | B33: 05 | C33: 03 | D33: ='Функц. 2022-2024'!F446 -> 190581.7 | E33: ='Функц. 2022-2024'!H446 -> 190581.7 | F33: ='Функц. 2022-2024'!J446 -> 187800.3 | G33: 0.9854057341
A34: Другие вопросы в области жилищно-коммунального хозяйства | B34: 05 | C34: 05 | D34: ='Функц. 2022-2024'!F520 -> 20305.5 | E34: ='Функц. 2022-2024'!H520 -> 20305.5 | F34: ='Функц. 2022-2024'!J520 -> 19886.8 | G34: 0.9793799709
A35: 1 | B35: 2 | C35: 3 | D35: 4 | E35: 5 | F35: 6 | G35: 7
A36: Охрана окружающей среды | B36: 06 | D36: =D37+D38 -> 744972 | E36: =E37+E38 -> 744972 | F36: =F37+F38 -> 744935.4 | G36: 0.9999508706
A37: Сбор, удаление отходов и очистка сточных вод | B37: 06 | C37: 02 | D37: ='Функц. 2022-2024'!F586 -> 744935.4 | E37: ='Функц. 2022-2024'!H586 -> 744935.4 | F37: ='Функц. 2022-2024'!J586 -> 744935.4 | G37: 1
A38: Другие вопросы в области охраны окружающей среды | B38: 06 | C38: 05 | D38: ='Функц. 2022-2024'!F603 -> 36.6 | E38: ='Функц. 2022-2024'!H603 -> 36.6 | F38: ='Функц. 2022-2024'!J603 -> 0 | G38: 0
A39: Образование | B39: 07 | D39: =D40+D41+D43+D44+D42 -> 1168226.1 | E39: =E40+E41+E43+E44+E42 -> 1167999.1 | F39: =F40+F41+F43+F44+F42 -> 1133906.2 | G39: 0.9708108508
A40: Дошкольное образование | B40: 07 | C40: 01 | D40: ='Функц. 2022-2024'!F605 -> 459718 | E40: ='Функц. 2022-2024'!H605 -> 459718 | F40: ='Функц. 2022-2024'!J605 -> 450949 | G40: 0.9809252629
A41: Общее образование | B41: 07 | C41: 02 | D41: ='Функц. 2022-2024'!F637 -> 541928.2 | E41: ='Функц. 2022-2024'!H637 -> 541928.2 | F41: ='Функц. 2022-2024'!J637 -> 521485.6 | G41: 0.9622780287
A42: Дополнительное образование детей | B42: 07 | C42: 03 | D42: ='Функц. 2022-2024'!F680 -> 124117.1 | E42: ='Функц. 2022-2024'!H680 -> 123890.1 | F42: ='Функц. 2022-2024'!J680 -> 120223.8 | G42: 0.9704068364
A43: Молодежная политика | B43: 07 | C43: 07 | D43: ='Функц. 2022-2024'!F716 -> 1809.8 | E43: ='Функц. 2022-2024'!H716 -> 1809.8 | F43: ='Функц. 2022-2024'!J716 -> 1803.1 | G43: 0.9962979335
A44: Другие вопросы в области образования | B44: 07 | C44: 09 | D44: ='Функц. 2022-2024'!F735 -> 40653 | E44: ='Функц. 2022-2024'!H735 -> 40653 | F44: ='Функц. 2022-2024'!J735 -> 39444.7 | G44: 0.9702777163
A45: Культура, кинематография | B45: 08 | D45: =D46 -> 116113.2 | E45: =E46 -> 116113.2 | F45: =F46 -> 115901 | G45: 0.9981724731
A46: Культура | B46: 08 | C46: 01 | D46: ='Функц. 2022-2024'!F794 -> 116113.2 | E46: ='Функц. 2022-2024'!H794 -> 116113.2 | F46: ='Функц. 2022-2024'!J794 -> 115901 | G46: 0.9981724731
A47: Здравоохранение | B47: 09 | D47: =D48 -> 332.9 | E47: =E48 -> 332.9 | F47: =F48 -> 332.9 | G47: 1
A48: Другие вопросы в области здравоохранения | B48: 09 | C48: 09 | D48: ='Функц. 2022-2024'!F845 -> 332.9 | E48: ='Функц. 2022-2024'!H845 -> 332.9 | F48: ='Функц. 2022-2024'!J845 -> 332.9 | G48: 1
A49: Социальная политика | B49: 10 | D49: =D50+D51+D53+D52 -> 84456.6 | E49: =E50+E51+E53+E52 -> 84456.6 | F49: =F50+F51+F53+F52 -> 81643.8 | G49: 0.9666953204
A50: Пенсионное обеспечение | B50: 10 | C50: 01 | D50: ='Функц. 2022-2024'!F853 -> 6952.4 | E50: ='Функц. 2022-2024'!H853 -> 6952.4 | F50: ='Функц. 2022-2024'!J853 -> 6879.4 | G50: 0.9895000288
A51: Социальное обеспечение населения | B51: 10 | C51: 03 | D51: ='Функц. 2022-2024'!F860 -> 14740 | E51: ='Функц. 2022-2024'!H860 -> 14740 | F51: ='Функц. 2022-2024'!J860 -> 13452.1 | G51: 0.9126255088
A52: Охрана семьи и детства | B52: 10 | C52: 04 | D52: ='Функц. 2022-2024'!F875 -> 62624.2 | E52: ='Функц. 2022-2024'!H875 -> 62624.2 | F52: ='Функц. 2022-2024'!J875 -> 61172.3 | G52: 0.9768156719
A53: Другие вопросы в области социальной политики | B53: 10 | C53: 06 | D53: ='Функц. 2022-2024'!F897 -> 140 | E53: ='Функц. 2022-2024'!H897 -> 140 | F53: ='Функц. 2022-2024'!J897 -> 140 | G53: 1
A54: Физическая культура и спорт | B54: 11 | D54: =D56+D55 -> 131862.1 | E54: =E56+E55 -> 131862.1 | F54: =F56+F55 -> 131674.9 | G54: 0.9985803351
A55: Физическая культура | B55: 11 | C55: 01 | D55: ='Функц. 2022-2024'!F905 -> 50102 | E55: ='Функц. 2022-2024'!H905 -> 50102 | F55: ='Функц. 2022-2024'!J905 -> 50102 | G55: 1
A56: Массовый спорт | B56: 11 | C56: 02 | D56: ='Функц. 2022-2024'!F912 -> 81760.1 | E56: ='Функц. 2022-2024'!H912 -> 81760.1 | F56: ='Функц. 2022-2024'!J912 -> 81572.9 | G56: 0.9977103746
A57: Обслуживание государственного (муниципального) долга | B57: 13 | D57: =D58 -> 319.8 | E57: =E58 -> 319.8 | F57: =F58 -> 319.8 | G57: 1
A58: Обслуживание государственного (муниципального) внутреннего долга | B58: 13 | C58: 01 | D58: ='Функц. 2022-2024'!F940 -> 319.8 | E58: ='Функц. 2022-2024'!H945 -> 319.8 | F58: ='Функц. 2022-2024'!J945 -> 319.8 | G58: 1
A59: ВСЕГО | D59: =D57+D54+D49+D47+D45+D39+D30+D24+D20+D17+D10+D36 -> 2969834.4 | E59: =E57+E54+E49+E47+E45+E39+E30+E24+E20+E17+E10+E36 -> 2969666.4 | F59: =F57+F54+F49+F47+F45+F39+F30+F24+F20+F17+F10+F36 -> 2922913.5 | G59: 0.9842565145

Sheet ведом. 2022-2024
AF2: Приложение 4
AB3: к отчету об исполнении бюджета городского округа Лыткарино за 2022 год
X5: Ведомственная структура расходов бюджета городского округа Лыткарино в 2022 году
AG7: (тыс.руб.)
X8: Наименования | Y8: Код главного распоря- дителя | Z8: Рз | AA8: ПР | AB8: ЦСР | AC8: ВР | AD8: Утвержденный план | AE8: Уточненный план | AF8: Исполнение | AG8: % испол-нения
X9: 1 | Y9: 2 | Z9: 3 | AA9: 4 | AB9: 5 | AC9: 6 | AD9: 7 | AE9: 8 | AF9: 9 | AG9: 10
X10: Администрация городского округа Лыткарино | Y10: 001 | AD10: =AD11+AD160+AD175+AD226+AD277+AD343+AD395+AD446+AD454+AD469+AD496 -> 630557.6 | AE10: =AE11+AE160+AE175+AE226+AE277+AE343+AE395+AE446+AE454+AE469+AE496 -> 630616.6 | AF10: =AF11+AF160+AF175+AF226+AF277+AF343+AF395+AF446+AF454+AF469+AF496 -> 624941.4 | AG10: =AF10/AE10 -> 0.9910005541
X11: Общегосударственные вопросы | Y11: 001 | Z11: 01 | AD11: =AD12+AD19+AD80 -> 206063 | AE11: =AE12+AE19+AE80 -> 206122 | AF11: 203340.8 | AG11: =AF11/AE11 -> 0.9865070201
X12: Функционирование высшего должностного лица субъекта Российской Федерации и муниципального образования | Y12: 001 | Z12: 01 | AA12: 02 | AD12: =AD13 -> 2503 | AE12: 2503 | AF12: 2503 | AG12: =AF12/AE12 -> 1
X13: Муниципальная программа «Управление имуществом и муниципальными финансами» | Y13: 001 | Z13: 01 | AA13: 02 | AB13: 12 0 00 00000 | AD13: =AD14 -> 2503 | AE13: =AE14 -> 2503 | AF13: =AF14 -> 2503 | AG13: 1
X14: Обеспечивающая подпрограмма | Y14: 001 | Z14: 01 | AA14: 02 | AB14: 12 5 00 00000 | AD14: 2503 | AE14: 2503 | AF14: 2503 | AG14: 1
X15: Основное мероприятие «Создание условий для реализации полномочий органов местного самоуправления» | Y15: 001 | Z15: 01 | AA15: 02 | AB15: 12 5 01 00000 | AD15: 2503 | AE15: 2503 | AF15: 2503 | AG15: 1
X16: Функционирование высшего должностного лица | Y16: 001 | Z16: 01 | AA16: 02 | AB16: 12 5 01 00110 | AD16: =AD17 -> 2503 | AE16: 2503 | AF16: 2503 | AG16: 1
X17: Расходы на выплаты персоналу в целях обеспечения выполнения функций государственными (муниципальными) органами, казенными учреждениями, органами управления государственными внебюджетными фондами | Y17: 001 | Z17: 01 | AA17: 02 | AB17: 12 5 01 00110 | AC17: 100 | AD17: 2503 | AE17: 2503 | AF17: 2503 | AG17: 1
X18: Расходы на выплаты персоналу государственных (муниципальных) органов | Y18: 001 | Z18: 01 | AA18: 02 | AB18: 12 5 01 00110 | AC18: 120 | AD18: =2602.5-99.5 -> 2503 | AE18: =2602.5-99.5 -> 2503 | AF18: 2503 | AG18: 1
X19: Функционирование Правительства Российской Федерации, высших исполнительных органов государственной власти субъектов Российской Федерации, местных администраций | Y19: 001 | Z19: 01 | AA19: 04 | AD19: =AD20+AD32+AD40+AD62+AD68+AD76 -> 71613.1 | AE19: =AE20+AE32+AE40+AE62+AE68+AE76 -> 71613.1 | AF19: =AF20+AF32+AF40+AF62+AF68+AF76 -> 69316.2 | AG19: 0.9679262593
X20: Муниципальная программа «Культура» | Y20: 001 | Z20: 01 | AA20: 04 | AB20: 02 0 00 00000 | AD20: =AD21 -> 1634 | AE20: =AE21 -> 1634 | AF20: =AF21 -> 1634 | AG20: 1
X21: Подпрограмма «Развитие архивного дела в Московской области» | Y21: 001 | Z21: 01 | AA21: 04 | AB21: 02 7 00 00000 | AD21: =AD22+AD26 -> 1634 | AE21: =AE22+AE26 -> 1634 | AF21: =AF22+AF26 -> 1634 | AG21: 1
X22: Основное мероприятие «Хранение, комплектование, учет и использование архивных документов в муниципальных архивах» | Y22: 001 | Z22: 01 | AA22: 04 | AB22: 02 7 01 00000 | AD22: =AD23 -> 28 | AE22: 28 | AF22: 28 | AG22: 1
X23: Расходы на обеспечение деятельности (оказание услуг) муниципальных архивов | Y23: 001 | Z23: 01 | AA23: 04 | AB23: 02 7 01 06160 | AD23: 28 | AE23: 28 | AF23: 28 | AG23: 1
X24: Закупка товаров, работ и услуг для обеспечения государственных (муниципальных) нужд | Y24: 001 | Z24: 01 | AA24: 04 | AB24: 02 7 01 06160 | AC24: 200 | AD24: 28 | AE24: 28 | AF24: 28 | AG24: 1
X25: Иные закупки товаров, работ и услуг для обеспечения государственных (муниципальных) нужд | Y25: 001 | Z25: 01 | AA25: 04 | AB25: 02 7 01 06160 | AC25: 240 | AD25: 28 | AE25: 28 | AF25: 28 | AG25: 1
X26: Основное мероприятие «Временное хранение, комплектование, учет и использование архивных документов, относящихся к собственности Московской области и временно хранящихся в муниципальных архивах» | Y26: 001 | Z26: 01 | AA26: 04 | AB26: 02 7 02 00000 | AD26: =AD27 -> 1606 | AE26: =AE27 -> 1606 | AF26: =AF27 -> 1606 | AG26: 1
X27: Осуществление переданных полномочий по временному хранению, комплектованию, учету и использованию архивных документов, относящихся к собственности Московской области и временно хранящихся в муниципальных архивах | Y27: 001 | Z27: 01 | AA27: 04 | AB27: 02 7 02 60690 | AD27: =AD28+AD30 -> 1606 | AE27: =AE28+AE30 -> 1606 | AF27: =AF28+AF30 -> 1606 | AG27: 1
X28: Расходы на выплаты персоналу в целях обеспечения выполнения функций государственными (муниципальными) органами, казенными учреждениями, органами управления государственными внебюджетными фондами | Y28: 001 | Z28: 01 | AA28: 04 | AB28: 02 7 02 60690 | AC28: 100 | AD28: =AD29 -> 1540.4 | AE28: =AE29 -> 1540.4 | AF28: =AF29 -> 1540.4 | AG28: 1
X29: Расходы на выплаты персоналу государственных (муниципальных) органов | Y29: 001 | Z29: 01 | AA29: 04 | AB29: 02 7 02 60690 | AC29: 120 | AD29: =1540+0.4 -> 1540.4 | AE29: =1540+0.4 -> 1540.4 | AF29: 1540.4 | AG29: 1
X30: Закупка товаров, работ и услуг для обеспечения государственных (муниципальных) нужд | Y30: 001 | Z30: 01 | AA30: 04 | AB30: 02 7 02 60690 | AC30: 200 | AD30: =AD31 -> 65.6 | AE30: =AE31 -> 65.6 | AF30: =AF31 -> 65.6 | AG30: 1
X31: Иные закупки товаров, работ и услуг для обеспечения государственных (муниципальных) нужд | Y31: 001 | Z31: 01 | AA31: 04 | AB31: 02 7 02 60690 | AC31: 240 | AD31: =66-0.4 -> 65.6 | AE31: =66-0.4 -> 65.6 | AF31: 65.6 | AG31: 1
X32: Муниципальная программа «Социальная защита населения» | Y32: 001 | Z32: 01 | AA32: 04 | AB32: 04 0 00 00000 | AD32: =AD33 -> 2288 | AE32: 2288 | AF32: 2281.3 | AG32: 0.9970716783
X33: Обеспечивающая подпрограмма | Y33: 001 | Z33: 01 | AA33: 04 | AB33: 04 5 00 00000 | AD33: 2288 | AE33: 2288 | AF33: 2281.3 | AG33: 0.9970716783
X34: Основное мероприятие «Создание условий для реализации полномочий органов государственной власти Московской области и государственных органов Московской области» | Y34: 001 | Z34: 01 | AA34: 04 | AB34: 04 5 01 00000 | AD34: 2288 | AE34: 2288 | AF34: 2281.3 | AG34: 0.9970716783
X35: Обеспечение переданного государственного полномочия Московской области по созданию комиссий по делам несовершеннолетних и защите их прав муниципальных образований Московской области | Y35: 001 | Z35: 01 | AA35: 04 | AB35: 04 5 01 60680 | AD35: =AD36+AD38 -> 2288 | AE35: =AE36+AE38 -> 2288 | AF35: =AF36+AF38 -> 2281.3 | AG35: 0.9970716783
X36: Расходы на выплаты персоналу в целях обеспечения выполнения функций государственными (муниципальными) органами, казенными учреждениями, органами управления государственными внебюджетными фондами | Y36: 001 | Z36: 01 | AA36: 04 | AB36: 04 5 01 60680 | AC36: 100 | AD36: =AD37 -> 2092 | AE36: =AE37 -> 2092 | AF36: =AF37 -> 2085.3 | AG36: 0.9967973231
X37: Расходы на выплаты персоналу государственных (муниципальных) органов | Y37: 001 | Z37: 01 | AA37: 04 | AB37: 04 5 01 60680 | AC37: 120 | AD37: =1895.9+82.1+114 -> 2092 | AE37: =1895.9+82.1+114 -> 2092 | AF37: 2085.3 | AG37: 0.9967973231
X38: Закупка товаров, работ и услуг для обеспечения государственных (муниципальных) нужд | Y38: 001 | Z38: 01 | AA38: 04 | AB38: 04 5 01 60680 | AC38: 200 | AD38: =AD39 -> 196 | AE38: =AE39 -> 196 | AF38: =AF39 -> 196 | AG38: 1
X39: Иные закупки товаров, работ и услуг для обеспечения государственных (муниципальных) нужд | Y39: 001 | Z39: 01 | AA39: 04 | AB39: 04 5 01 60680 | AC39: 240 | AD39: =392.1-82.1-114 -> 196 | AE39: =392.1-82.1-114 -> 196 | AF39: 196 | AG39: 1
X40: Муниципальная программа «Управление имуществом и муниципальными финансами» | Y40: 001 | Z40: 01 | AA40: 04 | AB40: 12 0 00 00000 | AD40: =AD46+AD41 -> 54607.8 | AE40: =AE46+AE41 -> 54607.8 | AF40: =AF46+AF41 -> 53307.8 | AG40: 0.9761938771
X41: Подпрограмма "Совершенствование муниципальной службы Московской области" | Y41: 001 | Z41: 01 | AA41: 04 | AB41: 12 3 00 00000 | AD41: =AD42 -> 28.8 | AE41: 28.8 | AF41: 28.8 | AG41: 1
X42: Основное мероприятие "Организация профессионального развития муниципальных служащих Московской области" | Y42: 001 | Z42: 01 | AA42: 04 | AB42: 12 3 01 00000 | AD42: 28.8 | AE42: 28.8 | AF42: 28.8 | AG42: 1
X43: Организация профессионального образования и дополнительного профессионального образования выборных должностных лиц местного самоуправления, членов выборных органов местного самоуправления, депутатов представительных органов муниципальных образований, муниципальных служащих и работников муниципальных учреждений, организация подготовки кадров для муниципальной службы | Y43: 001 | Z43: 01 | AA43: 04 | AB43: 12 3 01 00830 | AD43: 28.8 | AE43: 28.8 | AF43: 28.8 | AG43: 1
X44: Закупка товаров, работ и услуг для обеспечения государственных (муниципальных) нужд | Y44: 001 | Z44: 01 | AA44: 04 | AB44: 12 3 01 00830 | AC44: 200 | AD44: 28.8 | AE44: 28.8 | AF44: 28.8 | AG44: 1
X45: Иные закупки товаров, работ и услуг для обеспечения государственных (муниципальных) нужд | Y45: 001 | Z45: 01 | AA45: 04 | AB45: 12 3 01 00830 | AC45: 240 | AD45: =50-21.2 -> 28.8 | AE45: =50-21.2 -> 28.8 | AF45: 28.8 | AG45: 1
X46: Обеспечивающая подпрограмма | Y46: 001 | Z46: 01 | AA46: 04 | AB46: 12 5 00 00000 | AD46: =AD47 -> 54579 | AE46: 54579 | AF46: 53279 | AG46: 0.9761813152
X47: Основное мероприятие «Создание условий для реализации полномочий органов местного самоуправления» | Y47: 001 | Z47: 01 | AA47: 04 | AB47: 12 5 01 00000 | AD47: 54579 | AE47: 54579 | AF47: 53279 | AG47: 0.9761813152
X48: Обеспечение деятельности администрации | Y48: 001 | Z48: 01 | AA48: 04 | AB48: 12 5 01 00120 | AD48: =AD49+AD56+AD59 -> 54579 | AE48: =AE49+AE56+AE59 -> 54579 | AF48: =AF49+AF56+AF59 -> 53279 | AG48: 0.9761813152
X49: Обеспечение деятельности администрации (расходы на обеспечение деятельности органов местного самоуправления) | Y49: 001 | Z49: 01 | AA49: 04 | AB49: 12 5 01 00121 | AD49: =AD52+AD54+AD50 -> 7067.9 | AE49: =AE52+AE54+AE50 -> 7067.9 | AF49: =AF52+AF54+AF50 -> 6010.2 | AG49: 0.8503515896
X50: Расходы на выплаты персоналу в целях обеспечения выполнения функций государственными (муниципальными) органами, казенными учреждениями, органами управления государственными внебюджетными фондами | Y50: 001 | Z50: 01 | AA50: 04 | AB50: 12 5 01 00121 | AC50: 100 | AD50: =AD51 -> 6.4 | AE50: =AE51 -> 6.4 | AF50: =AF51 -> 6.3 | AG50: 0.984375
X51: Расходы на выплаты персоналу государственных (муниципальных) органов | Y51: 001 | Z51: 01 | AA51: 04 | AB51: 12 5 01 00121 | AC51: 120 | AD51: =3.8+2.6 -> 6.4 | AE51: =3.8+2.6 -> 6.4 | AF51: 6.3 | AG51: 0.984375
X52: Закупка товаров, работ и услуг для обеспечения государственных (муниципальных) нужд | Y52: 001 | Z52: 01 | AA52: 04 | AB52: 12 5 01 00121 | AC52: 200 | AD52: =AD53 -> 7051.3 | AE52: =AE53 -> 7051.3 | AF52: =AF53 -> 6003.6 | AG52: 0.8514174691
X53: Иные закупки товаров, работ и услуг для обеспечения государственных (муниципальных) нужд | Y53: 001 | Z53: 01 | AA53: 04 | AB53: 12 5 01 00121 | AC53: 240 | AD53: =6821.6+899.3-2.6-15.8-300-300-51.2 -> 7051.3 | AE53: =6821.6+899.3-2.6-15.8-300-300-51.2 -> 7051.3 | AF53: 6003.6 | AG53: 0.8514174691
X54: Иные бюджетные ассигнования | Y54: 001 | Z54: 01 | AA54: 04 | AB54: 12 5 01 00121 | AC54: 800 | AD54: =AD55 -> 10.2 | AE54: =AE55 -> 10.2 | AF54: =AF55 -> 0.3 | AG54: 0.02941176471
X55: Уплата налогов, сборов и иных платежей | Y55: 001 | Z55: 01 | AA55: 04 | AB55: 12 5 01 00121 | AC55: 850 | AD55: =0.1+1+15.8-6.7 -> 10.2 | AE55: =0.1+1+15.8-6.7 -> 10.2 | AF55: 0.3 | AG55: 0.02941176471
X56: Обеспечение деятельности администрации (расходы на содержание лиц, замещающих должности, не являющиеся должностями муниципальной службы) | Y56: 001 | Z56: 01 | AA56: 04 | AB56: 12 5 01 00122 | AD56: =AD57 -> 14437.9 | AE56: 14437.9 | AF56: 14291.4 | AG56: 0.989853095
X57: Расходы на выплаты персоналу в целях обеспечения выполнения функций государственными (муниципальными) органами, казенными учреждениями, органами управления государственными внебюджетными фондами | Y57: 001 | Z57: 01 | AA57: 04 | AB57: 12 5 01 00122 | AC57: 100 | AD57: 14437.9 | AE57: 14437.9 | AF57: 14291.4 | AG57: 0.989853095
X58: Расходы на выплаты персоналу государственных (муниципальных) органов | Y58: 001 | Z58: 01 | AA58: 04 | AB58: 12 5 01 00122 | AC58: 120 | AD58: =16437.9-2000 -> 14437.9 | AE58: =16437.9-2000 -> 14437.9 | AF58: 14291.4 | AG58: 0.989853095
X59: Обеспечение деятельности администрации (расходы на содержание лиц, замещающих должности муниципальной службы) | Y59: 001 | Z59: 01 | AA59: 04 | AB59: 12 5 01 00123 | AD59: =AD60 -> 33073.2 | AE59: 33073.2 | AF59: 32977.4 | AG59: 0.9971033949
X60: Расходы на выплаты персоналу в целях обеспечения выполнения функций государственными (муниципальными) органами, казенными учреждениями, органами управления государственными внебюджетными фондами | Y60: 001 | Z60: 01 | AA60: 04 | AB60: 12 5 01 00123 | AC60: 100 | AD60: 33073.2 | AE60: 33073.2 | AF60: 32977.4 | AG60: 0.9971033949
X61: Расходы на выплаты персоналу государственных (муниципальных) органов | Y61: 001 | Z61: 01 | AA61: 04 | AB61: 12 5 01 00123 | AC61: 120 | AD61: =32088.3+1352.3+212.2-579.6 -> 33073.2 | AE61: =32088.3+1352.3+212.2-579.6 -> 33073.2 | AF61: 32977.4 | AG61: 0.9971033949
X62: Муниципальная программа «Развитие институтов гражданского общества, повышение эффективности местного самоуправления и реализации молодежной политики» | Y62: 001 | Z62: 01 | AA62: 04 | AB62: 13 0 00 00000 | AD62: =AD63 -> 8673 | AE62: 8673 | AF62: 8049.9 | AG62: 0.9281563473
X63: Подпрограмма «Развитие системы информирования населения о деятельности органов местного самоуправления Московской области, создание доступной современной медиасреды» | Y63: 001 | Z63: 01 | AA63: 04 | AB63: 13 1 00 00000 | AD63: 8673 | AE63: 8673 | AF63: 8049.9 | AG63: 0.9281563473
X64: Основное мероприятие «Информирование населения об основных событиях социально-экономического развития и общественно-политической жизни» | Y64: 001 | Z64: 01 | AA64: 04 | AB64: 13 1 01 00000 | AD64: 8673 | AE64: 8673 | AF64: 8049.9 | AG64: 0.9281563473
X65: Информирование населения о деятельности, о положении дел на территории муниципального образования, опубликование муниципальных правовых актов, обсуждение проектов муниципальных правовых актов по вопросам местного значения, доведение до сведения жителей муниципального образования официальной информации о социально-экономическом и культурном развитии муниципального образования, о развитии его общественной инфраструктуры и иной официальной информации | Y65: 001 | Z65: 01 | AA65: 04 | AB65: 13 1 01 00820 | AD65: =AD66 -> 8673 | AE65: 8673 | AF65: 8049.9 | AG65: 0.9281563473
X66: Закупка товаров, работ и услуг для обеспечения государственных (муниципальных) нужд | Y66: 001 | Z66: 01 | AA66: 04 | AB66: 13 1 01 00820 | AC66: 200 | AD66: 8673 | AE66: 8673 | AF66: 8049.9 | AG66: 0.9281563473
X67: Иные закупки товаров, работ и услуг для обеспечения государственных (муниципальных) нужд | Y67: 001 | Z67: 01 | AA67: 04 | AB67: 13 1 01 00820 | AC67: 240 | AD67: =8470.5+4.5+600-300-97.5-4.5 -> 8673 | AE67: =8470.5+4.5+600-300-97.5-4.5 -> 8673 | AF67: 8049.9 | AG67: 0.9281563473
X68: Муниципальная программа «Архитектура и градостроительство» | Y68: 001 | Z68: 01 | AA68: 04 | AB68: 16 0 00 00000 | AD68: =AD69 -> 439.8 | AE68: =AE69 -> 439.8 | AF68: =AF69 -> 72.7 | AG68: 0.1653024102
X69: Подпрограмма «Реализация политики пространственного развития городского округа» | Y69: 001 | Z69: 01 | AA69: 04 | AB69: 16 2 00 00000 | AD69: =AD70 -> 439.8 | AE69: 439.8 | AF69: 72.7 | AG69: 0.1653024102
X70: Основное мероприятие "Финансовое обеспечение выполнения отдельных государственных полномочий в сфере архитектуры и градостроительства, переданных органам местного самоуправления муниципальных образований Московской области" | Y70: 001 | Z70: 01 | AA70: 04 | AB70: 16 2 03 00000 | AD70: 439.8 | AE70: 439.8 | AF70: 72.7 | AG70: 0.1653024102
X71: Осуществление отдельных государственных полномочий в части присвоения адресов объектам адресации, изменения и аннулирования адресов, присвоения наименований элементам улично-дорожной сети (за исключением автомобильных дорог федерального значения, автомобильных дорог регионального или межмуниципального значения, местного значения муниципального района), наименований элементам планировочной структуры, изменения, аннулирования таких наименований, согласования переустройства и перепланировки помещений в многоквартирном доме | Y71: 001 | Z71: 01 | AA71: 04 | AB71: 16 2 03 60700 | AD71: =AD72+AD74 -> 439.8 | AE71: =AE72+AE74 -> 439.8 | AF71: =AF72+AF74 -> 72.7 | AG71: 0.1653024102
X72: Расходы на выплаты персоналу в целях обеспечения выполнения функций государственными (муниципальными) органами, казенными учреждениями, органами управления государственными внебюджетными фондами | Y72: 001 | Z72: 01 | AA72: 04 | AB72: 16 2 03 60700 | AC72: 100 | AD72: 356.4 | AE72: 356.4 | AF72: 72.7 | AG72: 0.2039842873
X73: Расходы на выплаты персоналу государственных (муниципальных) органов | Y73: 001 | Z73: 01 | AA73: 04 | AB73: 16 2 03 60700 | AC73: 120 | AD73: =410.6-54.2 -> 356.4 | AE73: =410.6-54.2 -> 356.4 | AF73: 72.7 | AG73: 0.2039842873
X74: Закупка товаров, работ и услуг для обеспечения государственных (муниципальных) нужд | Y74: 001 | Z74: 01 | AA74: 04 | AB74: 16 2 03 60700 | AC74: 200 | AD74: =AD75 -> 83.4 | AE74: =AE75 -> 83.4 | AF74: =AF75 -> 0 | AG74: 0
X75: Иные закупки товаров, работ и услуг для обеспечения государственных (муниципальных) нужд | Y75: 001 | Z75: 01 | AA75: 04 | AB75: 16 2 03 60700 | AC75: 240 | AD75: 83.4 | AE75: 83.4 | AF75: 0 | AG75: =AF75/AE75 -> 0
X76: Непрограммные расходы | Y76: 001 | Z76: 01 | AA76: 04 | AB76: 99 0 00 00000 | AD76: =AD77 -> 3970.5 | AE76: 3970.5 | AF76: =AF77 -> 3970.5 | AG76: 1
X77: Достижение показателей деятельности органов исполнительной власти субъектов Российской Федерации (поощрение муниципальных управленческих команд) | Y77: 001 | Z77: 01 | AA77: 04 | AB77: 99 0 00 55491 | AD77: 3970.5 | AE77: 3970.5 | AF77: 3970.5 | AG77: 1
X78: Расходы на выплаты персоналу в целях обеспечения выполнения функций государственными (муниципальными) органами, казенными учреждениями, органами управления государственными внебюджетными фондами | Y78: 001 | Z78: 01 | AA78: 04 | AB78: 99 0 00 55491 | AC78: 100 | AD78: 3970.5 | AE78: 3970.5 | AF78: 3970.5 | AG78: 1
X79: Расходы на выплаты персоналу государственных (муниципальных) органов | Y79: 001 | Z79: 01 | AA79: 04 | AB79: 99 0 00 55491 | AC79: 120 | AD79: 3970.5 | AE79: 3970.5 | AF79: 3970.5 | AG79: 1
X80: Другие общегосударственные вопросы | Y80: 001 | Z80: 01 | AA80: 13 | AD80: =AD87+AD122+AD133+AD152+AD81 -> 131946.9 | AE80: =AE87+AE122+AE133+AE152+AE81 -> 132005.9 | AF80: =AF87+AF122+AF133+AF152+AF81 -> 131521.6 | AG80: 0.9963312246
X81: Муниципальная программа «Культура» | Y81: 001 | Z81: 01 | AA81: 13 | AB81: 02 0 00 00000 | AD81: =AD82 -> 102 | AE81: 102 | AF81: 102 | AG81: 1
X82: Подпрограмма «Развитие архивного дела в Московской области» | Y82: 001 | Z82: 01 | AA82: 13 | AB82: 02 7 00 00000 | AD82: 102 | AE82: 102 | AF82: 102 | AG82: 1
X83: Основное мероприятие «Хранение, комплектование, учет и использование архивных документов в муниципальных архивах» | Y83: 001 | Z83: 01 | AA83: 13 | AB83: 02 7 01 00000 | AD83: =AD84 -> 102 | AE83: 102 | AF83: 102 | AG83: 1
X84: Расходы на обеспечение деятельности (оказание услуг) муниципальных архивов | Y84: 001 | Z84: 01 | AA84: 13 | AB84: 02 7 01 06160 | AD84: 102 | AE84: 102 | AF84: 102 | AG84: 1
X85: Закупка товаров, работ и услуг для обеспечения государственных (муниципальных) нужд | Y85: 001 | Z85: 01 | AA85: 13 | AB85: 02 7 01 06160 | AC85: 200 | AD85: 102 | AE85: 102 | AF85: 102 | AG85: 1
X86: Иные закупки товаров, работ и услуг для обеспечения государственных (муниципальных) нужд | Y86: 001 | Z86: 01 | AA86: 13 | AB86: 02 7 01 06160 | AC86: 240 | AD86: 102 | AE86: 102 | AF86: 102 | AG86: 1
X87: Муниципальная программа «Управление имуществом и муниципальными финансами» | Y87: 001 | Z87: 01 | AA87: 13 | AB87: 12 0 00 00000 | AD87: =AD88+AD97 -> 84247 | AE87: =AE88+AE97 -> 84247 | AF87: =AF88+AF97 -> 83828.9 | AG87: 0.995037212
X88: Подпрограмма «Развитие имущественного комплекса» | Y88: 001 | Z88: 01 | AA88: 13 | AB88: 12 1 00 00000 | AD88: =AD89 -> 11726.9 | AE88: 11726.9 | AF88: 11484.8 | AG88: 0.9793551578
X89: Основное мероприятие «Управление имуществом, находящимся в муниципальной собственности, и выполнение кадастровых работ» | Y89: 001 | Z89: 01 | AA89: 13 | AB89: 12 1 02 00000 | AD89: 11726.9 | AE89: 11726.9 | AF89: 11484.8 | AG89: 0.9793551578
X90: Владение, пользование и распоряжение имуществом, находящимся в муниципальной собственности городского округа | Y90: 001 | Z90: 01 | AA90: 13 | AB90: 12 1 02 00170 | AD90: =AD95+AD91+AD93 -> 11726.9 | AE90: =AE95+AE91+AE93 -> 11726.9 | AF90: =AF95+AF91+AF93 -> 11484.8 | AG90: 0.9793551578
X91: Закупка товаров, работ и услуг для обеспечения государственных (муниципальных) нужд | Y91: 001 | Z91: 01 | AA91: 13 | AB91: 12 1 02 00170 | AC91: 200 | AD91: =AD92 -> 60 | AE91: =AE92 -> 60 | AF91: =AF92 -> 0 | AG91: 0
X92: Иные закупки товаров, работ и услуг для обеспечения государственных (муниципальных) нужд | Y92: 001 | Z92: 01 | AA92: 13 | AB92: 12 1 02 00170 | AC92: 240 | AD92: 60 | AE92: 60 | AF92: 0 | AG92: 0
X93: Социальное обеспечение и иные выплаты населению | Y93: 001 | Z93: 01 | AA93: 13 | AB93: 12 1 02 00170 | AC93: 300 | AD93: =AD94 -> 2036.9 | AE93: =AE94 -> 2036.9 | AF93: =AF94 -> 1854.8 | AG93: 0.9105994403
X94: Иные выплаты населению | Y94: 001 | Z94: 01 | AA94: 13 | AB94: 12 1 02 00170 | AC94: 360 | AD94: =2292+4.6-206.2-53.5 -> 2036.9 | AE94: =2292+4.6-206.2-53.5 -> 2036.9 | AF94: 1854.8 | AG94: 0.9105994403
X95: Предоставление субсидий бюджетным, автономным учреждениям и иным некоммерческим организациям | Y95: 001 | Z95: 01 | AA95: 13 | AB95: 12 1 02 00170 | AC95: 600 | AD95: =AD96 -> 9630 | AE95: =AE96 -> 9630 | AF95: =AF96 -> 9630 | AG95: 1
X96: Субсидии бюджетным учреждениям | Y96: 001 | Z96: 01 | AA96: 13 | AB96: 12 1 02 00170 | AC96: 610 | AD96: =6000+1600+200+1830 -> 9630 | AE96: =6000+1600+200+1830 -> 9630 | AF96: 9630 | AG96: 1
X97: Обеспечивающая подпрограмма | Y97: 001 | Z97: 01 | AA97: 13 | AB97: 12 5 00 00000 | AD97: =AD98 -> 72520.1 | AE97: =AE98 -> 72520.1 | AF97: =AF98 -> 72344.1 | AG97: 0.9975730866
X98: Основное мероприятие «Создание условий для реализации полномочий органов местного самоуправления» | Y98: 001 | Z98: 01 | AA98: 13 | AB98: 12 5 01 00000 | AD98: =AD99+AD102 -> 72520.1 | AE98: =AE99+AE102 -> 72520.1 | AF98: =AF99+AF102 -> 72344.1 | AG98: 0.9975730866
X99: Взносы в общественные организации | Y99: 001 | Z99: 01 | AA99: 13 | AB99: 12 5 01 00870 | AD99: =AD101 -> 121.2 | AE99: =AE101 -> 121.2 | AF99: =AF101 -> 121.2 | AG99: 1
X100: Иные бюджетные ассигнования | Y100: 001 | Z100: 01 | AA100: 13 | AB100: 12 5 01 00870 | AC100: 800 | AD100: =AD101 -> 121.2 | AE100: =AE101 -> 121.2 | AF100: =AF101 -> 121.2 | AG100: 1
X101: Уплата налогов, сборов и иных платежей | Y101: 001 | Z101: 01 | AA101: 13 | AB101: 12 5 01 00870 | AC101: 850 | AD101: =121+0.2 -> 121.2 | AE101: =121+0.2 -> 121.2 | AF101: 121.2 | AG101: 1
X102: Расходы на обеспечение деятельности (оказание услуг) муниципальных учреждений - обеспечение деятельности органов местного самоуправления | Y102: 001 | Z102: 01 | AA102: 13 | AB102: 12 5 01 06090 | AD102: =AD103+AD108+AD115 -> 72398.9 | AE102: =AE103+AE108+AE115 -> 72398.9 | AF102: =AF103+AF108+AF115 -> 72222.9 | AG102: 0.9975690238
X103: Расходы на обеспечение деятельности (оказание услуг) муниципальных учреждений - обеспечение деятельности органов местного самоуправления( МКУ"Комитет по торгам города Лыткарино") | Y103: 001 | Z103: 01 | AA103: 13 | AB103: 12 5 01 06091 | AD103: =AD104+AD106 -> 10813.6 | AE103: =AE104+AE106 -> 10813.6 | AF103: =AF104+AF106 -> 10716.3 | AG103: 0.9910020715
X104: Расходы на выплаты персоналу в целях обеспечения выполнения функций государственными (муниципальными) органами, казенными учреждениями, органами управления государственными внебюджетными фондами | Y104: 001 | Z104: 01 | AA104: 13 | AB104: 12 5 01 06091 | AC104: 100 | AD104: =AD105 -> 10021.3 | AE104: =AE105 -> 10021.3 | AF104: =AF105 -> 10020.9 | AG104: 0.999960085
X105: Расходы на выплаты персоналу казенных учреждений | Y105: 001 | Z105: 01 | AA105: 13 | AB105: 12 5 01 06091 | AC105: 110 | AD105: =10377.3-82.5-273.5 -> 10021.3 | AE105: =10377.3-82.5-273.5 -> 10021.3 | AF105: 10020.9 | AG105: 0.999960085
X106: Закупка товаров, работ и услуг для обеспечения государственных (муниципальных) нужд | Y106: 001 | Z106: 01 | AA106: 13 | AB106: 12 5 01 06091 | AC106: 200 | AD106: =AD107 -> 792.3 | AE106: =AE107 -> 792.3 | AF106: =AF107 -> 695.4 | AG106: 0.8776978417
X107: Иные закупки товаров, работ и услуг для обеспечения государственных (муниципальных) нужд | Y107: 001 | Z107: 01 | AA107: 13 | AB107: 12 5 01 06091 | AC107: 240 | AD107: =835.5+57-100.2 -> 792.3 | AE107: =835.5+57-100.2 -> 792.3 | AF107: 695.4 | AG107: 0.8776978417
X108: Расходы на обеспечение деятельности (оказание услуг) муниципальных учреждений - обеспечение деятельности органов местного самоуправления( "Управление обеспечения деятельности Администрации города Лыткарино") | Y108: 001 | Z108: 01 | AA108: 13 | AB108: 12 5 01 06092 | AD108: =AD109+AD111+AD113 -> 49521.7 | AE108: =AE109+AE111+AE113 -> 49521.7 | AF108: =AF109+AF111+AF113 -> 49493.3 | AG108: 0.999426514
X109: Расходы на выплаты персоналу в целях обеспечения выполнения функций государственными (муниципальными) органами, казенными учреждениями, органами управления государственными внебюджетными фондами | Y109: 001 | Z109: 01 | AA109: 13 | AB109: 12 5 01 06092 | AC109: 100 | AD109: =AD110 -> 49035.9 | AE109: =AE110 -> 49035.9 | AF109: =AF110 -> 49009.5 | AG109: 0.9994616189
X110: Расходы на выплаты персоналу казенных учреждений | Y110: 001 | Z110: 01 | AA110: 13 | AB110: 12 5 01 06092 | AC110: 110 | AD110: =46885.1-62.1+156.9+156+204+758+938 -> 49035.9 | AE110: =46885.1-62.1+156.9+156+204+758+938 -> 49035.9 | AF110: 49009.5 | AG110: 0.9994616189
X111: Закупка товаров, работ и услуг для обеспечения государственных (муниципальных) нужд | Y111: 001 | Z111: 01 | AA111: 13 | AB111: 12 5 01 06092 | AC111: 200 | AD111: =AD112 -> 415.2 | AE111: =AE112 -> 415.2 | AF111: =AF112 -> 413.2 | AG111: 0.9951830443
X112: Иные закупки товаров, работ и услуг для обеспечения государственных (муниципальных) нужд | Y112: 001 | Z112: 01 | AA112: 13 | AB112: 12 5 01 06092 | AC112: 240 | AD112: =627.7-8.5-204 -> 415.2 | AE112: =627.7-8.5-204 -> 415.2 | AF112: 413.2 | AG112: 0.9951830443
X113: Иные бюджетные ассигнования | Y113: 001 | Z113: 01 | AA113: 13 | AB113: 12 5 01 06092 | AC113: 800 | AD113: =AD114 -> 70.6 | AE113: =AE114 -> 70.6 | AF113: =AF114 -> 70.6 | AG113: 1
X114: Уплата налогов, сборов и иных платежей | Y114: 001 | Z114: 01 | AA114: 13 | AB114: 12 5 01 06092 | AC114: 850 | AD114: =62.1+8.5 -> 70.6 | AE114: =62.1+8.5 -> 70.6 | AF114: 70.6 | AG114: 1
X115: Расходы на обеспечение деятельности (оказание услуг) муниципальных учреждений - обеспечение деятельности органов местного самоуправления ("Комитет по делам культуры, молодежи,спорта и туризма г.Лыткарино") | Y115: 001 | Z115: 01 | AA115: 13 | AB115: 12 5 01 06093 | AD115: =AD116+AD118+AD120 -> 12063.6 | AE115: =AE116+AE118+AE120 -> 12063.6 | AF115: =AF116+AF118+AF120 -> 12013.3 | AG115: 0.995830432
X116: Расходы на выплаты персоналу в целях обеспечения выполнения функций государственными (муниципальными) органами, казенными учреждениями, органами управления государственными внебюджетными фондами | Y116: 001 | Z116: 01 | AA116: 13 | AB116: 12 5 01 06093 | AC116: 100 | AD116: =AD117 -> 11492.2 | AE116: =AE117 -> 11492.2 | AF116: =AF117 -> 11477.7 | AG116: 0.9987382747
X117: Расходы на выплаты персоналу казенных учреждений | Y117: 001 | Z117: 01 | AA117: 13 | AB117: 12 5 01 06093 | AC117: 110 | AD117: =11946.7-500+45.5 -> 11492.2 | AE117: =11946.7-500+45.5 -> 11492.2 | AF117: 11477.7 | AG117: 0.9987382747
X118: Закупка товаров, работ и услуг для обеспечения государственных (муниципальных) нужд | Y118: 001 | Z118: 01 | AA118: 13 | AB118: 12 5 01 06093 | AC118: 200 | AD118: =AD119 -> 540.5 | AE118: =AE119 -> 540.5 | AF118: =AF119 -> 505.3 | AG118: 0.9348751156
X119: Иные закупки товаров, работ и услуг для обеспечения государственных (муниципальных) нужд | Y119: 001 | Z119: 01 | AA119: 13 | AB119: 12 5 01 06093 | AC119: 240 | AD119: =576.6+20.9-0.4-6-0.6-1-49 -> 540.5 | AE119: =576.6+20.9-0.4-6-0.6-1-49 -> 540.5 | AF119: 505.3 | AG119: 0.9348751156
X120: Иные бюджетные ассигнования | Y120: 001 | Z120: 01 | AA120: 13 | AB120: 12 5 01 06093 | AC120: 800 | AD120: =AD121 -> 30.9 | AE120: =AE121 -> 30.9 | AF120: =AF121 -> 30.3 | AG120: 0.9805825243
X121: Уплата налогов, сборов и иных платежей | Y121: 001 | Z121: 01 | AA121: 13 | AB121: 12 5 01 06093 | AC121: 850 | AD121: =19.4+0.4+6+0.6+1+3.5 -> 30.9 | AE121: =19.4+0.4+6+0.6+1+3.5 -> 30.9 | AF121: 30.3 | AG121: 0.9805825243
X122: Муниципальная программа «Развитие институтов гражданского общества, повышение эффективности местного самоуправления и реализации молодежной политики» | Y122: 001 | Z122: 01 | AA122: 13 | AB122: 13 0 00 00000 | AD122: =AD123+AD128 -> 539.2 | AE122: =AE123+AE128 -> 539.2 | AF122: =AF123+AF128 -> 475.5 | AG122: 0.8818620178
X123: Подпрограмма «Развитие системы информирования населения о деятельности органов местного самоуправления Московской области, создание доступной современной медиасреды» | Y123: 001 | Z123: 01 | AA123: 13 | AB123: 13 1 00 00000 | AD123: =AD124 -> 11.2 | AE123: 11.2 | AF123: 2.2 | AG123: 0.1964285714
X124: Основное мероприятие «Информирование населения об основных событиях социально-экономического развития и общественно-политической жизни» | Y124: 001 | Z124: 01 | AA124: 13 | AB124: 13 1 01 00000 | AD124: 11.2 | AE124: 11.2 | AF124: 2.2 | AG124: 0.1964285714
X125: Информирование населения о деятельности, о положении дел на территории муниципального образования, опубликование муниципальных правовых актов, обсуждение проектов муниципальных правовых актов по вопросам местного значения, доведение до сведения жителей муниципального образования официальной информации о социально-экономическом и культурном развитии муниципального образования, о развитии его общественной инфраструктуры и иной официальной информации | Y125: 001 | Z125: 01 | AA125: 13 | AB125: 13 1 01 00820 | AD125: =AD126 -> 11.2 | AE125: 11.2 | AF125: 2.2 | AG125: 0.1964285714
X126: Закупка товаров, работ и услуг для обеспечения государственных (муниципальных) нужд | Y126: 001 | Z126: 01 | AA126: 13 | AB126: 13 1 01 00820 | AC126: 200 | AD126: 11.2 | AE126: 11.2 | AF126: 2.2 | AG126: 0.1964285714
X127: Иные закупки товаров, работ и услуг для обеспечения государственных (муниципальных) нужд | Y127: 001 | Z127: 01 | AA127: 13 | AB127: 13 1 01 00820 | AC127: 240 | AD127: =13.5-2.3 -> 11.2 | AE127: =13.5-2.3 -> 11.2 | AF127: 2.2 | AG127: 0.1964285714
X128: Обеспечивающая подпрограмма | Y128: 001 | Z128: 01 | AA128: 13 | AB128: 13 5 00 00000 | AD128: =AD129 -> 528 | AE128: =AE129 -> 528 | AF128: =AF129 -> 473.3 | AG128: 0.8964015152
X129: Основное мероприятие «Корректировка списков кандидатов в присяжные заседатели федеральных судов общей юрисдикции в Российской Федерации» | Y129: 001 | Z129: 01 | AA129: 13 | AB129: 13 5 04 00000 | AD129: =AD130 -> 528 | AE129: 528 | AF129: 473.3 | AG129: 0.8964015152
X130: Составление (изменение) списков кандидатов в присяжные заседатели федеральных судов общей юрисдикции в Российской Федерации | Y130: 001 | Z130: 01 | AA130: 13 | AB130: 13 5 04 51200 | AD130: 528 | AE130: 528 | AF130: 473.3 | AG130: 0.8964015152
X131: Закупка товаров, работ и услуг для обеспечения государственных (муниципальных) нужд | Y131: 001 | Z131: 01 | AA131: 13 | AB131: 13 5 04 51200 | AC131: 200 | AD131: 528 | AE131: 528 | AF131: 473.3 | AG131: 0.8964015152
X132: Иные закупки товаров, работ и услуг для обеспечения государственных (муниципальных) нужд | Y132: 001 | Z132: 01 | AA132: 13 | AB132: 13 5 04 51200 | AC132: 240 | AD132: 528 | AE132: 528 | AF132: 473.3 | AG132: 0.8964015152
X133: Муниципальная программа «Цифровое муниципальное образование» | Y133: 001 | Z133: 01 | AA133: 13 | AB133: 15 0 00 00000 | AD133: =AD134 -> 40796 | AE133: =AE134 -> 40855 | AF133: =AF134 -> 40852.6 | AG133: 0.9999412557
X134: Подпрограмма «Снижение административных барьеров, повышение качества и доступности предоставления государственных и муниципальных услуг, в том числе на базе многофункциональных центров предоставления государственных и муниципальных услуг, а также услуг почтовой связи» | Y134: 001 | Z134: 01 | AA134: 13 | AB134: 15 1 00 00000 | AD134: =AD135+AD148 -> 40796 | AE134: =AE135+AE148 -> 40855 | AF134: =AF135+AF148 -> 40852.6 | AG134: 0.9999412557
X135: Основное мероприятие «Организация деятельности многофункциональных центров предоставления государственных и муниципальных услуг» | Y135: 001 | Z135: 01 | AA135: 13 | AB135: 15 1 02 00000 | AD135: =AD136+AD145+AD142 -> 40503 | AE135: =AE136+AE145+AE142+AE139 -> 40562 | AF135: =AF136+AF145+AF142+AF139 -> 40560.3 | AG135: 0.9999580889
X136: Расходы на обеспечение деятельности (оказание услуг) муниципальных учреждений - многофункциональный центр предоставления государственных и муниципальных услуг | Y136: 001 | Z136: 01 | AA136: 13 | AB136: 15 1 02 06190 | AD136: =AD137 -> 38370 | AE136: 38370 | AF136: 38369.3 | AG136: 0.9999817566
X137: Предоставление субсидий бюджетным, автономным учреждениям и иным некоммерческим организациям | Y137: 001 | Z137: 01 | AA137: 13 | AB137: 15 1 02 06190 | AC137: 600 | AD137: 38370 | AE137: 38370 | AF137: 38369.3 | AG137: 0.9999817566
X138: Субсидии бюджетным учреждениям | Y138: 001 | Z138: 01 | AA138: 13 | AB138: 15 1 02 06190 | AC138: 610 | AD138: =35000+468+3000-98 -> 38370 | AE138: =35000+468+3000-98 -> 38370 | AF138: 38369.3 | AG138: 0.9999817566
X139: Организация работы по преобразованию необходимых сведений о гражданах, которые содержатся в документах воинского учета военных комиссариатов Московской области, в электронно-цифровую форму работниками многофункциональных центров предоставления государственных и муниципальных услуг | Y139: 001 | Z139: 01 | AA139: 13 | AB139: 15 1 02 60150 | AD139: =AD140 -> 0 | AE139: 59 | AF139: 58 | AG139: =AF139/AE139 -> 0.9830508475
X140: Предоставление субсидий бюджетным, автономным учреждениям и иным некоммерческим организациям | Y140: 001 | Z140: 01 | AA140: 13 | AB140: 15 1 02 60150 | AC140: 600 | AD140: 0 | AE140: 59 | AF140: 58 | AG140: 0.9830508475
X141: Субсидии бюджетным учреждениям | Y141: 001 | Z141: 01 | AA141: 13 | AB141: 15 1 02 60150 | AC141: 610 | AD141: 0 | AE141: 59 | AF141: 58 | AG141: 0.9830508475
X142: Организация консультирования граждан по вопросам частичной мобилизации кол-центрами многофункциональных центров предоставления государственных и муниципальных услуг | Y142: 001 | Z142: 01 | AA142: 13 | AB142: 15 1 02 61840 | AD142: =AD143 -> 189 | AE142: 189 | AF142: 189 | AG142: 1
X143: Предоставление субсидий бюджетным, автономным учреждениям и иным некоммерческим организациям | Y143: 001 | Z143: 01 | AA143: 13 | AB143: 15 1 02 61840 | AC143: 600 | AD143: 189 | AE143: 189 | AF143: 189 | AG143: 1
X144: Субсидии бюджетным учреждениям | Y144: 001 | Z144: 01 | AA144: 13 | AB144: 15 1 02 61840 | AC144: 610 | AD144: 189 | AE144: 189 | AF144: 189 | AG144: 1
X145: Софинансирование расходов на организацию деятельности многофункциональных центров предоставления государственных и муниципальных услуг | Y145: 001 | Z145: 01 | AA145: 13 | AB145: 15 1 02 S0650 | AD145: =AD146 -> 1944 | AE145: 1944 | AF145: 1944 | AG145: 1
X146: Предоставление субсидий бюджетным, автономным учреждениям и иным некоммерческим организациям | Y146: 001 | Z146: 01 | AA146: 13 | AB146: 15 1 02 S0650 | AC146: 600 | AD146: 1944 | AE146: 1944 | AF146: 1944 | AG146: 1
X147: Субсидии бюджетным учреждениям | Y147: 001 | Z147: 01 | AA147: 13 | AB147: 15 1 02 S0650 | AC147: 610 | AD147: =1846+98 -> 1944 | AE147: =1846+98 -> 1944 | AF147: 1944 | AG147: 1
X148: Основное мероприятие "Совершенствование системы предоставления государственных и муниципальных услуг по принципу одного окна в многофункциональных центрах предоставления государственных и муниципальных услуг" | Y148: 001 | Z148: 01 | AA148: 13 | AB148: 15 1 03 00000 | AD148: =AD149 -> 293 | AE148: 293 | AF148: 292.3 | AG148: 0.9976109215
X149: Дооснащение материально-техническими средствами – приобретение программно-технических комплексов для оформления паспортов гражданина Российской Федерации, удостоверяющих личность гражданина Российской Федерации за пределами территории Российской Федерации в многофункциональных центрах предоставления государственных и муниципальных услуг,а также их техническая поддержка | Y149: 001 | Z149: 01 | AA149: 13 | AB149: 15 1 03 S0860 | AD149: 293 | AE149: 293 | AF149: 292.3 | AG149: 0.9976109215
X150: Предоставление субсидий бюджетным, автономным учреждениям и иным некоммерческим организациям | Y150: 001 | Z150: 01 | AA150: 13 | AB150: 15 1 03 S0860 | AC150: 600 | AD150: 293 | AE150: 293 | AF150: 292.3 | AG150: 0.9976109215
X151: Субсидии бюджетным учреждениям | Y151: 001 | Z151: 01 | AA151: 13 | AB151: 15 1 03 S0860 | AC151: 610 | AD151: =244+49 -> 293 | AE151: =244+49 -> 293 | AF151: 292.3 | AG151: 0.9976109215
X152: Непрограммные расходы | Y152: 001 | Z152: 01 | AA152: 13 | AB152: 99 0 00 00000 | AD152: =AD153+AD156 -> 6262.7 | AE152: =AE153+AE156 -> 6262.7 | AF152: =AF153+AF156 -> 6262.6 | AG152: 0.9999840324
X153: Оплата исполнительных листов, судебных издержек | Y153: 001 | Z153: 01 | AA153: 13 | AB153: 99 0 00 00080 | AD153: =AD154 -> 2256.8 | AE153: 2256.8 | AF153: 2256.8 | AG153: 1
X154: Иные бюджетные ассигнования | Y154: 001 | Z154: 01 | AA154: 13 | AB154: 99 0 00 00080 | AC154: 800 | AD154: 2256.8 | AE154: 2256.8 | AF154: 2256.8 | AG154: 1
X155: Исполнение судебных актов | Y155: 001 | Z155: 01 | AA155: 13 | AB155: 99 0 00 00080 | AC155: 830 | AD155: =100+230+1951.8-25 -> 2256.8 | AE155: =100+230+1951.8-25 -> 2256.8 | AF155: 2256.8 | AG155: 1
X156: Иные расходы | Y156: 001 | Z156: 01 | AA156: 13 | AB156: 99 0 00 04000 | AD156: =AD157 -> 4005.9 | AE156: =AE157 -> 4005.9 | AF156: 4005.8 | AG156: 0.9999750368
X157: Иные расходы (взыскания на средства бюджета) | Y157: 001 | Z157: 01 | AA157: 13 | AB157: 99 0 00 04002 | AD157: =AD158 -> 4005.9 | AE157: 4005.9 | AF157: 4005.8 | AG157: 0.9999750368
X158: Иные бюджетные ассигнования | Y158: 001 | Z158: 01 | AA158: 13 | AB158: 99 0 00 04002 | AC158: 800 | AD158: 4005.9 | AE158: 4005.9 | AF158: 4005.8 | AG158: 0.9999750368
X159: Уплата налогов, сборов и иных платежей | Y159: 001 | Z159: 01 | AA159: 13 | AB159: 99 0 00 04002 | AC159: 850 | AD159: =4005.9+50-50 -> 4005.9 | AE159: =4005.9+50-50 -> 4005.9 | AF159: 4005.8 | AG159: 0.9999750368
X160: Национальная оборона | Y160: 001 | Z160: 02 | AD160: =AD161+AD168 -> 4054.4 | AE160: =AE161+AE168 -> 4054.4 | AF160: =AF161+AF168 -> 4054.4 | AG160: 1
X161: Мобилизационная и вневойсковая подготовка | Y161: 001 | Z161: 02 | AA161: 03 | AD161: =AD162 -> 3870 | AE161: =AE162 -> 3870 | AF161: =AF162 -> 3870 | AG161: 1
X162: Муниципальная программа «Развитие институтов гражданского общества, повышение эффективности местного самоуправления и реализации молодежной политики» | Y162: 001 | Z162: 02 | AA162: 03 | AB162: 13 0 00 00000 | AD162: =AD163 -> 3870 | AE162: 3870 | AF162: 3870 | AG162: 1
X163: Обеспечивающая подпрограмма | Y163: 001 | Z163: 02 | AA163: 03 | AB163: 13 5 00 00000 | AD163: 3870 | AE163: 3870 | AF163: 3870 | AG163: 1
X164: Основное мероприятие «Осуществление первичного воинского учета на территориях, где отсутствуют военные комиссариаты» | Y164: 001 | Z164: 02 | AA164: 03 | AB164: 13 5 03 00000 | AD164: 3870 | AE164: 3870 | AF164: 3870 | AG164: 1
X165: Осуществление первичного воинского учета на территориях, где отсутствуют военные комиссариаты | Y165: 001 | Z165: 02 | AA165: 03 | AB165: 13 5 03 51180 | AD165: =AD166 -> 3870 | AE165: =AE166 -> 3870 | AF165: 3870 | AG165: 1
X166: Расходы на выплаты персоналу в целях обеспечения выполнения функций государственными (муниципальными) органами, казенными учреждениями, органами управления государственными внебюджетными фондами | Y166: 001 | Z166: 02 | AA166: 03 | AB166: 13 5 03 51180 | AC166: 100 | AD166: =AD167 -> 3870 | AE166: =AE167 -> 3870 | AF166: =AF167 -> 3870 | AG166: 1
X167: Расходы на выплаты персоналу государственных (муниципальных) органов | Y167: 001 | Z167: 02 | AA167: 03 | AB167: 13 5 03 51180 | AC167: 120 | AD167: =3740+130 -> 3870 | AE167: =3740+130 -> 3870 | AF167: 3870 | AG167: 1
X168: Мобилизационная подготовка экономики | Y168: 001 | Z168: 02 | AA168: 04 | AD168: =AD169 -> 184.4 | AE168: 184.4 | AF168: 184.4 | AG168: 1
X169: Муниципальная программа «Управление имуществом и муниципальными финансами» | Y169: 001 | Z169: 02 | AA169: 04 | AB169: 12 0 00 00000 | AD169: 184.4 | AE169: 184.4 | AF169: 184.4 | AG169: 1
X170: Обеспечивающая подпрограмма | Y170: 001 | Z170: 02 | AA170: 04 | AB170: 12 5 00 00000 | AD170: =AD171 -> 184.4 | AE170: 184.4 | AF170: 184.4 | AG170: 1
X171: Основное мероприятие «Создание условий для реализации полномочий органов местного самоуправления» | Y171: 001 | Z171: 02 | AA171: 04 | AB171: 12 5 01 00000 | AD171: 184.4 | AE171: 184.4 | AF171: 184.4 | AG171: 1
X172: Организация и осуществление мероприятий по мобилизационной подготовке | Y172: 001 | Z172: 02 | AA172: 04 | AB172: 12 5 01 00720 | AD172: 184.4 | AE172: 184.4 | AF172: 184.4 | AG172: 1
X173: Закупка товаров, работ и услуг для обеспечения государственных (муниципальных) нужд | Y173: 001 | Z173: 02 | AA173: 04 | AB173: 12 5 01 00720 | AC173: 200 | AD173: 184.4 | AE173: 184.4 | AF173: 184.4 | AG173: 1
X174: Иные закупки товаров, работ и услуг для обеспечения государственных (муниципальных) нужд | Y174: 001 | Z174: 02 | AA174: 04 | AB174: 12 5 01 00720 | AC174: 240 | AD174: =200-15.6 -> 184.4 | AE174: =200-15.6 -> 184.4 | AF174: 184.4 | AG174: 1
X175: Национальная безопасность и правоохранительная деятельность | Y175: 001 | Z175: 03 | AD175: =AD176+AD188+AD219 -> 35355.9 | AE175: =AE176+AE188+AE219 -> 35355.9 | AF175: =AF176+AF188+AF219 -> 33587.3 | AG175: 0.9499772315
X176: Гражданская оборона | Y176: 001 | Z176: 03 | AA176: 09 | AD176: =AD177 -> 995.8 | AE176: =AE177 -> 995.8 | AF176: =AF177 -> 566.9 | AG176: 0.5692910223
X177: Муниципальная программа «Безопасность и обеспечение безопасности жизнедеятельности населения» | Y177: 001 | Z177: 03 | AA177: 09 | AB177: 08 0 00 00000 | AD177: =AD178+AD183 -> 995.8 | AE177: =AE178+AE183 -> 995.8 | AF177: =AF178+AF183 -> 566.9 | AG177: 0.5692910223
X178: Подпрограмма «Развитие и совершенствование систем оповещения и информирования населения муниципального образования Московской области» | Y178: 001 | Z178: 03 | AA178: 09 | AB178: 08 3 00 00000 | AD178: =AD179 -> 603.8 | AE178: 603.8 | AF178: 554.9 | AG178: 0.9190129182
X179: Основное мероприятие «Создание, развитие и поддержание в постоянной готовности систем оповещения населения об опасностях, возникающих при военных конфликтах или вследствие этих конфликтов, а также при чрезвычайных ситуациях природного и техногенного характера (происшествиях) на территории муниципального образования Московской области» | Y179: 001 | Z179: 03 | AA179: 09 | AB179: 08 3 01 00000 | AD179: 603.8 | AE179: 603.8 | AF179: 554.9 | AG179: 0.9190129182
X180: Поддержка в состоянии постоянной готовности к использованию систем оповещения населения об опасности, объектов гражданской обороны | Y180: 001 | Z180: 03 | AA180: 09 | AB180: 08 3 01 00690 | AD180: 603.8 | AE180: 603.8 | AF180: 554.9 | AG180: 0.9190129182
X181: Закупка товаров, работ и услуг для обеспечения государственных (муниципальных) нужд | Y181: 001 | Z181: 03 | AA181: 09 | AB181: 08 3 01 00690 | AC181: 200 | AD181: 603.8 | AE181: 603.8 | AF181: 554.9 | AG181: 0.9190129182
X182: Иные закупки товаров, работ и услуг для обеспечения государственных (муниципальных) нужд | Y182: 001 | Z182: 03 | AA182: 09 | AB182: 08 3 01 00690 | AC182: 240 | AD182: =833-142.3+0.4+42.6+160-176-113.9 -> 603.8 | AE182: =833-142.3+0.4+42.6+160-176-113.9 -> 603.8 | AF182: 554.9 | AG182: 0.9190129182
X183: Подпрограмма «Обеспечение мероприятий гражданской обороны на территории муниципального образования Московской области» | Y183: 001 | Z183: 03 | AA183: 09 | AB183: 08 5 00 00000 | AD183: =AD184 -> 392 | AE183: 392 | AF183: 12 | AG183: 0.0306122449
X184: Основное мероприятие «Обеспечение готовности защитных сооружений и других объектов гражданской обороны на территории муниципальных образований Московской области» | Y184: 001 | Z184: 03 | AA184: 09 | AB184: 08 5 02 00000 | AD184: 392 | AE184: 392 | AF184: 12 | AG184: 0.0306122449
X185: Организация и осуществление мероприятий по территориальной обороне и гражданской обороне | Y185: 001 | Z185: 03 | AA185: 09 | AB185: 08 5 02 00670 | AD185: =AD186 -> 392 | AE185: 392 | AF185: 12 | AG185: 0.0306122449
X186: Закупка товаров, работ и услуг для обеспечения государственных (муниципальных) нужд | Y186: 001 | Z186: 03 | AA186: 09 | AB186: 08 5 02 00670 | AC186: 200 | AD186: 392 | AE186: 392 | AF186: 12 | AG186: 0.0306122449
X187: Иные закупки товаров, работ и услуг для обеспечения государственных (муниципальных) нужд | Y187: 001 | Z187: 03 | AA187: 09 | AB187: 08 5 02 00670 | AC187: 240 | AD187: =697-28-257-20 -> 392 | AE187: =697-28-257-20 -> 392 | AF187: 12 | AG187: 0.0306122449
X188: Защита населения и территории от чрезвычайных ситуаций природного и техногенного характера,пожарная безопасность | Y188: 001 | Z188: 03 | AA188: 10 | AD188: =AD189 -> 24311.6 | AE188: =AE189 -> 24311.6 | AF188: 24099.9 | AG188: 0.9912922226
X189: Муниципальная программа «Безопасность и обеспечение безопасности жизнедеятельности населения» | Y189: 001 | Z189: 03 | AA189: 10 | AB189: 08 0 00 00000 | AD189: =AD190+AD201+AD208 -> 24311.6 | AE189: =AE190+AE201+AE208 -> 24311.6 | AF189: =AF190+AF201+AF208 -> 24099.9 | AG189: 0.9912922226
X190: Подпрограмма "Снижение возникновения рисков и смягчение последствий чрезвычайных ситуаций природного и техногенного характера на территории муниципального образования Московской области" | Y190: 001 | Z190: 03 | AA190: 10 | AB190: 08 2 00 00000 | AD190: =AD191+AD195 -> 1136.5 | AE190: =AE191+AE195 -> 1136.5 | AF190: =AF191+AF195 -> 1136.5 | AG190: 1
X191: Основное мероприятие «Осуществление мероприятий по защите и смягчению последствий от чрезвычайных ситуаций природного и техногенного характера населения и территорий муниципального образования Московской области» | Y191: 001 | Z191: 03 | AA191: 10 | AB191: 08 2 01 00000 | AD191: =AD192 -> 404.5 | AE191: 404.5 | AF191: 404.5 | AG191: 1
X192: Участие в предупреждении и ликвидации последствий чрезвычайных ситуаций в границах городского округа | Y192: 001 | Z192: 03 | AA192: 10 | AB192: 08 2 01 00340 | AD192: 404.5 | AE192: 404.5 | AF192: 404.5 | AG192: 1
X193: Закупка товаров, работ и услуг для обеспечения государственных (муниципальных) нужд | Y193: 001 | Z193: 03 | AA193: 10 | AB193: 08 2 01 00340 | AC193: 200 | AD193: 404.5 | AE193: 404.5 | AF193: 404.5 | AG193: 1
X194: Иные закупки товаров, работ и услуг для обеспечения государственных (муниципальных) нужд | Y194: 001 | Z194: 03 | AA194: 10 | AB194: 08 2 01 00340 | AC194: 240 | AD194: =722-301.5-16 -> 404.5 | AE194: =722-301.5-16 -> 404.5 | AF194: 404.5 | AG194: 1
X195: Основное мероприятие "Выполнение мероприятий по безопасности населения на водных объектах, расположенных на территории муниципального образования Московской области | Y195: 001 | Z195: 03 | AA195: 10 | AB195: 08 2 02 00000 | AD195: =AD196 -> 732 | AE195: =AE196 -> 732 | AF195: =AF196 -> 732 | AG195: 1
X196: Осуществление мероприятий по обеспечению безопасности людей на водных объектах, охране их жизни и здоровья | Y196: 001 | Z196: 03 | AA196: 10 | AB196: 08 2 02 00730 | AD196: =AD197+AD199 -> 732 | AE196: =AE197+AE199 -> 732 | AF196: =AF197+AF199 -> 732 | AG196: 1
X197: Закупка товаров, работ и услуг для обеспечения государственных (муниципальных) нужд | Y197: 001 | Z197: 03 | AA197: 10 | AB197: 08 2 02 00730 | AC197: 200 | AD197: =AD198 -> 40 | AE197: =AE198 -> 40 | AF197: =AF198 -> 40 | AG197: 1
X198: Иные закупки товаров, работ и услуг для обеспечения государственных (муниципальных) нужд | Y198: 001 | Z198: 03 | AA198: 10 | AB198: 08 2 02 00730 | AC198: 240 | AD198: =70-30 -> 40 | AE198: =70-30 -> 40 | AF198: 40 | AG198: 1
X199: Предоставление субсидий бюджетным, автономным учреждениям и иным некоммерческим организациям | Y199: 001 | Z199: 03 | AA199: 10 | AB199: 08 2 02 00730 | AC199: 600 | AD199: =AD200 -> 692 | AE199: =AE200 -> 692 | AF199: =AF200 -> 692 | AG199: 1
X200: Субсидии бюджетным учреждениям | Y200: 001 | Z200: 03 | AA200: 10 | AB200: 08 2 02 00730 | AC200: 610 | AD200: =700-8 -> 692 | AE200: =700-8 -> 692 | AF200: 692 | AG200: 1
X201: Подпрограмма «Обеспечение пожарной безопасности на территории муниципального образования Московской области» | Y201: 001 | Z201: 03 | AA201: 10 | AB201: 08 4 00 00000 | AD201: =AD202 -> 202.2 | AE201: 202.2 | AF201: 196.5 | AG201: 0.971810089
X202: Основное мероприятие «Повышение степени пожарной безопасности» | Y202: 001 | Z202: 03 | AA202: 10 | AB202: 08 4 01 00000 | AD202: 202.2 | AE202: 202.2 | AF202: 196.5 | AG202: 0.971810089
X203: Обеспечение первичных мер пожарной безопасности в границах городского округа | Y203: 001 | Z203: 03 | AA203: 10 | AB203: 08 4 01 00360 | AD203: =AD204+AD206 -> 202.2 | AE203: =AE204+AE206 -> 202.2 | AF203: =AF204+AF206 -> 196.5 | AG203: =AF203/AE203 -> 0.971810089
... 897 more rows

Sheet Лист1 (hidden)

Sheet Лист2 (hidden)
